Workbook

Sheet INÍCIO (hidden)

Sheet PAC
A1: 1. Unidade requisitante (informar ID) | B1: 2. Descrição sucinta da demanda | C1: 3. Alinhamento da demanda com diretrizes e metas institucionais | D1: 4. Justificativa expressa para a contratação | E1: Nº de itens | F1: Descrição Geral | G1: 5. Código de item | H1: Elemento de despesa | I1: 6. Quantidade total estimada e unidade de medida | J1: 7. Valor total estimado | K1: 8. Vinculação ou dependência, se houver, com a contratação de outro item para sua execução* | L1: 9. Data-limite para entrega dos bens ou início da prestação dos serviços* | M1: 10. Prazo previsto para a execução* | N1: 11. Objeto passível de contratação por compra compartilhada? (sim/não) | O1: 12. Forma prevista para a contratação* (licitação, dispensa, inexigibilidade, prorrogação ou renovação) | P1: 13. Grau de prioridade | Q1: 14. Critérios de sustentabilidade* | R1: 15. Riscos da não contratação
A2: SEVIT - 15317159 | B2: Lavagem de veículos para os veículos oficiais da Seção Judiciária de Roraima. | C2: Alinha-se com disposições contidas na IN-14-08 TRF1, Administração de Veículos, modulo manutenção e recuperação. | D2: Limpeza, higienização dos veículos para preservar a saúde dos usuários. | E2: 6 | F2: Lavagens e polimento dos veículos oficiais da frota da Seção Judiciária de Roraima. | G2: 00001354-4 | I2: 20 | J2: 2010 | K2: NÃO | L2: 2023-03-01 | M2: 10 meses | N2: NÃO | O2: Dispensa | P2: 3 | Q2: Utilização de produtos que agridam o meio-ambiente; Utilização de métodos que evitem o desperdício de água tratada, conforme Dec n. 48.138/2003. | R2: Degradação do patrimônio; Insalubridade de operação.
A3: SEVIT - 15317179 | B3: Serviços de manutenção preventiva e corretiva a serem executados nos veículos oficiais pertencentes à SJRR. | C3: Alinha-se com as determinações estabelecidas nas Instruções Normativas nº 14-08 e 14-10 do TRF 1ª Região, bem como à Resolução nº 176/2013 do CNJ. | D3: Dever da Administração de prestar o adequado serviço de manutenção dos bens que compõem o patrimônio público; e necessidade de garantir a segurança dos usuários. | E3: 1 | F3: Serviço de manutenção preventiva / corretiva em veículos oficiais da SJRR | G3: 00000587-8 | I3: 45 H | J3: 6750 | K3: NÃO | L3: 2023-03-30 | M3: 9 meses | N3: NÃO | O3: Dispensa | P3: 3 | Q3: Destinação adequada de óleos lubrificantes para evitar contaminação do meio-ambiente. | R3: Risco à segurança dos usuários; peralização de atividades que dependam do transporte com veículos; e degradação do patrimônio público.
A4: SEVIT - 15317201 | B4: Fornecimento de combustíveis (gasolina comum, óleo diesel comum, óleo diesel S10 e etanol), destinados ao abastecimento dos veículos oficiais e do grupo gerador de energia elétrica da Justiça Federal de Primeira Instância - Seção Judiciária de Roraima | C4: Alinha-se com as disposições contidas na IN-14-08 TRF1, Administração de Veículos, modulo manutenção e recuperação. | D4: Fornecimento dos meios necessários para o funcionamento dos veículos oficiais e grupo gerador. | E4: 4 | F4: Comnustíveis - Gasolina, Diesel e Etanol | G4: BR0016950; BR0016993; BR00150371 | I4: 1500 | J4: 8872 | K4: NÃO | L4: 2023-04-30 | M4: 12 meses | N4: NÃO | O4: Licitação | P4: 4 | Q4: Fornecedor deverá constar do Cadastro Técnico Federal de Atividades Potencialmente Poluidoras e Utilizadoras de Recursos Ambientais – CTF/APP | R4: Paralização das atividades de transporte e impossibiliade de uso do Grupo Gerador em caso de falta de energia.
A5: SEVIT - 15317489 | B5: Serviços de manutenção preventiva e corretiva de Porta Giratória Detector de Metais. | C5: Alnha-se com as disposições contidas na IN-14-08 TRF1, considerando a necessidade da Administração Pública de zelar pela segurança da SJRR através do controle de acesso de pessoas e materiais. | D5: Manter a Porta Giratória - Detector de Metais em perfeitas condições de uso. | E5: 2 | F5: Manutenções preventivas e corretivas da porta giratória com detector de metais. | G5: 00001840-6 | I5: 3 | J5: 5500 | K5: NÃO | L5: 2023-06-07 | M5: 12 meses | N5: NÃO | O5: Prorrogação | P5: 3 | R5: Aumento do risco à integridade das pessoas e do patrimônio público no âmbito da SJRR.
A6: SEVIT - 15342869 | B6: Serviços de seguro automotivo para os veículos oficiais que integram a frota da SJRR. | C6: Alinha-se com as disposições contidas na IN-14-08 TRF1, Administração de Veículos. | D6: Necessidade de resguardar os veículos e seus condutores em eventuais ocorrências de danos e/ou de sinistros. | E6: 1 | F6: Apólice de Seguros Automobilísticos. | G6: 00002276-4 | I6: 1 | J6: 7123 | K6: NÃO | L6: 2023-06-07 | M6: 12 meses | N6: NÃO | O6: Dispensa | P6: 3 | Q6: Observância da legislação atinente às melhores práticas de sustentabilidade ambiental no âmbito das contratações públicas. | R6: Paralização de atividades essenciais, sucateamento de patrimônio público.
A7: SEVIT - 15343725 | B7: Contratar ou firmar convênio com instituições de segurança pública, para realização de Curso de Treinamento de Tiro, para os servidores, Agentes da Polícia Judicial, aptos a portar arma de fogo da Seção Judiciária de Roraima. | C7: Alinha-se com as disposições contidas no Art. 3 da RESOLUÇÃO N. 686/2020 - CJF, DE 15 DE DEZEMBRO DE 2020. | D7: Considerando a obrigatoriedade da Administração Pública em prestar o adequado serviço de segurança e proteção a magistrados, servidores e jurisdicionados, bem como ao patrimônio público, torna-se necessário a contratação desses serviços. | E7: 1 | F7: Curso de Treinamento de Tiro com Carga horária mínima de 4 horas com Certificado emitido contendo: carga horária, conteúdo programático, local, data de início término, assinatura do aluno e instrutor. | I7: 3 | J7: 4500 | K7: NÃO | L7: 2023-08-30 | M7: 30 Dias | N7: NÃO | O7: Dispensa | P7: 3 | Q7: Descarte correto dos materiais empregados no curso | R7: Desconformidade com a legislação
A8: SEVIT - 15344700 | B8: Serviços de vigilância armada e segurança patrimonial 24h, com postos nos principais locais de acesso do edifício-sede da Seção Judiciária de Roraima. | C8: alinha-se com as determinações estabelecidas nas Instruções Normativas nº 14-08 e 14-10 do TRF 1ª Região, bem como à Resolução nº 176/2013 do CNJ. | D8: Considerando a obrigatoriedade da Administração Pública em prestar o adequado serviço de segurança e proteção a magistrados, servidores e jurisdicionados, bem como ao patrimônio público. | E8: 3 | F8: Vigilante diurno em turno de 12 x 36 horas; Vigilante noturno em turno de 12 x 36 horas e Vigilante diurno em turnos de 5 x 2 horas 44 horas semanais. | G8: 00002401-5 | I8: 6 | J8: 295269.36 | K8: NÃO | L8: 2023-10-26 | M8: 12 meses | N8: NÃO | O8: Prorrogação | P8: 4 | Q8: Promover ações educativas aos seus colaboradores sobre o consumo eficiente de energia elétrica e água | R8: Entrada de pessoas não autorizadas ou objetos proibidos; vulnerabilidade do prédio a furtos e/ou vandalismo.
A9: SEVIT - 15344763 | B9: Serviços de treinamento (certificação) de atualização e formação de Brigada de Prevenção e Combate a Incêndio. | C9: Alinhamento com disposições contidas na IN-14-10 TRF1, considerando a necessidade/obrigatoriedade da Administração Pública de zelar pela segurança de magistrados, servidores, jurisdicionados e instalações físicas da Justiça Federal do Estado de Roraima. | D9: Necessidade de treinar servidores e outros colaboradores para agir prontamente em caso de princípio de incêndio nas dependências da SJRR. | E9: 1 | F9: Curso de formação da brigada de incêndio da SJRR. | G9: 00001340-4 | I9: 12 horas | J9: 2400 | K9: NÃO | L9: 2023-10-01 | M9: 30 Dias | N9: NÃO | O9: Dispensa | P9: 3 | Q9: Cumprir, no que couber, as exigências do art. 6° da Instrução Norma MPOG n°01, de 19 de janeiro de 2010, que estabelece as práticas de sustentabilidade na execução dos serviços | R9: Riscos às instalações da SJRR bem como à integridade física de usuários.
A10: SEVIT - 15345811 | B10: Serviços de recarga e de manutenção dos extintores de incêndio pertencentes à Seção Judiciária de Roraima. | C10: Alinhamento com as diretrizes de segurança institucional. para proteger as pessoas e o patrimônio sob responsabilidade da SJRR. | D10: Necessidade de manter em perfeitas condições de uso os extintores de incêndio da Seção Judiciária de Roraima, objetivando a preservação da segurança de pessoas e de ambientes. | E10: 3 | F10: Recarga e Manutenção de extintores de incêndio. | G10: 0000366-2 | I10: 66 | J10: 6250 | K10: NÃO | L10: 2023-10-01 | M10: 30 Dias | N10: SIM | O10: Dispensa | P10: 3 | Q10: Adotar boas práticas de otimização de recursos/redução de desperdícios/ menor poluição | R10: Impossibilidade de controlar princícpios de incêndio, caso os extintores falhem por falta de manutenção.
A11: SEVIT - 15345982 | B11: Serviços de manutenção preventiva e corretiva de Equipamento de Inspeção de Raio X, tipo Scanner, modelo Spectrum 5030. | C11: Alinha-se com disposições contidas na IN-14-08 TRF1. | D11: Manter o Scanner Detector de Metais em perfeitas condições de uso | E11: 2 | F11: Manutenção preventiva e Corretiva do Scanner | G11: 00000573-8 | I11: 2 | J11: 6800 | K11: NÃO | L11: 2023-11-01 | M11: 12 Meses | N11: SIM | O11: Prorrogação | P11: 3 | R11: Degradação do patrimônio
A12: SEVIT - 15846451 | B12: Uniformes e acessórios de identificação visual, para os Agentes da Polícia Judicial. | C12: Alinha-se com o Plano Estratégico da Justiça Federal - PEJF 2021/2026, aos macros desafios "Fortalecimento da segurança e proteção institucional". | D12: Atendimento às Normas que regulam o cargo de Agente de Polícia Judicial, Portaria PRESI 222/2021. | E12: 4 | F12: Aquisição de uniformes e acessórios de identificação visual | G12: BR0038059 | I12: 24 | J12: 3340 | K12: NÃO | L12: 2023-04-01 | M12: 45 dias | N12: NÃO | O12: Dispensa | P12: 3 | Q12: Devem ser utilizados, preferencialmente, produtos menos poluentes e agressivos ao meio ambiente que utilizem tecidos que tenham em sua composição fibras com maior resistência à tração e durabilidade. | R12: - Não conformidade com a norma pertinente; - Enfraquecimento da identidade institucional dos Agentes; - Ausência de padronização dos elementos e símbolos que promovem uniformidade no reconhecimento dos servidores da polícia judicial.
A13: SECAM - 15328939 | B13: Serviços de publicação de editais, avisos e notas oficiais de interesse desta Seccional em jornal local de grande circulação Regional. | C13: A demanda está alinhada com os Macrodesafios do Poder Judiciário “Consolidação do sistema de precedentes obrigatórios" e com o Macrodesafio específico "Fortalecimento da segurança e proteção institucional". | D13: Assegurar publicidade, por meio de jornal local de grande circulação, a editais avisos e notas oficiais de interesse da Justiça Federal de 1ª Instância - Seção Judiciária de Roraima. | E13: 1 | F13: Publicação de matérias na página de editais do jornal. | G13: 00001004-9 | I13: 40 | J13: 4800 | K13: NÃO | L13: 2023-01-01 | M13: 12 Meses | N13: NÃO | O13: Inexigibilidade | P13: Médio | Q13: Não recebemos nenhum documento em forma física, apenas digitais, objetivando a redução do uso de papeis, tonners e demais produtos. | R13: Falta de publicidade nos atos oficiais da SJRR, deixando de cumprir determinações legais.
A14: SECAM - 15732555 | B14: Serviços de locação de 04 (quatro) fotocopiadoras, com fornecimento de suprimentos. | C14: A demanda está alinhada com os Macrodesafios do Poder Judiciário “Agilidade e produtividade na prestação jurisdicional" e com o Macrodesafio específico "Fortalecimento da segurança e proteção institucional" | D14: Garantir que os serviços de reprografia, impressão e digitalização de documentos sejam prestados de maneira contínua e sem interrupções para o bom andamento dos trabalhos na Justiça Federal de Roraima | E14: 1 | F14: locação de 04 (quatro) fotocopiadoras, com fornecimento de suprimentos, exceto papel, com franquia mensal de 20.000 cópias, com manutenção preventiva e corretiva. | G14: 00002316-7 | I14: 4 | J14: 36000 | K14: NÃO | L14: 2023-06-26 | M14: 12 Meses | N14: NÃO | O14: Prorrogação | P14: Médio | Q14: O contrato prevê que o contratado faça a retirada dos cartuchos de tonners usados, para o descarte correto dos mesmos | R14: Redução na qualidade dos serviços prestados.
A15: SECAM - 15732641 | B15: Serviços de Telefonia Móvel Pessoal - SMP. | C15: A demanda está alinhada com os Macrodesafios do Poder Judiciário “Agilidade e produtividade na prestação jurisdicional" e com o Macrodesafio específico "Fortalecimento da segurança e proteção institucional". | D15: A implantação de procedimento de intimação das partes, advogados e dos peritos via WhatsApp no âmbito do Juizado Especial Federal e do Núcleo de Conciliação da Seção Judiciária de Roraima, conforme a Resolução Presi nº 50 de 23/11/2017. | E15: 11 | F15: Prestação de SERVIÇO MÓVEL PESSOAL - SMP, na modalidade LOCAL, com tecnologia digital GSM | G15: 00001813-9 | I15: 7608 min | J15: 13052.88 | K15: NÃO | L15: 2023-07-22 | M15: 12 Meses | N15: NÃO | O15: Licitação | P15: Alto | Q15: Não recebemos mais nenhum tipo de documento de forma física, somente digitais, objetivando a economia em papel e demais insumos | R15: Redução na qualidade dos serviços prestados.
A16: SECAM - 15331353 | B16: Serviços de postagens e encomendas da Seção Judiciária de Roraima. | C16: A demanda está alinhada com os Macrodesafios do Poder Judiciário “Agilidade e produtividade na prestação jurisdicional" e com o Macrodesafio específico "Fortalecimento da segurança e proteção institucional" | D16: Para assegurar maior eficiência, um dos princípios de Administração Pública previstos no artigo 37 da Constituição Federal, a contratação da ECT mostra-se adequada a suprir as necessidades da SJRR. | E16: 1 | F16: Postagens de correspondências e documentos oficiais da Seção Judiciária de Roraima. | G16: 0000428-6 | J16: 34000 | K16: NÃO | L16: 2022-03-31 | M16: 12 meses | N16: NÃO | O16: Prorrogação | P16: Alto | Q16: Não recebemos nenhum documento em forma física, apenas digitais, objetivando a redução do uso de papeis e demais insumos. | R16: Atrasos na prestação de serviços aos jurisdicionados, visto que alguns serviços são feitos por correios.
A17: SECAM - 15732819 | B17: Serviço de Telefonia Fixa Comutada. | C17: A demanda está alinhada com os Macrodesafios do Poder Judiciário “Agilidade e produtividade na prestação jurisdicional" e com o Macrodesafio específico "Fortalecimento da segurança e proteção institucional" | D17: A contratação se justifica pela necessidade dos serviços de telefonia em todos os setores da Seção Judiciária de Roraima. Ressaltando ser um serviço essencial ao bom andamento dos trabalhos realizados pela Seccional. | E17: 6 | F17: Serviço de Telefonia Fixa Comutada, mediante prestação de serviços telefônicos Local fixo-fixo, fixo-móvel e DDD. | G17: 00002187-3 | I17: 89000 min | J17: 3605 | K17: NÃO | L17: 2023-08-28 | M17: 12 Meses | N17: NÃO | O17: Licitação | P17: Alto | Q17: Não recebemos nenhum documento em forma física, apenas digitais, objetivando a redução do uso de papeis e demais insumos | R17: Atrasos na prestação de serviços aos jurisdicionados, visto que alguns serviços estão sendo feitos via ligação telefonica
A18: SEINF - 15328883 | B18: Serviços técnicos especializados para apoio na área de TI para atividades de apoio. | C18: Indicadores do Plano Estratégico de Tecnologia da Informação da Justiça Federal – PETI para 2021-2026, ambos aprovados pela resolução CJF-RES-2020/00685 de 15 de dezembro de 2020. | D18: Garantir a continuidade dos serviços prestados no escopo do Contrato nº 5451137/2018 (5451137), cuja vigência expirará em 31.01.2023. | E18: 1 | F18: Prestação de serviços técnicos continuados da área de tecnologia da informação para atendimento e suporte aos usuários de TI da Seção Judiciária de Roraima. | I18: 1 | J18: 472680 | K18: NÃO | L18: 2023-01-31 | M18: 30 Meses | N18: NÃO | O18: Licitação | P18: 4 | Q18: USO - suporte remoto (menor consumo de energia local). | R18: Impactos negativos na prestação de serviço da atividade fim (causando indisponibilidade de serviços ofertados aos jurisdicionados).
A19: SELIT - 15330055 | B19: Fornecimento de Passagem Aérea | C19: Macrodesafios Nacionais: Aperfeiçoamento da gestão de pessoas; Indice de capacitação de magistrados; Indice de capacitação de servidores. | D19: Necessidade de deslocamento dos servidores e colaboradores da Justiça Federal quando do exercício de suas atribuições, seja realizando cursos de capacitação ou em viagens a serviço do órgão. | E19: 2 | F19: Prestação de serviços de agenciamento de viagens: emissão, remarcação e cancelamento de passagens aéreas nacionais e internacionais. | G19: BR00000371-9 | I19: 100 | J19: 100000 | K19: NÃO | L19: 2023-04-02 | M19: 12 Meses | N19: SIM | O19: Licitação | P19: 3 | Q19: Todos os procedimentos são realizados de forma eletrônica, utilizando o Sistema de Solicitação de Viagens a Serviço - E-AVS, plataforma desenvolvida especificamente para este fim | R19: Impossibilidade de deslocamento dos servidores e magistrados para outros estados do território nacional
A20: SELIT - 15330056 | B20: Aquisição de assinatura online para a plataforma de pesquisa preços | C20: Macrodesafios Nacionais Aperfeiçoamento da gestão administrativa e da governança judiciária. | D20: A Justiça Federal de Roraima utiliza a ferramenta desde 2013, sendo uma plataforma de fácil operação, confiável, ágil para acelerar os procedimentos de cotação e estimativa de preços e principalmente é eficiente na realização de pesquisa de preços | E20: 1 | F20: Assinatura informatizada para acesso a plataforma de pesquisa | G20: BR00002310-8 | I20: 1 | J20: 10865 | K20: NÃO | L20: 2023-05-31 | M20: 12 Meses | N20: NÃO | O20: Dispensa | P20: 2 | Q20: A assinatura da plataforma é para o acesso na versão eletrônica, não havendo outro modo de usá-la | R20: Caso a contratação não seja efetuada, a pesquisa de preços terá que ser feita com base nos portais gratuitos, no qual não atendem de maneira satisfatória esta seção, fazendo com que eleve o tempo de tramitação dos processos.
A21: SEBES - 15770124 | B21: Assistência médica, psicológica e odontológica direta aos magistrados e servidores ativos, inativos, e aos seus dependentes | C21: A necessidade mencionada está alinhada com o Plano Estratégico da Justiça Federal - PEJF 2021/2026 | D21: A Seção Judiciária de Roraima oferece através da Seção de Benefícios Sociais, assistência direta a magistrados, servidores e seus familiares que compreende atendimento médico, odontológico e de psicologia | E21: 4 | F21: Assistência médica, psicológica e odontológica direta aos magistrados e servidores ativos, inativos, e aos seus dependentes | I21: 4 | J21: 298017.72 | K21: NÃO | L21: 2023-01-28 | M21: 12 Meses | N21: NÃO | O21: Licitação | P21: 2 | Q21: Orientação e conscientização dos funcionários sobre consumo de energia, consumo de papel, consumo de água, em consonância com o Plano de Ação Socioambiental 2021/2022 da SJRR | R21: Interrupção da assistência médica, psicológica e odontológica aos magistrados, servidores e dependentes na dependência da Seção Judiciária de Roraima
A22: SEBES - 15770520 | B22: Manutenção preventiva e corretiva dos equipamentos do consultório odontológico da SJRR | C22: Plano Estratégico da Justiça Federal - PEJF 2021/2026 | D22: Os serviços são necessários para atender à demanda por manutenção dos equipamentos do consultório odontológico. Bens de uso contínuo e destinados à saúde dos magistrados e servidores | E22: 1 | F22: Manutenção em Equipamentos de Consultório Odontológico | G22: 0579-7 | I22: 24 | J22: 6000 | K22: NÃO | L22: 2023-07-29 | M22: 12 Meses | N22: NÃO | O22: Prorrogação | P22: 1 | R22: Prejuízo à realização das tarefas rotineiras do consultório odontológico, ocasionando a interrupção das atividades e impactos negativos na prestação do serviço
A23: SEBES - 15330874 | B23: Aquisição de Vacinas para imunização contra a gripe H1N1 | C23: Plano Estratégico da Justiça Federal - PEJF 2021/2026 | D23: necessidade de imunização de magistrados e servidores, em exercício na sede da Seção Judiciária de Roraima, com o objetivo de manter baixo o índice de absenteísmo decorrente de afastamento por motivo de doença acometida pela gripe. | E23: 1 | F23: DOSES DA VACINA PRA GRIPE SAZONAL CONTENDO AS CEPAS DE OCORRÊNCIA DO ANO VIGENTE DE ACORDO COM AS RECOMENDAÇÕES DA OMS (ORGANIZAÇÃO MUNDIAL DE SAÚDE) | G23: BR0246141 | I23: 115 | J23: 13800 | K23: NÃO | L23: 2023-04-30 | M23: 2 Meses | N23: NÃO | O23: Dispensa | P23: 2 | R23: Aumento do absenteísmo de servidores e magistrados em razão de contaminação do vírus da gripe
A24: SEBES - 15330879 | B24: Materiais e medicamentos para os consultórios médico e odontológico da Seção Judiciária de Roraima | C24: A necessidade mencionada está alinhada com o Plano Estratégico da Justiça Federal - PEJF 2021/2026 | D24: A Seção Judiciária de Roraima oferece, por meio da Seção de Benefícios Sociais, assistência direta a magistrados, servidores e seus familiares compreendendo atendimento médico (clínico geral), odontológico e de psicologia | E24: 137 | F24: aquisição dos materiais odontológicos e medicamentos | I24: 684 | J24: 25902.43 | K24: SIM | L24: 2023-07-31 | M24: 2 Meses | N24: NÃO | O24: Licitação | P24: 1 | Q24: Em alinhamento com o Plano de Logística Sustentável da Seção Judiciária de Roraima, sobretudo com o Referencial Estratégico Socioambiental que prevê como meta o absenteísmo de magistrados e servidores abaixo ou igual a 3% | R24: Prejuízo à realização das tarefas rotineiras dos consultórios médico e odontológico, ocasionando a interrupção das atividades e impactos negativos na prestação do serviço
A25: SEMAP - 15331081 | B25: Aquisição de materiais de consumo diversos para consecução das atividades internas na SJRR. | C25: As necessidades mencionadas estão alinhadas com dispositivos presentes no Plano de Logística Sustentável da SJRR o qual remete ao ordenamento jurídico concernente à legislação da gestão socioambiental no país | D25: Os materiais relacionados no objeto são necessários ao cumprimento das atividades desempenhadas pelos servidores e colaboradores internos. A aquisição se justifica pela continuidade do serviço público | E25: 22 | F25: Aquisição de materiais de expediente e consumo | I25: 1150 | J25: 52505 | K25: NÃO | L25: 2023-03-31 | M25: 45 Dias | N25: NÃO | O25: Licitação | P25: 3 | Q25: O procedimento observará em todas as fases as orientações e normas voltadas para a sustentabilidade ambiental, bem como a apresentação de documentos físicos, copiados ou impressos, somente em papel reciclado | R25: Prejuízo à realização das tarefas rotineiras das áreas meio e fim, com impactos negativos na produtividade, pela falta de itens que auxiliam na consecução das tarefas internas
A26: SESEG - 15770821 | B26: Serviços de limpeza, conservação, copeiragem e jardinagem, com fornecimento de material de limpeza e jardinagem. | C26: Alinha-se com as determinações estabelecidas no Plano Estratégico da Justiça Federal da 1ª Região – Planest 2021-2026 | D26: Assegurar a continuidade dos serviços de limpeza, jardinagem e copeiragem nas dependências do edifício-sede da Justiça Federal em Roraima | E26: 3 | F26: Prestação de serviços continuados de limpeza e conservação nas dependências da Seção Judiciária de Roraima | I26: 10 | J26: 451521.73 | K26: NÃO | L26: 2023-01-31 | M26: 12 Meses | N26: SIM | O26: Prorrogação | P26: 4 | Q26: A futura contratada deverá, nos termos do Anexo V da Instrução Normativa SLTI/MPOG n° 2, de 30/04/2008, e da Instrução Normativa SLTI/MPOG n° 1, de 19/01/2010, a contratada deverá adotar as providências contidas nas alíneas "a" a "g". | R26: Riscos à saúde, segurança e bem-estar dos servidores, terceirizados e usuários das instalações da Seção Judiciária de Roraima em decorrência de um ambiente desorganizado e insalubre
A27: SESEG - 15770921 | B27: Prestação de serviços continuados de apoio administrativo nas dependências da Seção Judiciária de Roraima | C27: Alinha-se com as determinações estabelecidas no Plano Estratégico da Justiça Federal da 1ª Região – Planest 2021-2026 | D27: Possuem dedicação exclusiva de mão de obra, cuja interrupção comprometeria o pleno funcionamento da instituição, e de caráter auxiliar, correspondendo a cargos considerados extintos ou inexistentes no quadro funcional do Governo Federal | E27: 1 | F27: Prestação de serviços continuados de apoio administrativo nas dependências da Seção Judiciária de Roraima | G27: 5380 | I27: 14 | J27: 525433.92 | K27: NÃO | L27: 2023-01-09 | M27: 12 Meses | N27: SIM | O27: Licitação | P27: 3 | R27: Atrasos na prestação de serviços aos jurisdicionados
A28: SESEG - 15771480 | B28: Prestação de serviços continuados de manutenção predial nas dependências da Seção Judiciária de Roraima | C28: Alinha-se com as determinações estabelecidas no Plano Estratégico da Justiça Federal da 1ª Região – Planest 2021-2026 | D28: Garantir o pleno funcionamento dos sistemas prediais e reduzir a probabilidade de falhas e/ou degradação das instalações físicas da Seccional, através de serviços de reparos e consertos | E28: 1 | F28: Prestação de serviços continuados de manutenção predial nas dependências da Seção Judiciária de Roraima | G28: 1627 | I28: 2 | J28: 85813.87 | K28: SIM | L28: 2023-03-06 | M28: 12 Meses | N28: SIM | O28: Prorrogação | P28: 4 | Q28: A contratada deverá providenciar o recolhimento e o adequado descarte das lâmpadas fluorescentes originárias da contratação, recolhendo-as ao sistema de coleta, para fins de sua destinação final ambientalmente adequada. | R28: Riscos à segurança e bem-estar dos servidores, terceirizados e usuários das instalações da Seção Judiciária de Roraima em decorrência de um ambiente com instalações prediais inadequadas à prestação jurisdicionais
A29: SESEG - 15771771 | B29: Prestação de serviços continuados de manutenção no elevador localizado nas dependências da Seção Judiciária de Roraima | C29: Alinha-se com as determinações estabelecidas no Plano Estratégico da Justiça Federal da 1ª Região – Planest 2021-2026 | D29: A Seção Judiciária do Estado Roraima, visando atender às normas de acessibilidade aos prédios públicos, em especial à ABNT NBR-9050 | E29: 1 | F29: Prestação de serviços continuados de manutenção no elevador localizado nas dependências da Seção Judiciária de Roraima | G29: 20338 | I29: 12 | J29: 7560 | K29: NÃO | L29: 2023-05-26 | M29: 12 Meses | N29: SIM | O29: Prorrogação | P29: 3 | R29: Descumprimento da lei de acessibilidade aos prédios públicos
A30: SESEG - 15771816 | B30: Prestação de serviços continuados de manutenção em 6(seis) no-breaks prediais localizados nas dependências da Seção Judiciária de Roraima | C30: Alinha-se com as determinações estabelecidas no Plano Estratégico da Justiça Federal da 1ª Região – Planest 2021-2026 | D30: com o objetivo de assegurar aos usuários da Seção Judiciária de Roraima uma prestação jurisdicional de forma contínua, ou seja, que esta não fique sobrestada em decorrência da falta de fornecimento de energia elétrica e por oscilações | E30: 1 | F30: Prestação de serviços continuados de manutenção em 6(seis) no-breaks prediais localizados nas dependências da Seção Judiciária de Roraima | G30: 2658 | I30: 12 | J30: 34500 | K30: SIM | L30: 2023-08-31 | M30: 12 Meses | N30: SIM | O30: Prorrogação | P30: 4 | R30: Interrupção total dos sistemas informatizados
A31: SESEG - 15771899 | B31: Prestação de serviços continuados de fornecimento de energia elétrica para a Seção Judiciária de Roraima | C31: Alinha-se com as determinações estabelecidas no Plano Estratégico da Justiça Federal da 1ª Região – Planest 2021-2026 | D31: Grande maioria dos equipamentos funcionam à base de energia elétrica, razão pela qual se faz imprescindível a contratação ora pretendida | E31: 1 | F31: Prestação de serviços continuados de fornecimento de energia elétrica para a Seção Judiciária de Roraima | G31: 5355 | I31: 12 | J31: 360000 | K31: NÃO | L31: 2023-06-30 | M31: 12 Meses | N31: SIM | O31: Inexigibilidade | P31: 4 | R31: Interrupção total dos sistemas informatizados e de todos equipamentos eletro-eletrônicos da Seccional
A32: SESEG - 15771980 | B32: Prestação de serviços continuados de abastecimento de água encanada para a Seção Judiciária de Roraima | C32: Alinha-se com as determinações estabelecidas no Plano Estratégico da Justiça Federal da 1ª Região – Planest 2021-2026 | D32: Item de primordial importância para limpeza das instalações físicas e irrigação das plantas que ornamentam o edifício | E32: 1 | F32: Prestação de serviços continuados de abastecimento de água encanada para a Seção Judiciária de Roraima | G32: 22845 | I32: 12 | J32: 3000 | K32: NÃO | L32: 2023-01-31 | M32: 12 Meses | N32: SIM | O32: Inexigibilidade | P32: 4 | R32: Riscos à saúde e bem-estar dos servidores, terceirizados e usuários das instalações da Seção Judiciária em decorrência de um ambiente insalubre
A33: SESEG - 15772019 | B33: Prestação de serviço de manutenção no grupo gerador, subestação e USCA localizados nas dependências da Seção Judiciária de Roraima | C33: Alinha-se com as determinações estabelecidas no Plano Estratégico da Justiça Federal da 1ª Região – Planest 2021-2026 | D33: Efetuar manutenção preventiva/corretiva no grupo gerador, subestação e USCA, com o objetivo de assegurar de forma contínua o fornecimento de energia elétrica em caso da interrupção do fornecimento por parte da concessionária | E33: 1 | F33: Prestação de serviço de manutenção no grupo gerador, subestação e USCA localizados nas dependências da Seção Judiciária de Roraima | G33: 2356 | I33: 1 | J33: 31725 | K33: NÃO | L33: 2023-12-08 | M33: 12 Meses | N33: NÃO | O33: Prorrogação | P33: 4 | Q33: Nos termos do artigo 33, inciso IV, da Lei n° 12.305/2010 – Política Nacional de Resíduos Sólidos e Resolução CONAMA n° 362, de 23/06/2005, a contratada deverá efetuar o recolhimento e o descarte adequado do óleo lubrificante usado . | R33: Interrupção total do fornecimento de energia elétrica
A34: SESEG - 15772067 | B34: Prestação de serviços continuados de manutenção preventiva/corretiva nos equipamentos que compõem os sistemas de abastecimento d'água e de combate a incêndio localizados nas dependências da Seção Judiciária de Roraima | C34: Alinha-se com as determinações estabelecidas no Plano Estratégico da Justiça Federal da 1ª Região – Planest 2021-2026 | D34: A contratação ora pretendida busca assegurar o funcionamento dos sistemas de combate a incêndio e de abastecimento d’água instalados no edifício-sede desta Seção Judiciária | E34: 1 | F34: Prestação de serviços continuados de manutenção preventiva/corretiva nos equipamentos que compõem os sistemas de abastecimento d'água e de combate a incêndio localizados nas dependências da Seção Judiciária de Roraima | G34: 1627 | I34: 2 | J34: 12000 | K34: NÃO | L34: 2023-11-03 | M34: 12 Meses | N34: NÃO | O34: Prorrogação | P34: 3 | Q34: Nos termos do artigo 33, inciso IV, da Lei n° 12.305/2010 – Política Nacional de Resíduos Sólidos e Resolução CONAMA n° 362, de 23/06/2005, a contratada deverá efetuar o recolhimento e o descarte adequados dos resíduos e embalagens utilizados | R34: Interrupção total do fornecimento de água encanada
A35: SESEG - 15711791 | B35: Manter o volume de dejetos contidos nas fossas sépticas em níveis aceitáveis, reduzindo-se a possibilidade de transbordamentos; Manter a rede de esgoto desobstruída, evitando-se, assim, transbordamentos e mau cheiro | C35: Alinha-se com as determinações estabelecidas no Plano Estratégico da Justiça Federal da 1ª Região – Planest 2021-2026 | D35: Pela necessidade em manter limpas e sem mal cheiro as caixas de gordura e as fossas que recebem os resíduos das torneiras e sanitários, buscando tornar o ambiente adequado para a utilização dos magistrados, servidores e jurisdicionados | E35: 2 | F35: Serviço de esgotamento de fossa séptica e remoção de detritos; Serviço de desobstrução de rede de esgoto | G35: 1627 | I35: 30 | J35: 7500 | K35: NÃO | L35: 2023-01-31 | M35: 12 Meses | N35: NÃO | O35: Dispensa | P35: 1 | Q35: Contratada deverá elaborar plano de gerenciamento de resíduos sólidos, sujeito à aprovação da autoridade competente | R35: Riscos à saúde e bem-estar dos servidores, terceirizados e usuários das instalações da Seção Judiciária em decorrência de um ambiente insalubre
A36: SESEG - 15711835 | B36: Carga de gás de cozinha (GLP) em botija de 13 quilos | C36: Alinha-se com as determinações estabelecidas no Plano Estratégico da Justiça Federal da 1ª Região – Planest 2021-2026 | D36: Devido à necessidade de se preparar cafés, chás e refeições em geral para eventos tais como júris, conciliações, audiências, etc., faz-se necessária a aquisição do item. | E36: 1 | F36: Carga de gás de cozinha (GLP) em botija de 13 quilos | G36: 461652 | I36: 30 | J36: 4500 | K36: SIM | L36: 2023-01-31 | M36: 12 Meses | N36: SIM | O36: Dispensa | P36: 1 | Q36: O GLP apresenta grande aplicabilidade como combustível devido as suas características de alto poder calorífico, excelente qualidade de queima, fácil manuseio, baixo impacto ambiental e facilidade de armazenamento. | R36: Prejuízo à realização das tarefas rotineiras das áreas meio e fim, com impactos negativos na produtividade.
A37: SESEG - 15711889 | B37: Fornecimento de gêneros alimentícios (café, açucar,adoçante, água mineral) | C37: Alinha-se com as determinações estabelecidas no Plano Estratégico da Justiça Federal da 1ª Região – Planest 2021-2026 | D37: Devido à necessidade de se preparar café e disponibilizar água potável para eventos tais como júris, conciliações, audiências, etc., faz-se necessária a aquisição dos itens em comento | E37: 6 | F37: Fornecimento de gêneros alimentícios | I37: 6230 | J37: 68944 | K37: SIM | L37: 2023-03-31 | M37: 12 Meses | N37: SIM | O37: Licitação | P37: 2 | Q37: quanto ao descarte, é de responsabilidade da empresa contratada de serviços de limpeza e conservação a realização do adequado acondicionamento dos resíduos recicláveis descartados pela Administração | R37: Prejuízo à realização das tarefas rotineiras das áreas meio e fim, com impactos negativos na produtividade
A38: SESEG - 15712033 | B38: contratação dos serviços de manutenções preventivas periódicas e corretivas nos aparelhos condicionadores de ar | C38: Alinha-se com as determinações estabelecidas no Plano Estratégico da Justiça Federal da 1ª Região – Planest 2021-2026 | D38: Em razão da necessidade de proporcionar condições adequadas às pessoas que se utilizam das instalações da Seção Judiciária de Roraima | E38: 21 | F38: contratação dos serviços de manutenções preventivas periódicas e corretivas nos aparelhos condicionadores de ar | G38: 2771 | I38: 432 | J38: 85422.58 | K38: SIM | L38: 2023-03-31 | M38: 12 Meses | N38: SIM | O38: Licitação | P38: 3 | Q38: Gradualmente, a Seccional vem substituindo os aparelhos condicionadores de ar por equipamentos que possuem tecnologia inverter, que consomem menos energia elétrica | R38: Prejuízo à realização das tarefas rotineiras das áreas meio e fim, com impactos negativos na produtividade
A39: SESEG - 15712415 | B39: Aquisição de peças para aparelhos condicionadores de ar, | C39: Alinha-se com as determinações estabelecidas no Plano Estratégico da Justiça Federal da 1ª Região – Planest 2021-2026 | D39: Em razão da necessidade de proporcionar condições adequadas às pessoas que se utilizam das instalações da Seção Judiciária de Roraima | E39: 21 | F39: Aquisição de peças para aparelhos condicionadores de ar, | I39: 118 | J39: 14328.37 | K39: SIM | L39: 2023-02-28 | M39: 12 Meses | N39: SIM | O39: Licitação | P39: 3 | Q39: Gradualmente, estamos substituindo os nossos equipamentos condicionadores de ar por aparelhos que funcionem à base de gás R410A, que é chamado de ecológico porque não possui CFCs (clorofluorcarbonos) | R39: Prejuízo à realização das tarefas rotineiras das áreas meio e fim, com impactos negativos na produtividade
A40: SESEG - 15713211 | B40: Aquisição de Bateria selada regulada por válvula, estacionária 45Ah, 12V. | C40: Alinha-se com as determinações estabelecidas no Plano Estratégico da Justiça Federal da 1ª Região – Planest 2021-2026 | D40: Continuidade dos Serviços Públicos, assegurando aos usuários da Seção Judiciária de Roraima uma prestação jurisdicional de forma contínua | E40: 1 | F40: Aquisição de Bateria selada regulada por válvula, estacionária 45Ah, 12V. | G40: 429349 | I40: 32 | J40: 18688 | K40: SIM | L40: 2023-06-30 | M40: 12 Meses | N40: SIM | O40: Licitação | P40: 4 | Q40: Só será admitida a oferta de baterias cuja composição respeite os limites máximos de chumbo, cádmio e mercúrio admitidos na Resolução CONAMA n° 401, de 04/11/2008 | R40: Interrupção total dos sistemas informatizados
A41: SESEG - 15713330 | B41: Aquisição de materiais elétrico/hidráulico | C41: Alinha-se com as determinações estabelecidas no Plano Estratégico da Justiça Federal da 1ª Região – Planest 2021-2026 | D41: Garantir o pleno funcionamento dos sistemas prediais e reduzir a probabilidade de falhas e/ou degradação das instalações físicas da Seccional, através de serviços de reparos e consertos | E41: 17 | F41: Aquisição de materiais elétrico/hidráulico | I41: 717 | J41: 17683.45 | K41: SIM | L41: 2023-09-30 | M41: 12 Meses | N41: SIM | O41: Licitação | P41: 3 | Q41: No caso específico das lâmpadas, optou-se pelas de led, que consomem menos energia elétrica e têm uma maior longevidade | R41: Riscos à segurança e bem-estar dos servidores, terceirizados e usuários das instalações da Seção Judiciária de Roraima em decorrência de um ambiente com instalações prediais inadequadas à prestação jurisdicionais
A42: SESEG - 15713366 | B42: Aquisição de materiais de copa e cozinha | C42: Alinha-se com as determinações estabelecidas no Plano Estratégico da Justiça Federal da 1ª Região – Planest 2021-2026 | D42: Devido à necessidade de se preparar e servir gêneros alimentícios para eventos tais como júris, conciliações, audiências, etc., faz-se necessária a aquisição dos itens | E42: 14 | F42: Aquisição de materiais de copa e cozinha | I42: 616 | J42: 10754 | K42: SIM | L42: 2023-09-30 | M42: 12 Meses | N42: SIM | O42: Licitação | P42: 2 | Q42: Em relação aos copos descartáveis, não se optou por materiais biodegradáveis pois o custo dos mesmos são elevados quando comparados aos descartáveis e, no momento atual, torna-se inviável a aquisição | R42: Prejuízo à realização das tarefas rotineiras das áreas meio e fim, com impactos negativos na produtividade
A43: SESEG - 15713404 | B43: Prestação de serviços de áudio e vídeo que objetive o registro de Sessão de julgamento do Tribunal de Júri Federal da Justiça Federal de 1ª Instância – Seção Judiciária de Roraima. | C43: Alinha-se com as determinações estabelecidas no Plano Estratégico da Justiça Federal da 1ª Região – Planest 2021-2026 | D43: Em decorrência da ausência de profissional técnico capacitado para a operacionalização dos serviços de sonorização e vídeo, bem como da carência de equipamentos adequados para a gravação das seções do Tribunal de Júri | E43: 1 | F43: Prestação de serviços de áudio e vídeo que objetive o registro de Sessão de julgamento do Tribunal de Júri Federal da Justiça Federal de 1ª Instância – Seção Judiciária de Roraima | G43: 13749 | I43: 3 | J43: 13500 | K43: SIM | L43: 2023-06-30 | M43: 12 Meses | N43: NÃO | O43: Dispensa | P43: 3 | R43: Prejuízo à realização das tarefas rotineiras das áreas meio e fim, com impactos negativos na produtividade
A44: SESEG - 15713439 | B44: Hospedagem para os participantes de Sessões do Tribunal do Júri | C44: Alinha-se com as determinações estabelecidas no Plano Estratégico da Justiça Federal da 1ª Região – Planest 2021-2026 | D44: Uma vez que as Sessões do Tribunal do Júri têm possibilidade de se entender por mais de 1(um) dia, há a necessidade de se efetuar a contratação em tela para que seja garantida a incomunicabilidade de jurados e testemunhas | E44: 2 | F44: Hospedagem para os participantes de Sessões do Tribunal do Júri | G44: 9946 | I44: 18 | J44: 5550 | K44: SIM | L44: 2023-06-30 | M44: 12 Meses | N44: NÃO | O44: Dispensa | P44: 3 | R44: Prejuízo à realização das tarefas rotineiras das áreas meio e fim, com impactos negativos na produtividade
A45: SESEG - 15713478 | B45: Fornecimento de refeições do tipo almoço, jantar, lanches, a serem servidas para os participantes de Sessões do Tribunal do Júri | C45: Alinha-se com as determinações estabelecidas no Plano Estratégico da Justiça Federal da 1ª Região – Planest 2021-2026 | D45: Uma vez que a duração das Sessões do Tribunal do Júri é imprecisa, podendo se estender por vários dias | E45: 2 | F45: Fornecimento de refeições do tipo almoço, jantar, lanches, a serem servidas para os participantes de Sessões do Tribunal do Júri | G45: 3697 | I45: 300 | J45: 6750 | K45: SIM | L45: 2023-06-30 | M45: 12 Meses | N45: SIM | O45: Dispensa | P45: 3 | R45: Prejuízo à realização das tarefas rotineiras das áreas meio e fim, com impactos negativos na produtividade
A46: SEDER - 16594403 | B46: Capacitações para exercício de 2023, com base no Levantamento de Necessidade de Capacitação, Matriz de Planejamento e Plano de Capacitação 2023 da SJRR. | C46: Alinha-se, dentre outras, com a Res. Presi 6903944, de 19/12/2018, que institui a Política de Gestão de Pessoas no âmbito da Justiça Federal da 1ª Região. | D46: A necessidade de desenvolvimento dos servidores para assegurar o constante aprimoramento das equipes de trabalho, buscando mais eficiência na atuação da Justiça. | E46: N/A | F46: Capacitações de serviodres para exercício de 2023. | I46: 55 | J46: 60000 | K46: NÃO | L46: 2022-09-30 | M46: 30 dias | N46: SIM | O46: Dispensa | P46: 4 | Q46: Serão priorizadas as ações de capacitação realizadas à distância por meio do aplicativo Teams, Zoom ou Moodle para evitar o deslocamento de servidores, deslocamento em grandes distâncias, consumo de papel com materiais impressos, etc

Sheet CAC
C1: UG N° | D1: ANO
C2: CRONOGRAMA ANUAL DE EXECUÇÃO DAS CONTRATAÇÕES – CAC
A3: Dados do DOD | H3: Definição de Tempo das Etapas | W3: Datas Limites de Conclusão das Fases Intermediárias
A4: Unidade Requisitante (informar ID do DOD) | B4: Objeto | C4: PAE - SEI (informar nº do processo de contratação, quando autuado) | D4: Data-limite para entrega dos bens ou início da prestação dos serviços | F4: Valor total estimado | G4: Forma de Contratação | H4: Contrato ou Nota de empenho? (C/N) | I4: Seleção com Amostra? (S/N) | J4: Qtd de Itens do Objeto | K4: TApETP (dias) | L4: TElabTR (dias) | M4: Licitação | P4: Dispensa/inexigibilidade | S4: Prorrogação/ renovação | T4: TElabCont/ NE (dias) | U4: Recesso forense 2021/22 | V4: TOTAL TEMPO DIAS | W4: Dt entrega ETP | X4: Dt entrega TR/PB | Y4: Aprovação do Termo de Referência (licitação) | Z4: Publicação do Edital (licitação) | AA4: Homologação do Resultado (licitação) | AB4: Procedimentos de prorrogação/ renovação | AC4: Dt Contratação
E5: Prazo estimado para execução e pagamento total da despesa | M5: TApTR (dias) | N5: TFILi (dias) | O5: TFELi (dias) | P5: TFICD (dias) | Q5: Instrução processual | R5: Autorização da contratação | Y5: Conclusão Fase Interna da Contratação Direta (disp./inexig.) | Z5: Despacho Instrução Processual (disp./inexig.) | AA5: Autorização da contratação (disp./inexig.)
A6: =PAC!A2 -> SEVIT - 15317159 | B6: =IFERROR(VLOOKUP(A6,PAC!$A$2:$R$4981,2,0),"") -> Lavagem de veículos para os veículos oficiais da Seção Judiciária de Roraima. | D6: =IFERROR(VLOOKUP(A6,PAC!$A$2:$R$4981,12,0),"") -> 2023-03-01 | E6: =VLOOKUP(A6,PAC!$A$2:$R$4981,17,0) -> Utilização de produtos que agridam o meio-ambiente; Utilização de métodos que evitem o desperdício de água tratada, conforme Dec n. 48.138/2003. | F6: =IFERROR(VLOOKUP(A6,PAC!$A$2:$R$4981,10,0),"") -> 2010 | G6: =IFERROR(VLOOKUP(A6,PAC!$A$2:$R$4981,15,0),"") -> Dispensa | H6: C | I6: N | J6: =SUMIF(PAC!$A$2:$A$4983,A6,PAC!$E$2:$E$4986) -> 6 | K6: =IF(OR(G6="dispensa",G6="inexigibilidade",G6="licitação"),15,"0") -> 15 | L6: =IF(OR(G6="dispensa",G6="inexigibilidade",G6="licitação"),10,"0") -> 10 | M6: =IF(AND(G6="Licitação"),IF(AND(H6=""),0,IF(AND(H6="N"),AE6,IF(AND(H6="C"),AF6))),"0") -> 0 | N6: =IF(AND(G6="Licitação"),IF(AND(H6=""),"0",IF(AND(H6="N"),15,IF(AND(H6="C"),25))),"0") -> 0 | O6: =IF(AND(G6="Licitação"),IF(AND(I6=""),"0",IF(AND(I6="N"),25,IF(AND(I6="S"),40))),"0") -> 0 | P6: =IF(OR(G6="dispensa",G6="inexigibilidade"),IF(AND(J6=0),0,IF(AND(J6>0,J6<11),35,IF(AND(J6>10,J6<21),45,IF(AND(J6>20),60)))),"0") -> 35 | Q6: =IF(OR(G6="dispensa",G6="inexigibilidade"),3,"0") -> 3 | R6: =IF(OR(G6="dispensa",G6="inexigibilidade"),3,"0") -> 3 | S6: =IF(OR(G6="prorrogação",G6="renovação"),60,"0") -> 0 | T6: =IF(OR(G6="dispensa",G6="inexigibilidade",G6="licitação"),IF(AND(H6="C"),5,IF(AND(H6="N"),3,IF(AND(H6=""),"0"))),"0") -> 5 | U6: =IF(D6>44549,18,"0") -> 18 | V6: =SUM(K6:U6) -> 89 | W6: =IF(AND($G6="licitação"),$D6-$V6,IF(AND($G6="dispensa"),$D6-$V6,IF(AND($G6="inexigibilidade"),$D6-$V6,IF(AND($G6="renovação"),"---",IF(AND($G6="prorrogação"),"---",IF(AND($G6=""),"---")))))) -> 2022-12-02 | X6: =IF(AND($G6="licitação"),$W6+$K6+$L6,IF(AND($G6="dispensa"),$W6+$K6+$L6,IF(AND($G6="inexigibilidade"),$W6+$K6+$L6,IF(AND($G6="renovação"),"---",IF(AND($G6="prorrogação"),"---",IF(AND($G6=""),"---")))))) -> 2022-12-27 | Y6: =IF(AND($G6="licitação"),$X6+$M6,IF(AND($G6="dispensa"),$X6+$P6,IF(AND($G6="inexigibilidade"),$X6+$P6,IF(AND($G6="prorrogação"),"---",IF(AND($G6="renovação"),"---",IF(AND($G6=""),"---")))))) -> 2023-01-31 | Z6: =IF(AND($G6="licitação"),$Y6+$N6,IF(AND($G6="dispensa"),$Y6+$Q6,IF(AND($G6="inexigibilidade"),$Y6+$Q6,IF(AND($G6="prorrogação"),"---",IF(AND($G6="renovação"),"---",IF(AND($G6=""),"---")))))) -> 2023-02-03 | AA6: =IF(AND($G6="licitação"),$Z6+$O6,IF(AND($G6="dispensa"),$Z6+$R6,IF(AND($G6="inexigibilidade"),$Z6+$R6,IF(AND($G6="prorrogação"),"---",IF(AND($G6="renovação"),"---",IF(AND($G6=""),"---")))))) -> 2023-02-06 | AB6: =IF(AND($G6="licitação"),"---",IF(AND($G6="dispensa"),"---",IF(AND($G6="inexigibilidade"),"---",IF(AND($G6="renovação"),$D6-$V6,IF(AND($G6="prorrogação"),$D6-$V6,IF(AND($G6=""),"---")))))) -> --- | AC6: =IF(AND($G6="licitação"),AA6+T6,IF(AND($G6="dispensa"),AA6+T6,IF(AND($G6="inexigibilidade"),AA6+T6,IF(AND($G6="renovação"),$AB6+$S6,IF(AND($G6="prorrogação"),$AB6+$S6,IF(AND($G6=""),"---")))))) -> 2023-02-11 | AD6: =IFERROR(IF(OR(G6="dispensa",G6="inexigibilidade",G6="licitação"),IF(AND(W6<44568,AC6>44549),"Atenção!Há recesso forense no período! Fazer ajuste manual de datas, se for o caso.",""),IF(OR(G6="prorrogação",G6="renovação"),(IF(AND(AB6<44568,AC6>44549),"Atenção!Há recesso forense no período! Fazer ajuste manual de datas, se for o caso.")),"")),"") ->  | AE6: =IF(AND(H6="N",J6=1),20,IF(AND(H6="N",J6>1,J6<6),30,IF(AND(H6="N",J6>5,J6<16),45,IF(AND(H6="N",J6>15),70)))) -> FALSE | AF6: =IF(AND(H6="C",J6=1),40,IF(AND(H6="C",J6>1,J6<6),50,IF(AND(H6="C",J6>5,J6<16),75,IF(AND(H6="C",J6>15),100)))) -> 75
A7: =PAC!A3 -> SEVIT - 15317179 | B7: =IFERROR(VLOOKUP(A7,PAC!$A$2:$R$4981,2,0),"") -> Serviços de manutenção preventiva e corretiva a serem executados nos veículos oficiais pertencentes à SJRR. | D7: =IFERROR(VLOOKUP(A7,PAC!$A$2:$R$4981,12,0),"") -> 2023-03-30 | E7: =VLOOKUP(A7,PAC!$A$2:$R$4981,17,0) -> Destinação adequada de óleos lubrificantes para evitar contaminação do meio-ambiente. | F7: =IFERROR(VLOOKUP(A7,PAC!$A$2:$R$4981,10,0),"") -> 6750 | G7: =IFERROR(VLOOKUP(A7,PAC!$A$2:$R$4981,15,0),"") -> Dispensa | H7: C | I7: N | J7: =SUMIF(PAC!$A$2:$A$4983,A7,PAC!$E$2:$E$4986) -> 1 | K7: =IF(OR(G7="dispensa",G7="inexigibilidade",G7="licitação"),15,"0") -> 15 | L7: =IF(OR(G7="dispensa",G7="inexigibilidade",G7="licitação"),10,"0") -> 10 | M7: =IF(AND(G7="Licitação"),IF(AND(H7=""),0,IF(AND(H7="N"),AE7,IF(AND(H7="C"),AF7))),"0") -> 0 | N7: =IF(AND(G7="Licitação"),IF(AND(H7=""),"0",IF(AND(H7="N"),15,IF(AND(H7="C"),25))),"0") -> 0 | O7: 0 | P7: 35 | Q7: 3 | R7: 3 | S7: 0 | T7: 5 | U7: 18 | V7: 89 | W7: =IF(AND($G7="licitação"),$D7-$V7,IF(AND($G7="dispensa"),$D7-$V7,IF(AND($G7="inexigibilidade"),$D7-$V7,IF(AND($G7="renovação"),"---",IF(AND($G7="prorrogação"),"---",IF(AND($G7=""),"---")))))) -> 2022-12-31 | X7: =IF(AND($G7="licitação"),$W7+$K7+$L7,IF(AND($G7="dispensa"),$W7+$K7+$L7,IF(AND($G7="inexigibilidade"),$W7+$K7+$L7,IF(AND($G7="renovação"),"---",IF(AND($G7="prorrogação"),"---",IF(AND($G7=""),"---")))))) -> 2023-01-25 | Y7: =IF(AND($G7="licitação"),$X7+$M7,IF(AND($G7="dispensa"),$X7+$P7,IF(AND($G7="inexigibilidade"),$X7+$P7,IF(AND($G7="prorrogação"),"---",IF(AND($G7="renovação"),"---",IF(AND($G7=""),"---")))))) -> 2023-03-01 | Z7: =IF(AND($G7="licitação"),$Y7+$N7,IF(AND($G7="dispensa"),$Y7+$Q7,IF(AND($G7="inexigibilidade"),$Y7+$Q7,IF(AND($G7="prorrogação"),"---",IF(AND($G7="renovação"),"---",IF(AND($G7=""),"---")))))) -> 2023-03-04 | AA7: =IF(AND($G7="licitação"),$Z7+$O7,IF(AND($G7="dispensa"),$Z7+$R7,IF(AND($G7="inexigibilidade"),$Z7+$R7,IF(AND($G7="prorrogação"),"---",IF(AND($G7="renovação"),"---",IF(AND($G7=""),"---")))))) -> 2023-03-07 | AB7: =IF(AND($G7="licitação"),"---",IF(AND($G7="dispensa"),"---",IF(AND($G7="inexigibilidade"),"---",IF(AND($G7="renovação"),$D7-$V7,IF(AND($G7="prorrogação"),$D7-$V7,IF(AND($G7=""),"---")))))) -> --- | AC7: 2023-03-12 | AE7: FALSE | AF7: 40
A8: =PAC!A4 -> SEVIT - 15317201 | B8: =IFERROR(VLOOKUP(A8,PAC!$A$2:$R$4981,2,0),"") -> Fornecimento de combustíveis (gasolina comum, óleo diesel comum, óleo diesel S10 e etanol), destinados ao abastecimento dos veículos oficiais e do grupo gerador de energia elétrica da Justiça Federal de Primeira Instância - Seção Judiciária de Roraima | D8: =IFERROR(VLOOKUP(A8,PAC!$A$2:$R$4981,12,0),"") -> 2023-04-30 | E8: =VLOOKUP(A8,PAC!$A$2:$R$4981,17,0) -> Fornecedor deverá constar do Cadastro Técnico Federal de Atividades Potencialmente Poluidoras e Utilizadoras de Recursos Ambientais – CTF/APP | F8: =IFERROR(VLOOKUP(A8,PAC!$A$2:$R$4981,10,0),"") -> 8872 | G8: =IFERROR(VLOOKUP(A8,PAC!$A$2:$R$4981,15,0),"") -> Licitação | H8: C | I8: N | J8: =SUMIF(PAC!$A$2:$A$4983,A8,PAC!$E$2:$E$4986) -> 4 | K8: 15 | L8: 10 | M8: 50 | N8: 25 | O8: 25 | P8: 0 | Q8: 0 | R8: 0 | S8: 0 | T8: 5 | U8: 18 | V8: 148 | W8: =IF(AND($G8="licitação"),$D8-$V8,IF(AND($G8="dispensa"),$D8-$V8,IF(AND($G8="inexigibilidade"),$D8-$V8,IF(AND($G8="renovação"),"---",IF(AND($G8="prorrogação"),"---",IF(AND($G8=""),"---")))))) -> 2022-12-03 | X8: =IF(AND($G8="licitação"),$W8+$K8+$L8,IF(AND($G8="dispensa"),$W8+$K8+$L8,IF(AND($G8="inexigibilidade"),$W8+$K8+$L8,IF(AND($G8="renovação"),"---",IF(AND($G8="prorrogação"),"---",IF(AND($G8=""),"---")))))) -> 2022-12-28 | Y8: =IF(AND($G8="licitação"),$X8+$M8,IF(AND($G8="dispensa"),$X8+$P8,IF(AND($G8="inexigibilidade"),$X8+$P8,IF(AND($G8="prorrogação"),"---",IF(AND($G8="renovação"),"---",IF(AND($G8=""),"---")))))) -> 2023-02-16 | Z8: =IF(AND($G8="licitação"),$Y8+$N8,IF(AND($G8="dispensa"),$Y8+$Q8,IF(AND($G8="inexigibilidade"),$Y8+$Q8,IF(AND($G8="prorrogação"),"---",IF(AND($G8="renovação"),"---",IF(AND($G8=""),"---")))))) -> 2023-03-13 | AA8: =IF(AND($G8="licitação"),$Z8+$O8,IF(AND($G8="dispensa"),$Z8+$R8,IF(AND($G8="inexigibilidade"),$Z8+$R8,IF(AND($G8="prorrogação"),"---",IF(AND($G8="renovação"),"---",IF(AND($G8=""),"---")))))) -> 2023-04-07 | AB8: =IF(AND($G8="licitação"),"---",IF(AND($G8="dispensa"),"---",IF(AND($G8="inexigibilidade"),"---",IF(AND($G8="renovação"),$D8-$V8,IF(AND($G8="prorrogação"),$D8-$V8,IF(AND($G8=""),"---")))))) -> --- | AC8: 2023-04-12 | AE8: FALSE | AF8: 50
A9: =PAC!A5 -> SEVIT - 15317489 | B9: =IFERROR(VLOOKUP(A9,PAC!$A$2:$R$4981,2,0),"") -> Serviços de manutenção preventiva e corretiva de Porta Giratória Detector de Metais. | D9: =IFERROR(VLOOKUP(A9,PAC!$A$2:$R$4981,12,0),"") -> 2023-06-07 | E9: =VLOOKUP(A9,PAC!$A$2:$R$4981,17,0) -> 0 | F9: =IFERROR(VLOOKUP(A9,PAC!$A$2:$R$4981,10,0),"") -> 5500 | G9: =IFERROR(VLOOKUP(A9,PAC!$A$2:$R$4981,15,0),"") -> Prorrogação | H9: C | I9: N | J9: =SUMIF(PAC!$A$2:$A$4983,A9,PAC!$E$2:$E$4986) -> 2 | K9: 0 | L9: 0 | M9: 0 | N9: 0 | O9: 0 | P9: 0 | Q9: 0 | R9: 0 | S9: 60 | T9: 0 | U9: 18 | V9: 78 | W9: =IF(AND($G9="licitação"),$D9-$V9,IF(AND($G9="dispensa"),$D9-$V9,IF(AND($G9="inexigibilidade"),$D9-$V9,IF(AND($G9="renovação"),"---",IF(AND($G9="prorrogação"),"---",IF(AND($G9=""),"---")))))) -> --- | X9: =IF(AND($G9="licitação"),$W9+$K9+$L9,IF(AND($G9="dispensa"),$W9+$K9+$L9,IF(AND($G9="inexigibilidade"),$W9+$K9+$L9,IF(AND($G9="renovação"),"---",IF(AND($G9="prorrogação"),"---",IF(AND($G9=""),"---")))))) -> --- | Y9: =IF(AND($G9="licitação"),$X9+$M9,IF(AND($G9="dispensa"),$X9+$P9,IF(AND($G9="inexigibilidade"),$X9+$P9,IF(AND($G9="prorrogação"),"---",IF(AND($G9="renovação"),"---",IF(AND($G9=""),"---")))))) -> --- | Z9: =IF(AND($G9="licitação"),$Y9+$N9,IF(AND($G9="dispensa"),$Y9+$Q9,IF(AND($G9="inexigibilidade"),$Y9+$Q9,IF(AND($G9="prorrogação"),"---",IF(AND($G9="renovação"),"---",IF(AND($G9=""),"---")))))) -> --- | AA9: =IF(AND($G9="licitação"),$Z9+$O9,IF(AND($G9="dispensa"),$Z9+$R9,IF(AND($G9="inexigibilidade"),$Z9+$R9,IF(AND($G9="prorrogação"),"---",IF(AND($G9="renovação"),"---",IF(AND($G9=""),"---")))))) -> --- | AB9: =IF(AND($G9="licitação"),"---",IF(AND($G9="dispensa"),"---",IF(AND($G9="inexigibilidade"),"---",IF(AND($G9="renovação"),$D9-$V9,IF(AND($G9="prorrogação"),$D9-$V9,IF(AND($G9=""),"---")))))) -> 2023-03-21 | AC9: 2023-05-20 | AD9: FALSE | AE9: FALSE | AF9: 50
A10: =PAC!A6 -> SEVIT - 15342869 | B10: =IFERROR(VLOOKUP(A10,PAC!$A$2:$R$4981,2,0),"") -> Serviços de seguro automotivo para os veículos oficiais que integram a frota da SJRR. | D10: =IFERROR(VLOOKUP(A10,PAC!$A$2:$R$4981,12,0),"") -> 2023-06-07 | E10: =VLOOKUP(A10,PAC!$A$2:$R$4981,17,0) -> Observância da legislação atinente às melhores práticas de sustentabilidade ambiental no âmbito das contratações públicas. | F10: =IFERROR(VLOOKUP(A10,PAC!$A$2:$R$4981,10,0),"") -> 7123 | G10: =IFERROR(VLOOKUP(A10,PAC!$A$2:$R$4981,15,0),"") -> Dispensa | H10: C | I10: N | J10: =SUMIF(PAC!$A$2:$A$4983,A10,PAC!$E$2:$E$4986) -> 1 | K10: 15 | L10: 10 | M10: 0 | N10: 0 | O10: 0 | P10: 35 | Q10: 3 | R10: 3 | S10: 0 | T10: 5 | U10: 18 | V10: 89 | W10: 2023-03-10 | X10: 2023-04-04 | Y10: 2023-05-09 | Z10: 2023-05-12 | AA10: 2023-05-15 | AB10: --- | AC10: 2023-05-20 | AE10: FALSE | AF10: 40
A11: =PAC!A7 -> SEVIT - 15343725 | B11: =IFERROR(VLOOKUP(A11,PAC!$A$2:$R$4981,2,0),"") -> Contratar ou firmar convênio com instituições de segurança pública, para realização de Curso de Treinamento de Tiro, para os servidores, Agentes da Polícia Judicial, aptos a portar arma de fogo da Seção Judiciária de Roraima. | D11: =IFERROR(VLOOKUP(A11,PAC!$A$2:$R$4981,12,0),"") -> 2023-08-30 | E11: =VLOOKUP(A11,PAC!$A$2:$R$4981,17,0) -> Descarte correto dos materiais empregados no curso | F11: =IFERROR(VLOOKUP(A11,PAC!$A$2:$R$4981,10,0),"") -> 4500 | G11: =IFERROR(VLOOKUP(A11,PAC!$A$2:$R$4981,15,0),"") -> Dispensa | H11: C | I11: N | J11: =SUMIF(PAC!$A$2:$A$4983,A11,PAC!$E$2:$E$4986) -> 1 | K11: 15 | L11: 10 | M11: 0 | N11: 0 | O11: 0 | P11: 35 | Q11: 3 | R11: 3 | S11: 0 | T11: 5 | U11: 18 | V11: 89 | W11: 2023-06-02 | X11: 2023-06-27 | Y11: 2023-08-01 | Z11: 2023-08-04 | AA11: 2023-08-07 | AB11: --- | AC11: 2023-08-12 | AE11: =IF(AND(H11="N",J11=1),20,IF(AND(H11="N",J11>1,J11<6),30,IF(AND(H11="N",J11>5,J11<16),45,IF(AND(H11="N",J11>15),70)))) -> FALSE | AF11: 40
A12: =PAC!A8 -> SEVIT - 15344700 | B12: =IFERROR(VLOOKUP(A12,PAC!$A$2:$R$4981,2,0),"") -> Serviços de vigilância armada e segurança patrimonial 24h, com postos nos principais locais de acesso do edifício-sede da Seção Judiciária de Roraima. | D12: =IFERROR(VLOOKUP(A12,PAC!$A$2:$R$4981,12,0),"") -> 2023-10-26 | E12: =VLOOKUP(A12,PAC!$A$2:$R$4981,17,0) -> Promover ações educativas aos seus colaboradores sobre o consumo eficiente de energia elétrica e água | F12: =IFERROR(VLOOKUP(A12,PAC!$A$2:$R$4981,10,0),"") -> 295269.36 | G12: =IFERROR(VLOOKUP(A12,PAC!$A$2:$R$4981,15,0),"") -> Prorrogação | H12: C | I12: N | J12: =SUMIF(PAC!$A$2:$A$4983,A12,PAC!$E$2:$E$4986) -> 3 | K12: 0 | L12: 0 | M12: 0 | N12: 0 | O12: 0 | P12: 0 | Q12: 0 | R12: 0 | S12: 60 | T12: 0 | U12: 18 | V12: 78 | W12: --- | X12: --- | Y12: --- | Z12: --- | AA12: --- | AB12: 2023-08-09 | AC12: 2023-10-08 | AD12: FALSE | AE12: FALSE | AF12: 50
A13: =PAC!A9 -> SEVIT - 15344763 | B13: =IFERROR(VLOOKUP(A13,PAC!$A$2:$R$4981,2,0),"") -> Serviços de treinamento (certificação) de atualização e formação de Brigada de Prevenção e Combate a Incêndio. | D13: =IFERROR(VLOOKUP(A13,PAC!$A$2:$R$4981,12,0),"") -> 2023-10-01 | E13: =VLOOKUP(A13,PAC!$A$2:$R$4981,17,0) -> Cumprir, no que couber, as exigências do art. 6° da Instrução Norma MPOG n°01, de 19 de janeiro de 2010, que estabelece as práticas de sustentabilidade na execução dos serviços | F13: =IFERROR(VLOOKUP(A13,PAC!$A$2:$R$4981,10,0),"") -> 2400 | G13: =IFERROR(VLOOKUP(A13,PAC!$A$2:$R$4981,15,0),"") -> Dispensa | H13: C | I13: N | J13: =SUMIF(PAC!$A$2:$A$4983,A13,PAC!$E$2:$E$4986) -> 1 | K13: 15 | L13: 10 | M13: 0 | N13: 0 | O13: 0 | P13: 35 | Q13: 3 | R13: 3 | S13: 0 | T13: 5 | U13: 18 | V13: 89 | W13: 2023-07-04 | X13: 2023-07-29 | Y13: 2023-09-02 | Z13: 2023-09-05 | AA13: 2023-09-08 | AB13: --- | AC13: 2023-09-13 | AE13: =IF(AND(H13="N",J13=1),20,IF(AND(H13="N",J13>1,J13<6),30,IF(AND(H13="N",J13>5,J13<16),45,IF(AND(H13="N",J13>15),70)))) -> FALSE | AF13: 40
A14: =PAC!A10 -> SEVIT - 15345811 | B14: =IFERROR(VLOOKUP(A14,PAC!$A$2:$R$4981,2,0),"") -> Serviços de recarga e de manutenção dos extintores de incêndio pertencentes à Seção Judiciária de Roraima. | D14: =IFERROR(VLOOKUP(A14,PAC!$A$2:$R$4981,12,0),"") -> 2023-10-01 | E14: =VLOOKUP(A14,PAC!$A$2:$R$4981,17,0) -> Adotar boas práticas de otimização de recursos/redução de desperdícios/ menor poluição | F14: =IFERROR(VLOOKUP(A14,PAC!$A$2:$R$4981,10,0),"") -> 6250 | G14: =IFERROR(VLOOKUP(A14,PAC!$A$2:$R$4981,15,0),"") -> Dispensa | H14: C | I14: N | J14: =SUMIF(PAC!$A$2:$A$4983,A14,PAC!$E$2:$E$4986) -> 3 | K14: 15 | L14: 10 | M14: 0 | N14: 0 | O14: 0 | P14: 35 | Q14: 3 | R14: 3 | S14: 0 | T14: 5 | U14: 18 | V14: 89 | W14: 2023-07-04 | X14: 2023-07-29 | Y14: 2023-09-02 | Z14: 2023-09-05 | AA14: 2023-09-08 | AB14: --- | AC14: 2023-09-13 | AE14: =IF(AND(H14="N",J14=1),20,IF(AND(H14="N",J14>1,J14<6),30,IF(AND(H14="N",J14>5,J14<16),45,IF(AND(H14="N",J14>15),70)))) -> FALSE | AF14: 50
A15: =PAC!A11 -> SEVIT - 15345982 | B15: =IFERROR(VLOOKUP(A15,PAC!$A$2:$R$4981,2,0),"") -> Serviços de manutenção preventiva e corretiva de Equipamento de Inspeção de Raio X, tipo Scanner, modelo Spectrum 5030. | D15: =IFERROR(VLOOKUP(A15,PAC!$A$2:$R$4981,12,0),"") -> 2023-11-01 | E15: =VLOOKUP(A15,PAC!$A$2:$R$4981,17,0) -> 0 | F15: =IFERROR(VLOOKUP(A15,PAC!$A$2:$R$4981,10,0),"") -> 6800 | G15: =IFERROR(VLOOKUP(A15,PAC!$A$2:$R$4981,15,0),"") -> Prorrogação | H15: N | I15: N | J15: =SUMIF(PAC!$A$2:$A$4983,A15,PAC!$E$2:$E$4986) -> 2 | K15: 0 | L15: 0 | M15: 0 | N15: 0 | O15: 0 | P15: 0 | Q15: 0 | R15: 0 | S15: 60 | T15: 0 | U15: 18 | V15: 78 | W15: --- | X15: --- | Y15: --- | Z15: --- | AA15: --- | AB15: 2023-08-15 | AC15: 2023-10-14 | AD15: FALSE | AE15: =IF(AND(H15="N",J15=1),20,IF(AND(H15="N",J15>1,J15<6),30,IF(AND(H15="N",J15>5,J15<16),45,IF(AND(H15="N",J15>15),70)))) -> 30 | AF15: =IF(AND(H15="C",J15=1),40,IF(AND(H15="C",J15>1,J15<6),50,IF(AND(H15="C",J15>5,J15<16),75,IF(AND(H15="C",J15>15),100)))) -> FALSE
A16: =PAC!A12 -> SEVIT - 15846451 | B16: =IFERROR(VLOOKUP(A16,PAC!$A$2:$R$4981,2,0),"") -> Uniformes e acessórios de identificação visual, para os Agentes da Polícia Judicial. | D16: =IFERROR(VLOOKUP(A16,PAC!$A$2:$R$4981,12,0),"") -> 2023-04-01 | E16: =VLOOKUP(A16,PAC!$A$2:$R$4981,17,0) -> Devem ser utilizados, preferencialmente, produtos menos poluentes e agressivos ao meio ambiente que utilizem tecidos que tenham em sua composição fibras com maior resistência à tração e durabilidade. | F16: =IFERROR(VLOOKUP(A16,PAC!$A$2:$R$4981,10,0),"") -> 3340 | G16: =IFERROR(VLOOKUP(A16,PAC!$A$2:$R$4981,15,0),"") -> Dispensa | H16: N | I16: N | J16: =SUMIF(PAC!$A$2:$A$4983,A16,PAC!$E$2:$E$4986) -> 4 | K16: 15 | L16: 10 | M16: 0 | N16: 0 | O16: 0 | P16: 35 | Q16: 3 | R16: 3 | S16: 0 | T16: 3 | U16: 18 | V16: 87 | W16: 2023-01-04 | X16: 2023-01-29 | Y16: 2023-03-05 | Z16: 2023-03-08 | AA16: 2023-03-11 | AB16: --- | AC16: 2023-03-14 | AE16: =IF(AND(H16="N",J16=1),20,IF(AND(H16="N",J16>1,J16<6),30,IF(AND(H16="N",J16>5,J16<16),45,IF(AND(H16="N",J16>15),70)))) -> 30 | AF16: FALSE
A17: =PAC!A13 -> SECAM - 15328939 | B17: =IFERROR(VLOOKUP(A17,PAC!$A$2:$R$4981,2,0),"") -> Serviços de publicação de editais, avisos e notas oficiais de interesse desta Seccional em jornal local de grande circulação Regional. | D17: =IFERROR(VLOOKUP(A17,PAC!$A$2:$R$4981,12,0),"") -> 2023-01-01 | E17: =VLOOKUP(A17,PAC!$A$2:$R$4981,17,0) -> Não recebemos nenhum documento em forma física, apenas digitais, objetivando a redução do uso de papeis, tonners e demais produtos. | F17: =IFERROR(VLOOKUP(A17,PAC!$A$2:$R$4981,10,0),"") -> 4800 | G17: =IFERROR(VLOOKUP(A17,PAC!$A$2:$R$4981,15,0),"") -> Inexigibilidade | H17: N | I17: N | J17: =SUMIF(PAC!$A$2:$A$4983,A17,PAC!$E$2:$E$4986) -> 1 | K17: 15 | L17: 10 | M17: 0 | N17: 0 | O17: 0 | P17: 35 | Q17: 3 | R17: 3 | S17: 0 | T17: 3 | U17: 18 | V17: 87 | W17: 2022-10-06 | X17: 2022-10-31 | Y17: 2022-12-05 | Z17: 2022-12-08 | AA17: 2022-12-11 | AB17: --- | AC17: 2022-12-14 | AE17: =IF(AND(H17="N",J17=1),20,IF(AND(H17="N",J17>1,J17<6),30,IF(AND(H17="N",J17>5,J17<16),45,IF(AND(H17="N",J17>15),70)))) -> 20 | AF17: FALSE
A18: =PAC!A14 -> SECAM - 15732555 | B18: =IFERROR(VLOOKUP(A18,PAC!$A$2:$R$4981,2,0),"") -> Serviços de locação de 04 (quatro) fotocopiadoras, com fornecimento de suprimentos. | D18: =IFERROR(VLOOKUP(A18,PAC!$A$2:$R$4981,12,0),"") -> 2023-06-26 | E18: =VLOOKUP(A18,PAC!$A$2:$R$4981,17,0) -> O contrato prevê que o contratado faça a retirada dos cartuchos de tonners usados, para o descarte correto dos mesmos | F18: =IFERROR(VLOOKUP(A18,PAC!$A$2:$R$4981,10,0),"") -> 36000 | G18: =IFERROR(VLOOKUP(A18,PAC!$A$2:$R$4981,15,0),"") -> Prorrogação | H18: C | I18: N | J18: =SUMIF(PAC!$A$2:$A$4983,A18,PAC!$E$2:$E$4986) -> 1 | K18: 0 | L18: 0 | M18: 0 | N18: 0 | O18: 0 | P18: 0 | Q18: 0 | R18: 0 | S18: 60 | T18: 0 | U18: 18 | V18: 78 | W18: --- | X18: --- | Y18: --- | Z18: --- | AA18: --- | AB18: 2023-04-09 | AC18: 2023-06-08 | AD18: FALSE | AE18: =IF(AND(H18="N",J18=1),20,IF(AND(H18="N",J18>1,J18<6),30,IF(AND(H18="N",J18>5,J18<16),45,IF(AND(H18="N",J18>15),70)))) -> FALSE | AF18: =IF(AND(H18="C",J18=1),40,IF(AND(H18="C",J18>1,J18<6),50,IF(AND(H18="C",J18>5,J18<16),75,IF(AND(H18="C",J18>15),100)))) -> 40
A19: =PAC!A15 -> SECAM - 15732641 | B19: =IFERROR(VLOOKUP(A19,PAC!$A$2:$R$4981,2,0),"") -> Serviços de Telefonia Móvel Pessoal - SMP. | D19: =IFERROR(VLOOKUP(A19,PAC!$A$2:$R$4981,12,0),"") -> 2023-07-22 | E19: =VLOOKUP(A19,PAC!$A$2:$R$4981,17,0) -> Não recebemos mais nenhum tipo de documento de forma física, somente digitais, objetivando a economia em papel e demais insumos | F19: =IFERROR(VLOOKUP(A19,PAC!$A$2:$R$4981,10,0),"") -> 13052.88 | G19: =IFERROR(VLOOKUP(A19,PAC!$A$2:$R$4981,15,0),"") -> Licitação | H19: N | I19: N | J19: =SUMIF(PAC!$A$2:$A$4983,A19,PAC!$E$2:$E$4986) -> 11 | K19: 15 | L19: 10 | M19: 45 | N19: 15 | O19: 25 | P19: 0 | Q19: 0 | R19: 0 | S19: 0 | T19: 3 | U19: 18 | V19: 131 | W19: 2023-03-13 | X19: 2023-04-07 | Y19: 2023-05-22 | Z19: 2023-06-06 | AA19: 2023-07-01 | AB19: --- | AC19: 2023-07-04 | AE19: 45 | AF19: FALSE
A20: =PAC!A16 -> SECAM - 15331353 | B20: =IFERROR(VLOOKUP(A20,PAC!$A$2:$R$4981,2,0),"") -> Serviços de postagens e encomendas da Seção Judiciária de Roraima. | D20: =IFERROR(VLOOKUP(A20,PAC!$A$2:$R$4981,12,0),"") -> 2022-03-31 | E20: =VLOOKUP(A20,PAC!$A$2:$R$4981,17,0) -> Não recebemos nenhum documento em forma física, apenas digitais, objetivando a redução do uso de papeis e demais insumos. | F20: =IFERROR(VLOOKUP(A20,PAC!$A$2:$R$4981,10,0),"") -> 34000 | G20: =IFERROR(VLOOKUP(A20,PAC!$A$2:$R$4981,15,0),"") -> Prorrogação | H20: C | I20: N | J20: =SUMIF(PAC!$A$2:$A$4983,A20,PAC!$E$2:$E$4986) -> 1 | K20: 0 | L20: 0 | M20: 0 | N20: 0 | O20: 0 | P20: 0 | Q20: 0 | R20: 0 | S20: 60 | T20: 0 | U20: 18 | V20: 78 | W20: --- | X20: --- | Y20: --- | Z20: --- | AA20: --- | AB20: 2022-01-12 | AC20: 2022-03-13 | AD20: FALSE | AE20: FALSE | AF20: 40
A21: =PAC!A17 -> SECAM - 15732819 | B21: =IFERROR(VLOOKUP(A21,PAC!$A$2:$R$4981,2,0),"") -> Serviço de Telefonia Fixa Comutada. | D21: =IFERROR(VLOOKUP(A21,PAC!$A$2:$R$4981,12,0),"") -> 2023-08-28 | E21: =VLOOKUP(A21,PAC!$A$2:$R$4981,17,0) -> Não recebemos nenhum documento em forma física, apenas digitais, objetivando a redução do uso de papeis e demais insumos | F21: =IFERROR(VLOOKUP(A21,PAC!$A$2:$R$4981,10,0),"") -> 3605 | G21: =IFERROR(VLOOKUP(A21,PAC!$A$2:$R$4981,15,0),"") -> Licitação | H21: N | I21: N | J21: =SUMIF(PAC!$A$2:$A$4983,A21,PAC!$E$2:$E$4986) -> 6 | K21: 15 | L21: 10 | M21: 45 | N21: 15 | O21: 25 | P21: 0 | Q21: 0 | R21: 0 | S21: 0 | T21: 3 | U21: 18 | V21: 131 | W21: 2023-04-19 | X21: 2023-05-14 | Y21: 2023-06-28 | Z21: 2023-07-13 | AA21: 2023-08-07 | AB21: --- | AC21: 2023-08-10 | AE21: 45 | AF21: FALSE
A22: =PAC!A18 -> SEINF - 15328883 | B22: =IFERROR(VLOOKUP(A22,PAC!$A$2:$R$4981,2,0),"") -> Serviços técnicos especializados para apoio na área de TI para atividades de apoio. | D22: =IFERROR(VLOOKUP(A22,PAC!$A$2:$R$4981,12,0),"") -> 2023-01-31 | E22: =VLOOKUP(A22,PAC!$A$2:$R$4981,17,0) -> USO - suporte remoto (menor consumo de energia local). | F22: =IFERROR(VLOOKUP(A22,PAC!$A$2:$R$4981,10,0),"") -> 472680 | G22: =IFERROR(VLOOKUP(A22,PAC!$A$2:$R$4981,15,0),"") -> Licitação | H22: N | I22: N | J22: =SUMIF(PAC!$A$2:$A$4983,A22,PAC!$E$2:$E$4986) -> 1 | K22: 15 | L22: 10 | M22: 20 | N22: 15 | O22: 25 | P22: 0 | Q22: 0 | R22: 0 | S22: 0 | T22: 3 | U22: 18 | V22: 106 | W22: 2022-10-17 | X22: 2022-11-11 | Y22: 2022-12-01 | Z22: 2022-12-16 | AA22: 2023-01-10 | AB22: --- | AC22: 2023-01-13 | AE22: 20 | AF22: FALSE
A23: =PAC!A19 -> SELIT - 15330055 | B23: =IFERROR(VLOOKUP(A23,PAC!$A$2:$R$4981,2,0),"") -> Fornecimento de Passagem Aérea | D23: =IFERROR(VLOOKUP(A23,PAC!$A$2:$R$4981,12,0),"") -> 2023-04-02 | E23: =VLOOKUP(A23,PAC!$A$2:$R$4981,17,0) -> Todos os procedimentos são realizados de forma eletrônica, utilizando o Sistema de Solicitação de Viagens a Serviço - E-AVS, plataforma desenvolvida especificamente para este fim | F23: =IFERROR(VLOOKUP(A23,PAC!$A$2:$R$4981,10,0),"") -> 100000 | G23: =IFERROR(VLOOKUP(A23,PAC!$A$2:$R$4981,15,0),"") -> Licitação | H23: C | I23: N | J23: =SUMIF(PAC!$A$2:$A$4983,A23,PAC!$E$2:$E$4986) -> 2 | K23: 15 | L23: 10 | M23: 50 | N23: 25 | O23: 25 | P23: 0 | Q23: 0 | R23: 0 | S23: 0 | T23: 5 | U23: 18 | V23: 148 | W23: 2022-11-05 | X23: 2022-11-30 | Y23: 2023-01-19 | Z23: 2023-02-13 | AA23: 2023-03-10 | AB23: --- | AC23: 2023-03-15 | AE23: FALSE | AF23: 50
A24: =PAC!A20 -> SELIT - 15330056 | B24: =IFERROR(VLOOKUP(A24,PAC!$A$2:$R$4981,2,0),"") -> Aquisição de assinatura online para a plataforma de pesquisa preços | D24: =IFERROR(VLOOKUP(A24,PAC!$A$2:$R$4981,12,0),"") -> 2023-05-31 | F24: =IFERROR(VLOOKUP(A24,PAC!$A$2:$R$4981,10,0),"") -> 10865 | G24: =IFERROR(VLOOKUP(A24,PAC!$A$2:$R$4981,15,0),"") -> Dispensa | H24: N | I24: N | J24: =SUMIF(PAC!$A$2:$A$4983,A24,PAC!$E$2:$E$4986) -> 1 | K24: 15 | L24: 10 | M24: 0 | N24: 0 | O24: 0 | P24: 35 | Q24: 3 | R24: 3 | S24: 0 | T24: 3 | U24: 18 | V24: 87 | W24: 2023-03-05 | X24: 2023-03-30 | Y24: 2023-05-04 | Z24: 2023-05-07 | AA24: 2023-05-10 | AB24: --- | AC24: 2023-05-13 | AE24: 20 | AF24: FALSE
A25: =PAC!A21 -> SEBES - 15770124 | B25: =IFERROR(VLOOKUP(A25,PAC!$A$2:$R$4981,2,0),"") -> Assistência médica, psicológica e odontológica direta aos magistrados e servidores ativos, inativos, e aos seus dependentes | D25: =IFERROR(VLOOKUP(A25,PAC!$A$2:$R$4981,12,0),"") -> 2023-01-28 | F25: =IFERROR(VLOOKUP(A25,PAC!$A$2:$R$4981,10,0),"") -> 298017.72 | G25: =IFERROR(VLOOKUP(A25,PAC!$A$2:$R$4981,15,0),"") -> Licitação | H25: C | I25: N | J25: =SUMIF(PAC!$A$2:$A$4983,A25,PAC!$E$2:$E$4986) -> 4 | K25: 15 | L25: 10 | M25: 50 | N25: 25 | O25: 25 | P25: 0 | Q25: 0 | R25: 0 | S25: 0 | T25: 5 | U25: 18 | V25: 148 | W25: 2022-09-02 | X25: 2022-09-27 | Y25: 2022-11-16 | Z25: 2022-12-11 | AA25: 2023-01-05 | AB25: --- | AC25: 2023-01-10 | AE25: FALSE | AF25: 50
A26: =PAC!A22 -> SEBES - 15770520 | B26: =IFERROR(VLOOKUP(A26,PAC!$A$2:$R$4981,2,0),"") -> Manutenção preventiva e corretiva dos equipamentos do consultório odontológico da SJRR | D26: =IFERROR(VLOOKUP(A26,PAC!$A$2:$R$4981,12,0),"") -> 2023-07-29 | F26: =IFERROR(VLOOKUP(A26,PAC!$A$2:$R$4981,10,0),"") -> 6000 | G26: =IFERROR(VLOOKUP(A26,PAC!$A$2:$R$4981,15,0),"") -> Prorrogação | H26: N | I26: N | J26: =SUMIF(PAC!$A$2:$A$4983,A26,PAC!$E$2:$E$4986) -> 1 | K26: =IF(OR(G26="dispensa",G26="inexigibilidade",G26="licitação"),15,"0") -> 0 | L26: 0 | M26: 0 | N26: 0 | O26: 0 | P26: 0 | Q26: 0 | R26: 0 | S26: 60 | T26: 0 | U26: 18 | V26: 78 | W26: --- | X26: --- | Y26: --- | Z26: --- | AA26: --- | AB26: 2023-05-12 | AC26: 2023-07-11 | AE26: 20 | AF26: FALSE
A27: =PAC!A23 -> SEBES - 15330874 | B27: =IFERROR(VLOOKUP(A27,PAC!$A$2:$R$4981,2,0),"") -> Aquisição de Vacinas para imunização contra a gripe H1N1 | D27: =IFERROR(VLOOKUP(A27,PAC!$A$2:$R$4981,12,0),"") -> 2023-04-30 | F27: =IFERROR(VLOOKUP(A27,PAC!$A$2:$R$4981,10,0),"") -> 13800 | G27: =IFERROR(VLOOKUP(A27,PAC!$A$2:$R$4981,15,0),"") -> Dispensa | H27: C | I27: N | J27: =SUMIF(PAC!$A$2:$A$4983,A27,PAC!$E$2:$E$4986) -> 1 | K27: 15 | L27: 10 | M27: 0 | N27: 0 | O27: 0 | P27: 35 | Q27: 3 | R27: 3 | S27: 0 | T27: 5 | U27: 18 | V27: 89 | W27: 2023-01-31 | X27: 2023-02-25 | Y27: 2023-04-01 | Z27: 2023-04-04 | AA27: 2023-04-07 | AB27: --- | AC27: 2023-04-12 | AE27: FALSE | AF27: 40
A28: =PAC!A24 -> SEBES - 15330879 | B28: =IFERROR(VLOOKUP(A28,PAC!$A$2:$R$4981,2,0),"") -> Materiais e medicamentos para os consultórios médico e odontológico da Seção Judiciária de Roraima | D28: =IFERROR(VLOOKUP(A28,PAC!$A$2:$R$4981,12,0),"") -> 2023-07-31 | F28: =IFERROR(VLOOKUP(A28,PAC!$A$2:$R$4981,10,0),"") -> 25902.43 | G28: =IFERROR(VLOOKUP(A28,PAC!$A$2:$R$4981,15,0),"") -> Licitação | H28: C | I28: N | J28: =SUMIF(PAC!$A$2:$A$4983,A28,PAC!$E$2:$E$4986) -> 137 | K28: 15 | L28: 10 | M28: 100 | N28: 25 | O28: 25 | P28: 0 | Q28: 0 | R28: 0 | S28: 0 | T28: 5 | U28: 18 | V28: 198 | W28: 2023-01-14 | X28: 2023-02-08 | Y28: 2023-05-19 | Z28: 2023-06-13 | AA28: 2023-07-08 | AB28: --- | AC28: 2023-07-13 | AE28: FALSE | AF28: 100
A29: =PAC!A25 -> SEMAP - 15331081 | B29: =IFERROR(VLOOKUP(A29,PAC!$A$2:$R$4981,2,0),"") -> Aquisição de materiais de consumo diversos para consecução das atividades internas na SJRR. | D29: =IFERROR(VLOOKUP(A29,PAC!$A$2:$R$4981,12,0),"") -> 2023-03-31 | F29: =IFERROR(VLOOKUP(A29,PAC!$A$2:$R$4981,10,0),"") -> 52505 | G29: =IFERROR(VLOOKUP(A29,PAC!$A$2:$R$4981,15,0),"") -> Licitação | H29: C | I29: N | J29: =SUMIF(PAC!$A$2:$A$4983,A29,PAC!$E$2:$E$4986) -> 22 | K29: 15 | L29: 10 | M29: =IF(AND(G29="Licitação"),IF(AND(H29=""),0,IF(AND(H29="N"),AE29,IF(AND(H29="C"),AF29))),"0") -> 100 | N29: 25 | O29: 25 | P29: 0 | Q29: 0 | R29: 0 | S29: 0 | T29: 5 | U29: 18 | V29: 198 | W29: 2022-09-14 | X29: 2022-10-09 | Y29: 2023-01-17 | Z29: 2023-02-11 | AA29: 2023-03-08 | AB29: --- | AC29: 2023-03-13 | AE29: FALSE | AF29: 100
A30: =PAC!A26 -> SESEG - 15770821 | B30: =IFERROR(VLOOKUP(A30,PAC!$A$2:$R$4981,2,0),"") -> Serviços de limpeza, conservação, copeiragem e jardinagem, com fornecimento de material de limpeza e jardinagem. | D30: =IFERROR(VLOOKUP(A30,PAC!$A$2:$R$4981,12,0),"") -> 2023-01-31 | F30: =IFERROR(VLOOKUP(A30,PAC!$A$2:$R$4981,10,0),"") -> 451521.73 | G30: =IFERROR(VLOOKUP(A30,PAC!$A$2:$R$4981,15,0),"") -> Prorrogação | H30: C | I30: N | J30: =SUMIF(PAC!$A$2:$A$4983,A30,PAC!$E$2:$E$4986) -> 3 | K30: 0 | L30: 0 | M30: 0 | N30: 0 | O30: 0 | P30: 0 | Q30: 0 | R30: 0 | S30: 60 | T30: 0 | U30: 18 | V30: 78 | W30: --- | X30: --- | Y30: --- | Z30: --- | AA30: --- | AB30: 2022-11-14 | AC30: 2023-01-13 | AE30: FALSE | AF30: 50
A31: =PAC!A27 -> SESEG - 15770921 | B31: =IFERROR(VLOOKUP(A31,PAC!$A$2:$R$4981,2,0),"") -> Prestação de serviços continuados de apoio administrativo nas dependências da Seção Judiciária de Roraima | D31: =IFERROR(VLOOKUP(A31,PAC!$A$2:$R$4981,12,0),"") -> 2023-01-09 | F31: =IFERROR(VLOOKUP(A31,PAC!$A$2:$R$4981,10,0),"") -> 525433.92 | G31: =IFERROR(VLOOKUP(A31,PAC!$A$2:$R$4981,15,0),"") -> Licitação | H31: N | I31: N | J31: =SUMIF(PAC!$A$2:$A$4983,A31,PAC!$E$2:$E$4986) -> 1 | K31: 15 | L31: 10 | M31: 20 | N31: 15 | O31: 25 | P31: 0 | Q31: 0 | R31: 0 | S31: 0 | T31: 3 | U31: 18 | V31: 106 | W31: 2022-09-25 | X31: 2022-10-20 | Y31: 2022-11-09 | Z31: 2022-11-24 | AA31: 2022-12-19 | AB31: --- | AC31: 2022-12-22 | AE31: 20 | AF31: FALSE
A32: =PAC!A28 -> SESEG - 15771480 | B32: =IFERROR(VLOOKUP(A32,PAC!$A$2:$R$4981,2,0),"") -> Prestação de serviços continuados de manutenção predial nas dependências da Seção Judiciária de Roraima | D32: =IFERROR(VLOOKUP(A32,PAC!$A$2:$R$4981,12,0),"") -> 2023-03-06 | F32: =IFERROR(VLOOKUP(A32,PAC!$A$2:$R$4981,10,0),"") -> 85813.87 | G32: =IFERROR(VLOOKUP(A32,PAC!$A$2:$R$4981,15,0),"") -> Prorrogação | H32: N | I32: N | J32: =SUMIF(PAC!$A$2:$A$4983,A32,PAC!$E$2:$E$4986) -> 1 | K32: 0 | L32: 0 | M32: 0 | N32: 0 | O32: 0 | P32: 0 | Q32: 0 | R32: 0 | S32: 60 | T32: 0 | U32: 18 | V32: 78 | W32: --- | X32: --- | Y32: --- | Z32: --- | AA32: --- | AB32: 2022-12-18 | AC32: 2023-02-16 | AE32: 20 | AF32: FALSE
A33: =PAC!A29 -> SESEG - 15771771 | B33: =IFERROR(VLOOKUP(A33,PAC!$A$2:$R$4981,2,0),"") -> Prestação de serviços continuados de manutenção no elevador localizado nas dependências da Seção Judiciária de Roraima | D33: =IFERROR(VLOOKUP(A33,PAC!$A$2:$R$4981,12,0),"") -> 2023-05-26 | F33: =IFERROR(VLOOKUP(A33,PAC!$A$2:$R$4981,10,0),"") -> 7560 | G33: =IFERROR(VLOOKUP(A33,PAC!$A$2:$R$4981,15,0),"") -> Prorrogação | H33: C | I33: N | J33: =SUMIF(PAC!$A$2:$A$4983,A33,PAC!$E$2:$E$4986) -> 1 | K33: 0 | L33: 0 | M33: 0 | N33: 0 | O33: 0 | P33: 0 | Q33: 0 | R33: 0 | S33: 60 | T33: 0 | U33: 18 | V33: 78 | W33: --- | X33: --- | Y33: --- | Z33: --- | AA33: --- | AB33: 2023-03-09 | AC33: 2023-05-08 | AE33: FALSE | AF33: 40
A34: =PAC!A30 -> SESEG - 15771816 | B34: =IFERROR(VLOOKUP(A34,PAC!$A$2:$R$4981,2,0),"") -> Prestação de serviços continuados de manutenção em 6(seis) no-breaks prediais localizados nas dependências da Seção Judiciária de Roraima | D34: =IFERROR(VLOOKUP(A34,PAC!$A$2:$R$4981,12,0),"") -> 2023-08-31 | F34: =IFERROR(VLOOKUP(A34,PAC!$A$2:$R$4981,10,0),"") -> 34500 | G34: =IFERROR(VLOOKUP(A34,PAC!$A$2:$R$4981,15,0),"") -> Prorrogação | H34: C | I34: N | J34: =SUMIF(PAC!$A$2:$A$4983,A34,PAC!$E$2:$E$4986) -> 1 | K34: 0 | L34: 0 | M34: 0 | N34: 0 | O34: 0 | P34: 0 | Q34: 0 | R34: 0 | S34: 60 | T34: 0 | U34: 18 | V34: 78 | W34: --- | X34: --- | Y34: --- | Z34: --- | AA34: --- | AB34: 2023-06-14 | AC34: 2023-08-13 | AE34: FALSE | AF34: 40
A35: =PAC!A31 -> SESEG - 15771899 | B35: =IFERROR(VLOOKUP(A35,PAC!$A$2:$R$4981,2,0),"") -> Prestação de serviços continuados de fornecimento de energia elétrica para a Seção Judiciária de Roraima | D35: =IFERROR(VLOOKUP(A35,PAC!$A$2:$R$4981,12,0),"") -> 2023-06-30 | F35: =IFERROR(VLOOKUP(A35,PAC!$A$2:$R$4981,10,0),"") -> 360000 | G35: =IFERROR(VLOOKUP(A35,PAC!$A$2:$R$4981,15,0),"") -> Inexigibilidade | H35: C | I35: N | J35: =SUMIF(PAC!$A$2:$A$4983,A35,PAC!$E$2:$E$4986) -> 1 | K35: 15 | L35: 10 | M35: 0 | N35: 0 | O35: 0 | P35: 35 | Q35: 3 | R35: 3 | S35: 0 | T35: 5 | U35: 18 | V35: 89 | W35: 2023-04-02 | X35: 2023-04-27 | Y35: 2023-06-01 | Z35: 2023-06-04 | AA35: 2023-06-07 | AB35: --- | AC35: 2023-06-12 | AE35: FALSE | AF35: 40
A36: =PAC!A32 -> SESEG - 15771980 | B36: =IFERROR(VLOOKUP(A36,PAC!$A$2:$R$4981,2,0),"") -> Prestação de serviços continuados de abastecimento de água encanada para a Seção Judiciária de Roraima | D36: =IFERROR(VLOOKUP(A36,PAC!$A$2:$R$4981,12,0),"") -> 2023-01-31 | F36: =IFERROR(VLOOKUP(A36,PAC!$A$2:$R$4981,10,0),"") -> 3000 | G36: =IFERROR(VLOOKUP(A36,PAC!$A$2:$R$4981,15,0),"") -> Inexigibilidade | H36: N | I36: N | J36: =SUMIF(PAC!$A$2:$A$4983,A36,PAC!$E$2:$E$4986) -> 1 | K36: =IF(OR(G36="dispensa",G36="inexigibilidade",G36="licitação"),15,"0") -> 15 | L36: =IF(OR(G36="dispensa",G36="inexigibilidade",G36="licitação"),10,"0") -> 10 | M36: =IF(AND(G36="Licitação"),IF(AND(H36=""),0,IF(AND(H36="N"),AE36,IF(AND(H36="C"),AF36))),"0") -> 0 | N36: =IF(AND(G36="Licitação"),IF(AND(H36=""),"0",IF(AND(H36="N"),15,IF(AND(H36="C"),25))),"0") -> 0 | O36: =IF(AND(G36="Licitação"),IF(AND(I36=""),"0",IF(AND(I36="N"),25,IF(AND(I36="S"),40))),"0") -> 0 | P36: =IF(OR(G36="dispensa",G36="inexigibilidade"),IF(AND(J36=0),0,IF(AND(J36>0,J36<11),35,IF(AND(J36>10,J36<21),45,IF(AND(J36>20),60)))),"0") -> 35 | Q36: =IF(OR(G36="dispensa",G36="inexigibilidade"),3,"0") -> 3 | R36: =IF(OR(G36="dispensa",G36="inexigibilidade"),3,"0") -> 3 | S36: =IF(OR(G36="prorrogação",G36="renovação"),60,"0") -> 0 | T36: =IF(OR(G36="dispensa",G36="inexigibilidade",G36="licitação"),IF(AND(H36="C"),5,IF(AND(H36="N"),3,IF(AND(H36=""),"0"))),"0") -> 3 | U36: =IF(D36>44549,18,"0") -> 18 | V36: =SUM(K36:U36) -> 87 | W36: 2022-11-05 | X36: 2022-11-30 | Y36: 2023-01-04 | Z36: 2023-01-07 | AA36: 2023-01-10 | AB36: --- | AC36: =IF(AND($G36="licitação"),AA36+T36,IF(AND($G36="dispensa"),AA36+T36,IF(AND($G36="inexigibilidade"),AA36+T36,IF(AND($G36="renovação"),$AB36+$S36,IF(AND($G36="prorrogação"),$AB36+$S36,IF(AND($G36=""),"---")))))) -> 2023-01-13 | AE36: 20 | AF36: FALSE
A37: =PAC!A33 -> SESEG - 15772019 | B37: =IFERROR(VLOOKUP(A37,PAC!$A$2:$R$4981,2,0),"") -> Prestação de serviço de manutenção no grupo gerador, subestação e USCA localizados nas dependências da Seção Judiciária de Roraima | D37: =IFERROR(VLOOKUP(A37,PAC!$A$2:$R$4981,12,0),"") -> 2023-12-08 | F37: =IFERROR(VLOOKUP(A37,PAC!$A$2:$R$4981,10,0),"") -> 31725 | G37: =IFERROR(VLOOKUP(A37,PAC!$A$2:$R$4981,15,0),"") -> Prorrogação | H37: N | I37: N | J37: =SUMIF(PAC!$A$2:$A$4983,A37,PAC!$E$2:$E$4986) -> 1 | K37: 0 | L37: 0 | M37: 0 | N37: 0 | O37: 0 | P37: 0 | Q37: 0 | R37: 0 | S37: 60 | T37: 0 | U37: 18 | V37: 78 | W37: --- | X37: --- | Y37: --- | Z37: --- | AA37: --- | AB37: 2023-09-21 | AC37: 2023-11-20 | AE37: 20 | AF37: FALSE
A38: =PAC!A34 -> SESEG - 15772067 | B38: =IFERROR(VLOOKUP(A38,PAC!$A$2:$R$4981,2,0),"") -> Prestação de serviços continuados de manutenção preventiva/corretiva nos equipamentos que compõem os sistemas de abastecimento d'água e de combate a incêndio localizados nas dependências da Seção Judiciária de Roraima | D38: =IFERROR(VLOOKUP(A38,PAC!$A$2:$R$4981,12,0),"") -> 2023-11-03 | F38: =IFERROR(VLOOKUP(A38,PAC!$A$2:$R$4981,10,0),"") -> 12000 | G38: =IFERROR(VLOOKUP(A38,PAC!$A$2:$R$4981,15,0),"") -> Prorrogação | H38: C | I38: N | J38: =SUMIF(PAC!$A$2:$A$4983,A38,PAC!$E$2:$E$4986) -> 1 | K38: 0 | L38: 0 | M38: 0 | N38: 0 | O38: 0 | P38: 0 | Q38: 0 | R38: 0 | S38: 60 | T38: 0 | U38: 18 | V38: 78 | W38: --- | X38: --- | Y38: --- | Z38: --- | AA38: --- | AB38: 2023-08-17 | AC38: 2023-10-16 | AE38: FALSE | AF38: 40
A39: =PAC!A35 -> SESEG - 15711791 | B39: =IFERROR(VLOOKUP(A39,PAC!$A$2:$R$4981,2,0),"") -> Manter o volume de dejetos contidos nas fossas sépticas em níveis aceitáveis, reduzindo-se a possibilidade de transbordamentos; Manter a rede de esgoto desobstruída, evitando-se, assim, transbordamentos e mau cheiro | D39: =IFERROR(VLOOKUP(A39,PAC!$A$2:$R$4981,12,0),"") -> 2023-01-31 | F39: =IFERROR(VLOOKUP(A39,PAC!$A$2:$R$4981,10,0),"") -> 7500 | G39: =IFERROR(VLOOKUP(A39,PAC!$A$2:$R$4981,15,0),"") -> Dispensa | H39: N | I39: N | J39: =SUMIF(PAC!$A$2:$A$4983,A39,PAC!$E$2:$E$4986) -> 2 | K39: 15 | L39: 10 | M39: 0 | N39: 0 | O39: 0 | P39: 35 | Q39: 3 | R39: 3 | S39: 0 | T39: 3 | U39: 18 | V39: 87 | W39: 2022-11-05 | X39: 2022-11-30 | Y39: 2023-01-04 | Z39: 2023-01-07 | AA39: 2023-01-10 | AB39: --- | AC39: 2023-01-13 | AE39: 30 | AF39: FALSE
A40: =PAC!A36 -> SESEG - 15711835 | B40: =IFERROR(VLOOKUP(A40,PAC!$A$2:$R$4981,2,0),"") -> Carga de gás de cozinha (GLP) em botija de 13 quilos | D40: =IFERROR(VLOOKUP(A40,PAC!$A$2:$R$4981,12,0),"") -> 2023-01-31 | F40: =IFERROR(VLOOKUP(A40,PAC!$A$2:$R$4981,10,0),"") -> 4500 | G40: =IFERROR(VLOOKUP(A40,PAC!$A$2:$R$4981,15,0),"") -> Dispensa | H40: N | I40: N | J40: =SUMIF(PAC!$A$2:$A$4983,A40,PAC!$E$2:$E$4986) -> 1 | K40: 15 | L40: 10 | M40: 0 | N40: 0 | O40: 0 | P40: 35 | Q40: 3 | R40: 3 | S40: 0 | T40: 3 | U40: 18 | V40: 87 | W40: 2022-11-05 | X40: 2022-11-30 | Y40: 2023-01-04 | Z40: 2023-01-07 | AA40: 2023-01-10 | AB40: --- | AC40: 2023-01-13 | AE40: 20 | AF40: FALSE
A41: =PAC!A37 -> SESEG - 15711889 | B41: =IFERROR(VLOOKUP(A41,PAC!$A$2:$R$4981,2,0),"") -> Fornecimento de gêneros alimentícios (café, açucar,adoçante, água mineral) | D41: =IFERROR(VLOOKUP(A41,PAC!$A$2:$R$4981,12,0),"") -> 2023-03-31 | F41: =IFERROR(VLOOKUP(A41,PAC!$A$2:$R$4981,10,0),"") -> 68944 | G41: =IFERROR(VLOOKUP(A41,PAC!$A$2:$R$4981,15,0),"") -> Licitação | H41: C | I41: N | J41: =SUMIF(PAC!$A$2:$A$4983,A41,PAC!$E$2:$E$4986) -> 6 | K41: 15 | L41: 10 | M41: 75 | N41: 25 | O41: 25 | P41: 0 | Q41: 0 | R41: 0 | S41: 0 | T41: 5 | U41: 18 | V41: 173 | W41: 2022-10-09 | X41: 2022-11-03 | Y41: 2023-01-17 | Z41: 2023-02-11 | AA41: 2023-03-08 | AB41: --- | AC41: 2023-03-13 | AE41: FALSE | AF41: 75
A42: =PAC!A38 -> SESEG - 15712033 | B42: =IFERROR(VLOOKUP(A42,PAC!$A$2:$R$4981,2,0),"") -> contratação dos serviços de manutenções preventivas periódicas e corretivas nos aparelhos condicionadores de ar | D42: =IFERROR(VLOOKUP(A42,PAC!$A$2:$R$4981,12,0),"") -> 2023-03-31 | F42: =IFERROR(VLOOKUP(A42,PAC!$A$2:$R$4981,10,0),"") -> 85422.58 | G42: =IFERROR(VLOOKUP(A42,PAC!$A$2:$R$4981,15,0),"") -> Licitação | H42: C | I42: N | J42: =SUMIF(PAC!$A$2:$A$4983,A42,PAC!$E$2:$E$4986) -> 21 | K42: 15 | L42: 10 | M42: 100 | N42: 25 | O42: 25 | P42: 0 | Q42: 0 | R42: 0 | S42: 0 | T42: 5 | U42: 18 | V42: 198 | W42: 2022-09-14 | X42: 2022-10-09 | Y42: 2023-01-17 | Z42: 2023-02-11 | AA42: 2023-03-08 | AB42: --- | AC42: 2023-03-13 | AE42: FALSE | AF42: 100
A43: =PAC!A39 -> SESEG - 15712415 | B43: =IFERROR(VLOOKUP(A43,PAC!$A$2:$R$4981,2,0),"") -> Aquisição de peças para aparelhos condicionadores de ar, | D43: =IFERROR(VLOOKUP(A43,PAC!$A$2:$R$4981,12,0),"") -> 2023-02-28 | F43: =IFERROR(VLOOKUP(A43,PAC!$A$2:$R$4981,10,0),"") -> 14328.37 | G43: =IFERROR(VLOOKUP(A43,PAC!$A$2:$R$4981,15,0),"") -> Licitação | H43: C | I43: N | J43: =SUMIF(PAC!$A$2:$A$4983,A43,PAC!$E$2:$E$4986) -> 21 | K43: 15 | L43: 10 | M43: 100 | N43: 25 | O43: 25 | P43: 0 | Q43: 0 | R43: 0 | S43: 0 | T43: 5 | U43: 18 | V43: 198 | W43: 2022-08-14 | X43: 2022-09-08 | Y43: 2022-12-17 | Z43: 2023-01-11 | AA43: 2023-02-05 | AB43: --- | AC43: 2023-02-10 | AE43: FALSE | AF43: 100
A44: =PAC!A40 -> SESEG - 15713211 | B44: =IFERROR(VLOOKUP(A44,PAC!$A$2:$R$4981,2,0),"") -> Aquisição de Bateria selada regulada por válvula, estacionária 45Ah, 12V. | D44: =IFERROR(VLOOKUP(A44,PAC!$A$2:$R$4981,12,0),"") -> 2023-06-30 | F44: =IFERROR(VLOOKUP(A44,PAC!$A$2:$R$4981,10,0),"") -> 18688 | G44: =IFERROR(VLOOKUP(A44,PAC!$A$2:$R$4981,15,0),"") -> Licitação | H44: N | I44: N | J44: =SUMIF(PAC!$A$2:$A$4983,A44,PAC!$E$2:$E$4986) -> 1 | K44: =IF(OR(G44="dispensa",G44="inexigibilidade",G44="licitação"),15,"0") -> 15 | L44: =IF(OR(G44="dispensa",G44="inexigibilidade",G44="licitação"),10,"0") -> 10 | M44: =IF(AND(G44="Licitação"),IF(AND(H44=""),0,IF(AND(H44="N"),AE44,IF(AND(H44="C"),AF44))),"0") -> 20 | N44: =IF(AND(G44="Licitação"),IF(AND(H44=""),"0",IF(AND(H44="N"),15,IF(AND(H44="C"),25))),"0") -> 15 | O44: =IF(AND(G44="Licitação"),IF(AND(I44=""),"0",IF(AND(I44="N"),25,IF(AND(I44="S"),40))),"0") -> 25 | P44: =IF(OR(G44="dispensa",G44="inexigibilidade"),IF(AND(J44=0),0,IF(AND(J44>0,J44<11),35,IF(AND(J44>10,J44<21),45,IF(AND(J44>20),60)))),"0") -> 0 | Q44: =IF(OR(G44="dispensa",G44="inexigibilidade"),3,"0") -> 0 | R44: =IF(OR(G44="dispensa",G44="inexigibilidade"),3,"0") -> 0 | S44: =IF(OR(G44="prorrogação",G44="renovação"),60,"0") -> 0 | T44: =IF(OR(G44="dispensa",G44="inexigibilidade",G44="licitação"),IF(AND(H44="C"),5,IF(AND(H44="N"),3,IF(AND(H44=""),"0"))),"0") -> 3 | U44: =IF(D44>44549,18,"0") -> 18 | V44: =SUM(K44:U44) -> 106 | W44: 2023-03-16 | X44: 2023-04-10 | Y44: 2023-04-30 | Z44: 2023-05-15 | AA44: 2023-06-09 | AB44: --- | AC44: =IF(AND($G44="licitação"),AA44+T44,IF(AND($G44="dispensa"),AA44+T44,IF(AND($G44="inexigibilidade"),AA44+T44,IF(AND($G44="renovação"),$AB44+$S44,IF(AND($G44="prorrogação"),$AB44+$S44,IF(AND($G44=""),"---")))))) -> 2023-06-12 | AE44: 20 | AF44: FALSE
A45: =PAC!A41 -> SESEG - 15713330 | B45: =IFERROR(VLOOKUP(A45,PAC!$A$2:$R$4981,2,0),"") -> Aquisição de materiais elétrico/hidráulico | D45: =IFERROR(VLOOKUP(A45,PAC!$A$2:$R$4981,12,0),"") -> 2023-09-30 | F45: =IFERROR(VLOOKUP(A45,PAC!$A$2:$R$4981,10,0),"") -> 17683.45 | G45: =IFERROR(VLOOKUP(A45,PAC!$A$2:$R$4981,15,0),"") -> Licitação | H45: C | I45: N | J45: =SUMIF(PAC!$A$2:$A$4983,A45,PAC!$E$2:$E$4986) -> 17 | K45: 15 | L45: 10 | M45: 100 | N45: 25 | O45: 25 | P45: 0 | Q45: 0 | R45: 0 | S45: 0 | T45: 5 | U45: 18 | V45: 198 | W45: 2023-03-16 | X45: 2023-04-10 | Y45: 2023-07-19 | Z45: 2023-08-13 | AA45: 2023-09-07 | AB45: --- | AC45: 2023-09-12 | AE45: FALSE | AF45: 100
A46: =PAC!A42 -> SESEG - 15713366 | B46: =IFERROR(VLOOKUP(A46,PAC!$A$2:$R$4981,2,0),"") -> Aquisição de materiais de copa e cozinha | D46: =IFERROR(VLOOKUP(A46,PAC!$A$2:$R$4981,12,0),"") -> 2023-09-30 | F46: =IFERROR(VLOOKUP(A46,PAC!$A$2:$R$4981,10,0),"") -> 10754 | G46: =IFERROR(VLOOKUP(A46,PAC!$A$2:$R$4981,15,0),"") -> Licitação | H46: C | I46: N | J46: =SUMIF(PAC!$A$2:$A$4983,A46,PAC!$E$2:$E$4986) -> 14 | K46: 15 | L46: 10 | M46: 75 | N46: 25 | O46: 25 | P46: 0 | Q46: 0 | R46: 0 | S46: 0 | T46: 5 | U46: 18 | V46: 173 | W46: 2023-04-10 | X46: 2023-05-05 | Y46: 2023-07-19 | Z46: 2023-08-13 | AA46: 2023-09-07 | AB46: --- | AC46: 2023-09-12 | AE46: FALSE | AF46: 75
A47: =PAC!A43 -> SESEG - 15713404 | B47: =IFERROR(VLOOKUP(A47,PAC!$A$2:$R$4981,2,0),"") -> Prestação de serviços de áudio e vídeo que objetive o registro de Sessão de julgamento do Tribunal de Júri Federal da Justiça Federal de 1ª Instância – Seção Judiciária de Roraima. | D47: =IFERROR(VLOOKUP(A47,PAC!$A$2:$R$4981,12,0),"") -> 2023-06-30 | F47: =IFERROR(VLOOKUP(A47,PAC!$A$2:$R$4981,10,0),"") -> 13500 | G47: =IFERROR(VLOOKUP(A47,PAC!$A$2:$R$4981,15,0),"") -> Dispensa | H47: C | I47: N | J47: =SUMIF(PAC!$A$2:$A$4983,A47,PAC!$E$2:$E$4986) -> 1 | K47: 15 | L47: 10 | M47: 0 | N47: 0 | O47: 0 | P47: 35 | Q47: 3 | R47: 3 | S47: 0 | T47: 5 | U47: 18 | V47: 89 | W47: 2023-04-02 | X47: 2023-04-27 | Y47: 2023-06-01 | Z47: 2023-06-04 | AA47: 2023-06-07 | AB47: --- | AC47: 2023-06-12 | AE47: FALSE | AF47: 40
A48: =PAC!A44 -> SESEG - 15713439 | B48: =IFERROR(VLOOKUP(A48,PAC!$A$2:$R$4981,2,0),"") -> Hospedagem para os participantes de Sessões do Tribunal do Júri | D48: =IFERROR(VLOOKUP(A48,PAC!$A$2:$R$4981,12,0),"") -> 2023-06-30 | F48: =IFERROR(VLOOKUP(A48,PAC!$A$2:$R$4981,10,0),"") -> 5550 | G48: =IFERROR(VLOOKUP(A48,PAC!$A$2:$R$4981,15,0),"") -> Dispensa | H48: C | I48: N | J48: =SUMIF(PAC!$A$2:$A$4983,A48,PAC!$E$2:$E$4986) -> 2 | K48: 15 | L48: 10 | M48: 0 | N48: 0 | O48: 0 | P48: 35 | Q48: 3 | R48: 3 | S48: 0 | T48: 5 | U48: 18 | V48: 89 | W48: 2023-04-02 | X48: 2023-04-27 | Y48: 2023-06-01 | Z48: 2023-06-04 | AA48: 2023-06-07 | AB48: --- | AC48: 2023-06-12 | AE48: FALSE | AF48: 50
A49: =PAC!A45 -> SESEG - 15713478 | B49: =IFERROR(VLOOKUP(A49,PAC!$A$2:$R$4981,2,0),"") -> Fornecimento de refeições do tipo almoço, jantar, lanches, a serem servidas para os participantes de Sessões do Tribunal do Júri | D49: =IFERROR(VLOOKUP(A49,PAC!$A$2:$R$4981,12,0),"") -> 2023-06-30 | F49: =IFERROR(VLOOKUP(A49,PAC!$A$2:$R$4981,10,0),"") -> 6750 | G49: =IFERROR(VLOOKUP(A49,PAC!$A$2:$R$4981,15,0),"") -> Dispensa | H49: C | I49: N | J49: =SUMIF(PAC!$A$2:$A$4983,A49,PAC!$E$2:$E$4986) -> 2 | K49: 15 | L49: 10 | M49: 0 | N49: 0 | O49: 0 | P49: 35 | Q49: 3 | R49: 3 | S49: 0 | T49: 5 | U49: 18 | V49: 89 | W49: 2023-04-02 | X49: 2023-04-27 | Y49: 2023-06-01 | Z49: 2023-06-04 | AA49: 2023-06-07 | AB49: --- | AC49: 2023-06-12 | AE49: FALSE | AF49: 50
A50: =PAC!A46 -> SEDER - 16594403 | B50: =IFERROR(VLOOKUP(A50,PAC!$A$2:$R$4981,2,0),"") -> Capacitações para exercício de 2023, com base no Levantamento de Necessidade de Capacitação, Matriz de Planejamento e Plano de Capacitação 2023 da SJRR. | D50: =IFERROR(VLOOKUP(A50,PAC!$A$2:$R$4981,12,0),"") -> 2022-09-30 | F50: =IFERROR(VLOOKUP(A50,PAC!$A$2:$R$4981,10,0),"") -> 60000 | G50: =IFERROR(VLOOKUP(A50,PAC!$A$2:$R$4981,15,0),"") -> Dispensa | H50: N | I50: N | J50: =SUMIF(PAC!$A$2:$A$4983,A50,PAC!$E$2:$E$4986) -> 0 | K50: 15 | L50: 10 | M50: 0 | N50: 0 | O50: 0 | P50: 0 | Q50: 3 | R50: 3 | S50: 0 | T50: 3 | U50: 18 | V50: 52 | W50: 2022-08-09 | X50: 2022-09-03 | Y50: 2022-09-03 | Z50: 2022-09-06 | AA50: 2022-09-09 | AB50: --- | AC50: 2022-09-12 | AE50: FALSE | AF50: FALSE
A51: =PAC!A49 -> 0 | B51: =IFERROR(VLOOKUP(A51,PAC!$A$2:$R$4981,2,0),"") ->  | D51: =IFERROR(VLOOKUP(A51,PAC!$A$2:$R$4981,12,0),"") ->  | F51: =IFERROR(VLOOKUP(A51,PAC!$A$2:$R$4981,10,0),"") ->  | G51: =IFERROR(VLOOKUP(A51,PAC!$A$2:$R$4981,15,0),"") ->  | J51: =SUMIF(PAC!$A$2:$A$4983,A51,PAC!$E$2:$E$4986) -> 0 | K51: 0 | L51: 0 | M51: 0 | N51: 0 | O51: 0 | P51: 0 | Q51: 0 | R51: 0 | S51: 0 | T51: 0 | U51: 18 | V51: 18 | W51: --- | X51: --- | Y51: --- | Z51: --- | AA51: --- | AB51: --- | AC51: --- | AE51: FALSE | AF51: FALSE
A52: =PAC!A50 -> 0 | B52: =IFERROR(VLOOKUP(A52,PAC!$A$2:$R$4981,2,0),"") ->  | D52: =IFERROR(VLOOKUP(A52,PAC!$A$2:$R$4981,12,0),"") ->  | F52: =IFERROR(VLOOKUP(A52,PAC!$A$2:$R$4981,10,0),"") ->  | G52: =IFERROR(VLOOKUP(A52,PAC!$A$2:$R$4981,15,0),"") ->  | J52: =SUMIF(PAC!$A$2:$A$4983,A52,PAC!$E$2:$E$4986) -> 0 | K52: 0 | L52: 0 | M52: 0 | N52: 0 | O52: 0 | P52: 0 | Q52: 0 | R52: 0 | S52: 0 | T52: 0 | U52: 18 | V52: 18 | W52: --- | X52: --- | Y52: --- | Z52: --- | AA52: --- | AB52: --- | AC52: --- | AE52: FALSE | AF52: FALSE
A53: =PAC!A51 -> 0 | B53: =IFERROR(VLOOKUP(A53,PAC!$A$2:$R$4981,2,0),"") ->  | D53: =IFERROR(VLOOKUP(A53,PAC!$A$2:$R$4981,12,0),"") ->  | F53: =IFERROR(VLOOKUP(A53,PAC!$A$2:$R$4981,10,0),"") ->  | G53: =IFERROR(VLOOKUP(A53,PAC!$A$2:$R$4981,15,0),"") ->  | J53: =SUMIF(PAC!$A$2:$A$4983,A53,PAC!$E$2:$E$4986) -> 0 | K53: 0 | L53: 0 | M53: 0 | N53: 0 | O53: 0 | P53: 0 | Q53: 0 | R53: 0 | S53: 0 | T53: 0 | U53: 18 | V53: 18 | W53: --- | X53: --- | Y53: --- | Z53: --- | AA53: --- | AB53: --- | AC53: --- | AE53: FALSE | AF53: FALSE

Sheet CAC - Acompanhamento
A1: ID | B1: PA-SEI | C1: Objeto | D1: Qtd dias para a contratação | E1: Data estimada ETP | F1: Data estimada TR/PB | G1: Data estimada Renovação/ Prorrogação | H1: Data estimada Contratação | I1: Data efetiva entrega ETP | J1: Dt efetiva entrega TR/PB | K1: Dt início procedimentos de prorrogação/ renovação | L1: Dt efetiva Contratação | M1: stat_ETP | N1: stat_TR/PB | O1: stat_renov/ prorrog | P1: stat_cont
A2: =CAC!A6 -> SEVIT - 15317159 | B2: =CAC!C6 -> 0 | C2: =CAC!B6 -> Lavagem de veículos para os veículos oficiais da Seção Judiciária de Roraima. | D2: =H2-TODAY() -> 109 | E2: =CAC!W6 -> 2022-12-02 | F2: =CAC!X6 -> 2022-12-27 | G2: =CAC!AB6 -> --- | H2: =CAC!AC6 -> 2023-02-11 | M2: =IF(E2="---","N/A",IF(AND(I2="",NOW()-E2<0),"Em dia",IF(AND(I2="",NOW()-E2>0),"Pendência",IF(I2>E2,"Entregue com atraso","Entregue")))) -> Em dia | N2: =IF(F2="---","N/A",IF(AND(J2="",NOW()-F2<0),"Em dia",IF(AND(J2="",NOW()-F2>0),"Pendência",IF(J2>F2,"Entregue com atraso","Entregue")))) -> Em dia | O2: =IF(G2="---","N/A",IF(AND(K2="",NOW()-G2<0),"Em dia",IF(AND(K2="",NOW()-G2>0),"Pendência",IF(K2>G2,"Contratado com atraso","Contratado")))) -> N/A | P2: =IF(AND(L2="",NOW()-H2<0),"Em dia",IF(AND(L2="",NOW()-H2>0),"Pendência",IF(L2>H2,"Contratado com atraso","Contratado"))) -> Em dia
A3: =CAC!A7 -> SEVIT - 15317179 | B3: =CAC!C7 -> 0 | C3: =CAC!B7 -> Serviços de manutenção preventiva e corretiva a serem executados nos veículos oficiais pertencentes à SJRR. | D3: =H3-TODAY() -> 138 | E3: =CAC!W7 -> 2022-12-31 | F3: =CAC!X7 -> 2023-01-25 | G3: =CAC!AB7 -> --- | H3: =CAC!AC7 -> 2023-03-12 | M3: =IF(E3="---","N/A",IF(AND(I3="",NOW()-E3<0),"Em dia",IF(AND(I3="",NOW()-E3>0),"Pendência",IF(I3>E3,"Entregue com atraso","Entregue")))) -> Em dia | N3: =IF(F3="---","N/A",IF(AND(J3="",NOW()-F3<0),"Em dia",IF(AND(J3="",NOW()-F3>0),"Pendência",IF(J3>F3,"Entregue com atraso","Entregue")))) -> Em dia | O3: =IF(G3="---","N/A",IF(AND(K3="",NOW()-G3<0),"Em dia",IF(AND(K3="",NOW()-G3>0),"Pendência",IF(K3>G3,"Contratado com atraso","Contratado")))) -> N/A | P3: =IF(AND(L3="",NOW()-H3<0),"Em dia",IF(AND(L3="",NOW()-H3>0),"Pendência",IF(L3>H3,"Contratado com atraso","Contratado"))) -> Em dia
A4: =CAC!A8 -> SEVIT - 15317201 | B4: =CAC!C8 -> 0 | C4: =CAC!B8 -> Fornecimento de combustíveis (gasolina comum, óleo diesel comum, óleo diesel S10 e etanol), destinados ao abastecimento dos veículos oficiais e do grupo gerador de energia elétrica da Justiça Federal de Primeira Instância - Seção Judiciária de Roraima | D4: 169 | E4: =CAC!W8 -> 2022-12-03 | F4: =CAC!X8 -> 2022-12-28 | G4: =CAC!AB8 -> --- | H4: =CAC!AC8 -> 2023-04-12 | M4: Em dia | N4: Em dia | O4: N/A | P4: Em dia
A5: =CAC!A9 -> SEVIT - 15317489 | B5: =CAC!C9 -> 0 | C5: =CAC!B9 -> Serviços de manutenção preventiva e corretiva de Porta Giratória Detector de Metais. | D5: 207 | E5: =CAC!W9 -> --- | F5: =CAC!X9 -> --- | G5: =CAC!AB9 -> 2023-03-21 | H5: =CAC!AC9 -> 2023-05-20 | M5: N/A | N5: N/A | O5: Em dia | P5: Em dia
A6: =CAC!A10 -> SEVIT - 15342869 | B6: =CAC!C10 -> 0 | C6: =CAC!B10 -> Serviços de seguro automotivo para os veículos oficiais que integram a frota da SJRR. | D6: 207 | E6: =CAC!W10 -> 2023-03-10 | F6: =CAC!X10 -> 2023-04-04 | G6: =CAC!AB10 -> --- | H6: =CAC!AC10 -> 2023-05-20 | M6: Em dia | N6: Em dia | O6: N/A | P6: Em dia
A7: =CAC!A11 -> SEVIT - 15343725 | B7: =CAC!C11 -> 0 | C7: =CAC!B11 -> Contratar ou firmar convênio com instituições de segurança pública, para realização de Curso de Treinamento de Tiro, para os servidores, Agentes da Polícia Judicial, aptos a portar arma de fogo da Seção Judiciária de Roraima. | D7: 291 | E7: =CAC!W11 -> 2023-06-02 | F7: =CAC!X11 -> 2023-06-27 | G7: =CAC!AB11 -> --- | H7: =CAC!AC11 -> 2023-08-12 | M7: Em dia | N7: Em dia | O7: N/A | P7: Em dia
A8: =CAC!A12 -> SEVIT - 15344700 | B8: =CAC!C12 -> 0 | C8: =CAC!B12 -> Serviços de vigilância armada e segurança patrimonial 24h, com postos nos principais locais de acesso do edifício-sede da Seção Judiciária de Roraima. | D8: 348 | E8: =CAC!W12 -> --- | F8: =CAC!X12 -> --- | G8: =CAC!AB12 -> 2023-08-09 | H8: =CAC!AC12 -> 2023-10-08 | M8: N/A | N8: N/A | O8: Em dia | P8: Em dia
A9: =CAC!A13 -> SEVIT - 15344763 | B9: =CAC!C13 -> 0 | C9: =CAC!B13 -> Serviços de treinamento (certificação) de atualização e formação de Brigada de Prevenção e Combate a Incêndio. | D9: =H9-TODAY() -> 323 | E9: =CAC!W13 -> 2023-07-04 | F9: =CAC!X13 -> 2023-07-29 | G9: =CAC!AB13 -> --- | H9: =CAC!AC13 -> 2023-09-13 | M9: Em dia | N9: Em dia | O9: N/A | P9: Em dia
A10: =CAC!A14 -> SEVIT - 15345811 | B10: =CAC!C14 -> 0 | C10: =CAC!B14 -> Serviços de recarga e de manutenção dos extintores de incêndio pertencentes à Seção Judiciária de Roraima. | D10: 323 | E10: =CAC!W14 -> 2023-07-04 | F10: =CAC!X14 -> 2023-07-29 | G10: =CAC!AB14 -> --- | H10: =CAC!AC14 -> 2023-09-13 | M10: Em dia | N10: Em dia | O10: N/A | P10: Em dia
A11: =CAC!A15 -> SEVIT - 15345982 | B11: =CAC!C15 -> 0 | C11: =CAC!B15 -> Serviços de manutenção preventiva e corretiva de Equipamento de Inspeção de Raio X, tipo Scanner, modelo Spectrum 5030. | D11: 354 | E11: =CAC!W15 -> --- | F11: =CAC!X15 -> --- | G11: =CAC!AB15 -> 2023-08-15 | H11: =CAC!AC15 -> 2023-10-14 | M11: N/A | N11: N/A | O11: Em dia | P11: Em dia
A12: =CAC!A16 -> SEVIT - 15846451 | B12: =CAC!C16 -> 0 | C12: =CAC!B16 -> Uniformes e acessórios de identificação visual, para os Agentes da Polícia Judicial. | D12: 140 | E12: =CAC!W16 -> 2023-01-04 | F12: =CAC!X16 -> 2023-01-29 | G12: =CAC!AB16 -> --- | H12: =CAC!AC16 -> 2023-03-14 | M12: Em dia | N12: Em dia | O12: N/A | P12: Em dia
A13: =CAC!A17 -> SECAM - 15328939 | B13: =CAC!C17 -> 0 | C13: =CAC!B17 -> Serviços de publicação de editais, avisos e notas oficiais de interesse desta Seccional em jornal local de grande circulação Regional. | D13: 50 | E13: =CAC!W17 -> 2022-10-06 | F13: =CAC!X17 -> 2022-10-31 | G13: =CAC!AB17 -> --- | H13: =CAC!AC17 -> 2022-12-14 | M13: Pendência | N13: Em dia | O13: N/A | P13: Em dia
A14: =CAC!A18 -> SECAM - 15732555 | B14: =CAC!C18 -> 0 | C14: =CAC!B18 -> Serviços de locação de 04 (quatro) fotocopiadoras, com fornecimento de suprimentos. | D14: 226 | E14: =CAC!W18 -> --- | F14: =CAC!X18 -> --- | G14: =CAC!AB18 -> 2023-04-09 | H14: =CAC!AC18 -> 2023-06-08 | M14: N/A | N14: N/A | O14: Em dia | P14: Em dia
A15: =CAC!A19 -> SECAM - 15732641 | B15: =CAC!C19 -> 0 | C15: =CAC!B19 -> Serviços de Telefonia Móvel Pessoal - SMP. | D15: 252 | E15: =CAC!W19 -> 2023-03-13 | F15: =CAC!X19 -> 2023-04-07 | G15: =CAC!AB19 -> --- | H15: =CAC!AC19 -> 2023-07-04 | M15: Em dia | N15: Em dia | O15: N/A | P15: Em dia
A16: =CAC!A20 -> SECAM - 15331353 | B16: =CAC!C20 -> 0 | C16: =CAC!B20 -> Serviços de postagens e encomendas da Seção Judiciária de Roraima. | D16: -226 | E16: =CAC!W20 -> --- | F16: =CAC!X20 -> --- | G16: =CAC!AB20 -> 2022-01-12 | H16: =CAC!AC20 -> 2022-03-13 | M16: N/A | N16: N/A | O16: Pendência | P16: Pendência
A17: =CAC!A21 -> SECAM - 15732819 | B17: =CAC!C21 -> 0 | C17: =CAC!B21 -> Serviço de Telefonia Fixa Comutada. | D17: 289 | E17: =CAC!W21 -> 2023-04-19 | F17: =CAC!X21 -> 2023-05-14 | G17: =CAC!AB21 -> --- | H17: =CAC!AC21 -> 2023-08-10 | M17: Em dia | N17: Em dia | O17: N/A | P17: Em dia
A18: =CAC!A22 -> SEINF - 15328883 | B18: =CAC!C22 -> 0 | C18: =CAC!B22 -> Serviços técnicos especializados para apoio na área de TI para atividades de apoio. | D18: 80 | E18: =CAC!W22 -> 2022-10-17 | F18: =CAC!X22 -> 2022-11-11 | G18: =CAC!AB22 -> --- | H18: =CAC!AC22 -> 2023-01-13 | M18: Pendência | N18: Em dia | O18: N/A | P18: Em dia
A19: =CAC!A23 -> SELIT - 15330055 | B19: =CAC!C23 -> 0 | C19: =CAC!B23 -> Fornecimento de Passagem Aérea | D19: 141 | E19: =CAC!W23 -> 2022-11-05 | F19: =CAC!X23 -> 2022-11-30 | G19: =CAC!AB23 -> --- | H19: =CAC!AC23 -> 2023-03-15 | M19: Em dia | N19: Em dia | O19: N/A | P19: Em dia
A20: =CAC!A24 -> SELIT - 15330056 | B20: =CAC!C24 -> 0 | C20: =CAC!B24 -> Aquisição de assinatura online para a plataforma de pesquisa preços | D20: 200 | E20: =CAC!W24 -> 2023-03-05 | F20: =CAC!X24 -> 2023-03-30 | G20: =CAC!AB24 -> --- | H20: =CAC!AC24 -> 2023-05-13 | M20: Em dia | N20: Em dia | O20: N/A | P20: Em dia
A21: =CAC!A25 -> SEBES - 15770124 | B21: =CAC!C25 -> 0 | C21: =CAC!B25 -> Assistência médica, psicológica e odontológica direta aos magistrados e servidores ativos, inativos, e aos seus dependentes | D21: 77 | E21: =CAC!W25 -> 2022-09-02 | F21: =CAC!X25 -> 2022-09-27 | G21: =CAC!AB25 -> --- | H21: =CAC!AC25 -> 2023-01-10 | M21: Pendência | N21: Pendência | O21: N/A | P21: Em dia
A22: =CAC!A26 -> SEBES - 15770520 | B22: =CAC!C26 -> 0 | C22: =CAC!B26 -> Manutenção preventiva e corretiva dos equipamentos do consultório odontológico da SJRR | D22: 259 | E22: =CAC!W26 -> --- | F22: =CAC!X26 -> --- | G22: =CAC!AB26 -> 2023-05-12 | H22: =CAC!AC26 -> 2023-07-11 | M22: N/A | N22: N/A | O22: Em dia | P22: Em dia
A23: =CAC!A27 -> SEBES - 15330874 | B23: =CAC!C27 -> 0 | C23: =CAC!B27 -> Aquisição de Vacinas para imunização contra a gripe H1N1 | D23: 169 | E23: =CAC!W27 -> 2023-01-31 | F23: =CAC!X27 -> 2023-02-25 | G23: =CAC!AB27 -> --- | H23: =CAC!AC27 -> 2023-04-12 | M23: Em dia | N23: Em dia | O23: N/A | P23: Em dia
A24: =CAC!A28 -> SEBES - 15330879 | B24: =CAC!C28 -> 0 | C24: =CAC!B28 -> Materiais e medicamentos para os consultórios médico e odontológico da Seção Judiciária de Roraima | D24: 261 | E24: =CAC!W28 -> 2023-01-14 | F24: =CAC!X28 -> 2023-02-08 | G24: =CAC!AB28 -> --- | H24: =CAC!AC28 -> 2023-07-13 | M24: Em dia | N24: Em dia | O24: N/A | P24: Em dia
A25: =CAC!A29 -> SEMAP - 15331081 | B25: =CAC!C29 -> 0 | C25: =CAC!B29 -> Aquisição de materiais de consumo diversos para consecução das atividades internas na SJRR. | D25: 139 | E25: =CAC!W29 -> 2022-09-14 | F25: =CAC!X29 -> 2022-10-09 | G25: =CAC!AB29 -> --- | H25: =CAC!AC29 -> 2023-03-13 | M25: Pendência | N25: Pendência | O25: N/A | P25: Em dia
A26: =CAC!A30 -> SESEG - 15770821 | B26: =CAC!C30 -> 0 | C26: =CAC!B30 -> Serviços de limpeza, conservação, copeiragem e jardinagem, com fornecimento de material de limpeza e jardinagem. | D26: 80 | E26: =CAC!W30 -> --- | F26: =CAC!X30 -> --- | G26: =CAC!AB30 -> 2022-11-14 | H26: =CAC!AC30 -> 2023-01-13 | M26: N/A | N26: N/A | O26: Em dia | P26: Em dia
A27: =CAC!A31 -> SESEG - 15770921 | B27: =CAC!C31 -> 0 | C27: =CAC!B31 -> Prestação de serviços continuados de apoio administrativo nas dependências da Seção Judiciária de Roraima | D27: 58 | E27: =CAC!W31 -> 2022-09-25 | F27: =CAC!X31 -> 2022-10-20 | G27: =CAC!AB31 -> --- | H27: =CAC!AC31 -> 2022-12-22 | M27: Pendência | N27: Pendência | O27: N/A | P27: Em dia
A28: =CAC!A32 -> SESEG - 15771480 | B28: =CAC!C32 -> 0 | C28: =CAC!B32 -> Prestação de serviços continuados de manutenção predial nas dependências da Seção Judiciária de Roraima | D28: 114 | E28: =CAC!W32 -> --- | F28: =CAC!X32 -> --- | G28: =CAC!AB32 -> 2022-12-18 | H28: =CAC!AC32 -> 2023-02-16 | M28: N/A | N28: N/A | O28: Em dia | P28: Em dia
A29: =CAC!A33 -> SESEG - 15771771 | B29: =CAC!C33 -> 0 | C29: =CAC!B33 -> Prestação de serviços continuados de manutenção no elevador localizado nas dependências da Seção Judiciária de Roraima | D29: 195 | E29: =CAC!W33 -> --- | F29: =CAC!X33 -> --- | G29: =CAC!AB33 -> 2023-03-09 | H29: =CAC!AC33 -> 2023-05-08 | M29: N/A | N29: N/A | O29: Em dia | P29: Em dia
A30: =CAC!A34 -> SESEG - 15771816 | B30: =CAC!C34 -> 0 | C30: =CAC!B34 -> Prestação de serviços continuados de manutenção em 6(seis) no-breaks prediais localizados nas dependências da Seção Judiciária de Roraima | D30: 292 | E30: =CAC!W34 -> --- | F30: =CAC!X34 -> --- | G30: =CAC!AB34 -> 2023-06-14 | H30: =CAC!AC34 -> 2023-08-13 | M30: N/A | N30: N/A | O30: Em dia | P30: Em dia
A31: =CAC!A35 -> SESEG - 15771899 | B31: =CAC!C35 -> 0 | C31: =CAC!B35 -> Prestação de serviços continuados de fornecimento de energia elétrica para a Seção Judiciária de Roraima | D31: 230 | E31: =CAC!W35 -> 2023-04-02 | F31: =CAC!X35 -> 2023-04-27 | G31: =CAC!AB35 -> --- | H31: =CAC!AC35 -> 2023-06-12 | M31: Em dia | N31: Em dia | O31: N/A | P31: Em dia
A32: =CAC!A36 -> SESEG - 15771980 | B32: =CAC!C36 -> 0 | C32: =CAC!B36 -> Prestação de serviços continuados de abastecimento de água encanada para a Seção Judiciária de Roraima | D32: 80 | E32: =CAC!W36 -> 2022-11-05 | F32: =CAC!X36 -> 2022-11-30 | G32: =CAC!AB36 -> --- | H32: =CAC!AC36 -> 2023-01-13 | M32: Em dia | N32: Em dia | O32: N/A | P32: Em dia
A33: =CAC!A37 -> SESEG - 15772019 | B33: =CAC!C37 -> 0 | C33: =CAC!B37 -> Prestação de serviço de manutenção no grupo gerador, subestação e USCA localizados nas dependências da Seção Judiciária de Roraima | D33: 391 | E33: =CAC!W37 -> --- | F33: =CAC!X37 -> --- | G33: =CAC!AB37 -> 2023-09-21 | H33: =CAC!AC37 -> 2023-11-20 | M33: N/A | N33: N/A | O33: Em dia | P33: Em dia
A34: =CAC!A38 -> SESEG - 15772067 | B34: =CAC!C38 -> 0 | C34: =CAC!B38 -> Prestação de serviços continuados de manutenção preventiva/corretiva nos equipamentos que compõem os sistemas de abastecimento d'água e de combate a incêndio localizados nas dependências da Seção Judiciária de Roraima | D34: 356 | E34: =CAC!W38 -> --- | F34: =CAC!X38 -> --- | G34: =CAC!AB38 -> 2023-08-17 | H34: =CAC!AC38 -> 2023-10-16 | M34: N/A | N34: N/A | O34: Em dia | P34: Em dia
A35: =CAC!A39 -> SESEG - 15711791 | B35: =CAC!C39 -> 0 | C35: =CAC!B39 -> Manter o volume de dejetos contidos nas fossas sépticas em níveis aceitáveis, reduzindo-se a possibilidade de transbordamentos; Manter a rede de esgoto desobstruída, evitando-se, assim, transbordamentos e mau cheiro | D35: 80 | E35: =CAC!W39 -> 2022-11-05 | F35: =CAC!X39 -> 2022-11-30 | G35: =CAC!AB39 -> --- | H35: =CAC!AC39 -> 2023-01-13 | M35: Em dia | N35: Em dia | O35: N/A | P35: Em dia
A36: =CAC!A40 -> SESEG - 15711835 | B36: =CAC!C40 -> 0 | C36: =CAC!B40 -> Carga de gás de cozinha (GLP) em botija de 13 quilos | D36: 80 | E36: =CAC!W40 -> 2022-11-05 | F36: =CAC!X40 -> 2022-11-30 | G36: =CAC!AB40 -> --- | H36: =CAC!AC40 -> 2023-01-13 | M36: Em dia | N36: Em dia | O36: N/A | P36: Em dia
A37: =CAC!A41 -> SESEG - 15711889 | B37: =CAC!C41 -> 0 | C37: =CAC!B41 -> Fornecimento de gêneros alimentícios (café, açucar,adoçante, água mineral) | D37: 139 | E37: =CAC!W41 -> 2022-10-09 | F37: =CAC!X41 -> 2022-11-03 | G37: =CAC!AB41 -> --- | H37: =CAC!AC41 -> 2023-03-13 | M37: Pendência | N37: Em dia | O37: N/A | P37: Em dia
A38: =CAC!A42 -> SESEG - 15712033 | B38: =CAC!C42 -> 0 | C38: =CAC!B42 -> contratação dos serviços de manutenções preventivas periódicas e corretivas nos aparelhos condicionadores de ar | D38: 139 | E38: =CAC!W42 -> 2022-09-14 | F38: =CAC!X42 -> 2022-10-09 | G38: =CAC!AB42 -> --- | H38: =CAC!AC42 -> 2023-03-13 | M38: Pendência | N38: Pendência | O38: N/A | P38: Em dia
A39: =CAC!A43 -> SESEG - 15712415 | B39: =CAC!C43 -> 0 | C39: =CAC!B43 -> Aquisição de peças para aparelhos condicionadores de ar, | D39: 108 | E39: =CAC!W43 -> 2022-08-14 | F39: =CAC!X43 -> 2022-09-08 | G39: =CAC!AB43 -> --- | H39: =CAC!AC43 -> 2023-02-10 | M39: Pendência | N39: Pendência | O39: N/A | P39: Em dia
A40: =CAC!A44 -> SESEG - 15713211 | B40: =CAC!C44 -> 0 | C40: =CAC!B44 -> Aquisição de Bateria selada regulada por válvula, estacionária 45Ah, 12V. | D40: 230 | E40: =CAC!W44 -> 2023-03-16 | F40: =CAC!X44 -> 2023-04-10 | G40: =CAC!AB44 -> --- | H40: =CAC!AC44 -> 2023-06-12 | M40: Em dia | N40: Em dia | O40: N/A | P40: Em dia
A41: =CAC!A45 -> SESEG - 15713330 | B41: =CAC!C45 -> 0 | C41: =CAC!B45 -> Aquisição de materiais elétrico/hidráulico | D41: 322 | E41: =CAC!W45 -> 2023-03-16 | F41: =CAC!X45 -> 2023-04-10 | G41: =CAC!AB45 -> --- | H41: =CAC!AC45 -> 2023-09-12 | M41: Em dia | N41: Em dia | O41: N/A | P41: Em dia
A42: =CAC!A46 -> SESEG - 15713366 | B42: =CAC!C46 -> 0 | C42: =CAC!B46 -> Aquisição de materiais de copa e cozinha | D42: 322 | E42: =CAC!W46 -> 2023-04-10 | F42: =CAC!X46 -> 2023-05-05 | G42: =CAC!AB46 -> --- | H42: =CAC!AC46 -> 2023-09-12 | M42: Em dia | N42: Em dia | O42: N/A | P42: Em dia
A43: =CAC!A47 -> SESEG - 15713404 | B43: =CAC!C47 -> 0 | C43: =CAC!B47 -> Prestação de serviços de áudio e vídeo que objetive o registro de Sessão de julgamento do Tribunal de Júri Federal da Justiça Federal de 1ª Instância – Seção Judiciária de Roraima. | D43: 230 | E43: =CAC!W47 -> 2023-04-02 | F43: =CAC!X47 -> 2023-04-27 | G43: =CAC!AB47 -> --- | H43: =CAC!AC47 -> 2023-06-12 | M43: Em dia | N43: Em dia | O43: N/A | P43: Em dia
A44: =CAC!A48 -> SESEG - 15713439 | B44: =CAC!C75 -> 0 | C44: =CAC!B75 -> 0 | D44: -44859 | E44: =CAC!W75 -> 00:00:00 | F44: =CAC!X75 -> 00:00:00 | G44: =CAC!AB75 -> 00:00:00 | H44: =CAC!AC75 -> 00:00:00 | M44: Pendência | N44: Pendência | O44: Pendência | P44: Pendência
A45: =CAC!A49 -> SESEG - 15713478 | B45: =CAC!C76 -> 0 | C45: =CAC!B76 -> 0 | D45: -44859 | E45: =CAC!W76 -> 00:00:00 | F45: =CAC!X76 -> 00:00:00 | G45: =CAC!AB76 -> 00:00:00 | H45: =CAC!AC76 -> 00:00:00 | M45: Pendência | N45: Pendência | O45: Pendência | P45: Pendência
A46: =CAC!A50 -> SEDER - 16594403 | B46: =CAC!C77 -> 0 | C46: =CAC!B77 -> 0 | D46: -44859 | E46: =CAC!W77 -> 00:00:00 | F46: =CAC!X77 -> 00:00:00 | G46: =CAC!AB77 -> 00:00:00 | H46: =CAC!AC77 -> 00:00:00 | M46: Pendência | N46: Pendência | O46: Pendência | P46: Pendência
A47: =CAC!A51 -> 0 | B47: =CAC!C78 -> 0 | C47: =CAC!B78 -> 0 | D47: -44859 | E47: =CAC!W78 -> 00:00:00 | F47: =CAC!X78 -> 00:00:00 | G47: =CAC!AB78 -> 00:00:00 | H47: =CAC!AC78 -> 00:00:00 | M47: Pendência | N47: Pendência | O47: Pendência | P47: Pendência
A48: =CAC!A52 -> 0 | B48: =CAC!C79 -> 0 | C48: =CAC!B79 -> 0 | D48: -44859 | E48: =CAC!W79 -> 00:00:00 | F48: =CAC!X79 -> 00:00:00 | G48: =CAC!AB79 -> 00:00:00 | H48: =CAC!AC79 -> 00:00:00 | M48: Pendência | N48: Pendência | O48: Pendência | P48: Pendência
A49: =CAC!A53 -> 0 | B49: =CAC!C80 -> 0 | C49: =CAC!B80 -> 0 | D49: -44859 | E49: =CAC!W80 -> 00:00:00 | F49: =CAC!X80 -> 00:00:00 | G49: =CAC!AB80 -> 00:00:00 | H49: =CAC!AC80 -> 00:00:00 | M49: Pendência | N49: Pendência | O49: Pendência | P49: Pendência
A50: =CAC!A54 -> 0 | B50: =CAC!C81 -> 0 | C50: =CAC!B81 -> 0 | D50: -44859 | E50: =CAC!W81 -> 00:00:00 | F50: =CAC!X81 -> 00:00:00 | G50: =CAC!AB81 -> 00:00:00 | H50: =CAC!AC81 -> 00:00:00 | M50: Pendência | N50: Pendência | O50: Pendência | P50: Pendência
A51: =CAC!A55 -> 0 | B51: =CAC!C82 -> 0 | C51: =CAC!B82 -> 0 | D51: -44859 | E51: =CAC!W82 -> 00:00:00 | F51: =CAC!X82 -> 00:00:00 | G51: =CAC!AB82 -> 00:00:00 | H51: =CAC!AC82 -> 00:00:00 | M51: Pendência | N51: Pendência | O51: Pendência | P51: Pendência
A52: =CAC!A56 -> 0 | B52: =CAC!C83 -> 0 | C52: =CAC!B83 -> 0 | D52: -44859 | E52: =CAC!W83 -> 00:00:00 | F52: =CAC!X83 -> 00:00:00 | G52: =CAC!AB83 -> 00:00:00 | H52: =CAC!AC83 -> 00:00:00 | M52: Pendência | N52: Pendência | O52: Pendência | P52: Pendência
A53: =CAC!A57 -> 0 | B53: =CAC!C84 -> 0 | C53: =CAC!B84 -> 0 | D53: -44859 | E53: =CAC!W84 -> 00:00:00 | F53: =CAC!X84 -> 00:00:00 | G53: =CAC!AB84 -> 00:00:00 | H53: =CAC!AC84 -> 00:00:00 | M53: Pendência | N53: Pendência | O53: Pendência | P53: Pendência
A54: =CAC!A58 -> 0 | B54: =CAC!C85 -> 0 | C54: =CAC!B85 -> 0 | D54: -44859 | E54: =CAC!W85 -> 00:00:00 | F54: =CAC!X85 -> 00:00:00 | G54: =CAC!AB85 -> 00:00:00 | H54: =CAC!AC85 -> 00:00:00 | M54: Pendência | N54: Pendência | O54: Pendência | P54: Pendência
A55: =CAC!A59 -> 0 | B55: =CAC!C86 -> 0 | C55: =CAC!B86 -> 0 | D55: -44859 | E55: =CAC!W86 -> 00:00:00 | F55: =CAC!X86 -> 00:00:00 | G55: =CAC!AB86 -> 00:00:00 | H55: =CAC!AC86 -> 00:00:00 | M55: Pendência | N55: Pendência | O55: Pendência | P55: Pendência
A56: =CAC!A60 -> 0 | B56: =CAC!C87 -> 0 | C56: =CAC!B87 -> 0 | D56: -44859 | E56: =CAC!W87 -> 00:00:00 | F56: =CAC!X87 -> 00:00:00 | G56: =CAC!AB87 -> 00:00:00 | H56: =CAC!AC87 -> 00:00:00 | M56: Pendência | N56: Pendência | O56: Pendência | P56: Pendência
A57: =CAC!A61 -> 0 | B57: =CAC!C88 -> 0 | C57: =CAC!B88 -> 0 | D57: -44859 | E57: =CAC!W88 -> 00:00:00 | F57: =CAC!X88 -> 00:00:00 | G57: =CAC!AB88 -> 00:00:00 | H57: =CAC!AC88 -> 00:00:00 | M57: Pendência | N57: Pendência | O57: Pendência | P57: Pendência
A58: =CAC!A62 -> 0 | B58: =CAC!C89 -> 0 | C58: =CAC!B89 -> 0 | D58: -44859 | E58: =CAC!W89 -> 00:00:00 | F58: =CAC!X89 -> 00:00:00 | G58: =CAC!AB89 -> 00:00:00 | H58: =CAC!AC89 -> 00:00:00 | M58: Pendência | N58: Pendência | O58: Pendência | P58: Pendência
A59: =CAC!A63 -> 0 | B59: =CAC!C90 -> 0 | C59: =CAC!B90 -> 0 | D59: -44859 | E59: =CAC!W90 -> 00:00:00 | F59: =CAC!X90 -> 00:00:00 | G59: =CAC!AB90 -> 00:00:00 | H59: =CAC!AC90 -> 00:00:00 | M59: Pendência | N59: Pendência | O59: Pendência | P59: Pendência
A60: =CAC!A64 -> 0 | B60: =CAC!C91 -> 0 | C60: =CAC!B91 -> 0 | D60: -44859 | E60: =CAC!W91 -> 00:00:00 | F60: =CAC!X91 -> 00:00:00 | G60: =CAC!AB91 -> 00:00:00 | H60: =CAC!AC91 -> 00:00:00 | M60: Pendência | N60: Pendência | O60: Pendência | P60: Pendência
A61: =CAC!A65 -> 0 | B61: =CAC!C92 -> 0 | C61: =CAC!B92 -> 0 | D61: -44859 | E61: =CAC!W92 -> 00:00:00 | F61: =CAC!X92 -> 00:00:00 | G61: =CAC!AB92 -> 00:00:00 | H61: =CAC!AC92 -> 00:00:00 | M61: Pendência | N61: Pendência | O61: Pendência | P61: Pendência
A62: =CAC!A66 -> 0 | B62: =CAC!C93 -> 0 | C62: =CAC!B93 -> 0 | D62: -44859 | E62: =CAC!W93 -> 00:00:00 | F62: =CAC!X93 -> 00:00:00 | G62: =CAC!AB93 -> 00:00:00 | H62: =CAC!AC93 -> 00:00:00 | M62: Pendência | N62: Pendência | O62: Pendência | P62: Pendência
A63: =CAC!A67 -> 0 | B63: =CAC!C94 -> 0 | C63: =CAC!B94 -> 0 | D63: -44859 | E63: =CAC!W94 -> 00:00:00 | F63: =CAC!X94 -> 00:00:00 | G63: =CAC!AB94 -> 00:00:00 | H63: =CAC!AC94 -> 00:00:00 | M63: Pendência | N63: Pendência | O63: Pendência | P63: Pendência
A64: =CAC!A68 -> 0 | B64: =CAC!C95 -> 0 | C64: =CAC!B95 -> 0 | D64: -44859 | E64: =CAC!W95 -> 00:00:00 | F64: =CAC!X95 -> 00:00:00 | G64: =CAC!AB95 -> 00:00:00 | H64: =CAC!AC95 -> 00:00:00 | M64: Pendência | N64: Pendência | O64: Pendência | P64: Pendência
A65: =CAC!A69 -> 0 | B65: =CAC!C96 -> 0 | C65: =CAC!B96 -> 0 | D65: -44859 | E65: =CAC!W96 -> 00:00:00 | F65: =CAC!X96 -> 00:00:00 | G65: =CAC!AB96 -> 00:00:00 | H65: =CAC!AC96 -> 00:00:00 | M65: Pendência | N65: Pendência | O65: Pendência | P65: Pendência
A66: =CAC!A70 -> 0 | B66: =CAC!C97 -> 0 | C66: =CAC!B97 -> 0 | D66: -44859 | E66: =CAC!W97 -> 00:00:00 | F66: =CAC!X97 -> 00:00:00 | G66: =CAC!AB97 -> 00:00:00 | H66: =CAC!AC97 -> 00:00:00 | M66: Pendência | N66: Pendência | O66: Pendência | P66: Pendência
A67: =CAC!A71 -> 0 | B67: =CAC!C98 -> 0 | C67: =CAC!B98 -> 0 | D67: =H67-TODAY() -> -44859 | E67: =CAC!W98 -> 00:00:00 | F67: =CAC!X98 -> 00:00:00 | G67: =CAC!AB98 -> 00:00:00 | H67: =CAC!AC98 -> 00:00:00 | M67: =IF(E67="---","N/A",IF(AND(I67="",NOW()-E67<0),"Em dia",IF(AND(I67="",NOW()-E67>0),"Pendência",IF(I67>E67,"Entregue com atraso","Entregue")))) -> Pendência | N67: =IF(F67="---","N/A",IF(AND(J67="",NOW()-F67<0),"Em dia",IF(AND(J67="",NOW()-F67>0),"Pendência",IF(J67>F67,"Entregue com atraso","Entregue")))) -> Pendência | O67: =IF(G67="---","N/A",IF(AND(K67="",NOW()-G67<0),"Em dia",IF(AND(K67="",NOW()-G67>0),"Pendência",IF(K67>G67,"Contratado com atraso","Contratado")))) -> Pendência | P67: =IF(AND(L67="",NOW()-H67<0),"Em dia",IF(AND(L67="",NOW()-H67>0),"Pendência",IF(L67>H67,"Contratado com atraso","Contratado"))) -> Pendência
A68: =CAC!A72 -> 0 | B68: =CAC!C99 -> 0 | C68: =CAC!B99 -> 0 | D68: -44859 | E68: =CAC!W99 -> 00:00:00 | F68: =CAC!X99 -> 00:00:00 | G68: =CAC!AB99 -> 00:00:00 | H68: =CAC!AC99 -> 00:00:00 | M68: Pendência | N68: Pendência | O68: Pendência | P68: Pendência
A69: =CAC!A73 -> 0 | B69: =CAC!C100 -> 0 | C69: =CAC!B100 -> 0 | D69: -44859 | E69: =CAC!W100 -> 00:00:00 | F69: =CAC!X100 -> 00:00:00 | G69: =CAC!AB100 -> 00:00:00 | H69: =CAC!AC100 -> 00:00:00 | M69: Pendência | N69: Pendência | O69: Pendência | P69: Pendência
A70: =CAC!A74 -> 0 | B70: =CAC!C101 -> 0 | C70: =CAC!B101 -> 0 | D70: -44859 | E70: =CAC!W101 -> 00:00:00 | F70: =CAC!X101 -> 00:00:00 | G70: =CAC!AB101 -> 00:00:00 | H70: =CAC!AC101 -> 00:00:00 | M70: Pendência | N70: Pendência | O70: Pendência | P70: Pendência
A71: =CAC!A75 -> 0 | B71: =CAC!C102 -> 0 | C71: =CAC!B102 -> 0 | D71: -44859 | E71: =CAC!W102 -> 00:00:00 | F71: =CAC!X102 -> 00:00:00 | G71: =CAC!AB102 -> 00:00:00 | H71: =CAC!AC102 -> 00:00:00 | M71: Pendência | N71: Pendência | O71: Pendência | P71: Pendência
A72: =CAC!A76 -> 0 | B72: =CAC!C103 -> 0 | C72: =CAC!B103 -> 0 | D72: -44859 | E72: =CAC!W103 -> 00:00:00 | F72: =CAC!X103 -> 00:00:00 | G72: =CAC!AB103 -> 00:00:00 | H72: =CAC!AC103 -> 00:00:00 | M72: Pendência | N72: Pendência | O72: Pendência | P72: Pendência
A73: =CAC!A77 -> 0 | B73: =CAC!C104 -> 0 | C73: =CAC!B104 -> 0 | D73: -44859 | E73: =CAC!W104 -> 00:00:00 | F73: =CAC!X104 -> 00:00:00 | G73: =CAC!AB104 -> 00:00:00 | H73: =CAC!AC104 -> 00:00:00 | M73: Pendência | N73: Pendência | O73: Pendência | P73: Pendência
A74: =CAC!A78 -> 0 | B74: =CAC!C105 -> 0 | C74: =CAC!B105 -> 0 | D74: -44859 | E74: =CAC!W105 -> 00:00:00 | F74: =CAC!X105 -> 00:00:00 | G74: =CAC!AB105 -> 00:00:00 | H74: =CAC!AC105 -> 00:00:00 | M74: Pendência | N74: Pendência | O74: Pendência | P74: Pendência
A75: =CAC!A79 -> 0 | B75: =CAC!C106 -> 0 | C75: =CAC!B106 -> 0 | D75: -44859 | E75: =CAC!W106 -> 00:00:00 | F75: =CAC!X106 -> 00:00:00 | G75: =CAC!AB106 -> 00:00:00 | H75: =CAC!AC106 -> 00:00:00 | M75: Pendência | N75: Pendência | O75: Pendência | P75: Pendência
A76: =CAC!A80 -> 0 | B76: =CAC!C107 -> 0 | C76: =CAC!B107 -> 0 | D76: -44859 | E76: =CAC!W107 -> 00:00:00 | F76: =CAC!X107 -> 00:00:00 | G76: =CAC!AB107 -> 00:00:00 | H76: =CAC!AC107 -> 00:00:00 | M76: Pendência | N76: Pendência | O76: Pendência | P76: Pendência
A77: =CAC!A81 -> 0 | B77: =CAC!C108 -> 0 | C77: =CAC!B108 -> 0 | D77: -44859 | E77: =CAC!W108 -> 00:00:00 | F77: =CAC!X108 -> 00:00:00 | G77: =CAC!AB108 -> 00:00:00 | H77: =CAC!AC108 -> 00:00:00 | M77: Pendência | N77: Pendência | O77: Pendência | P77: Pendência
A78: =CAC!A82 -> 0 | B78: =CAC!C109 -> 0 | C78: =CAC!B109 -> 0 | D78: -44859 | E78: =CAC!W109 -> 00:00:00 | F78: =CAC!X109 -> 00:00:00 | G78: =CAC!AB109 -> 00:00:00 | H78: =CAC!AC109 -> 00:00:00 | M78: Pendência | N78: Pendência | O78: Pendência | P78: Pendência
A79: =CAC!A83 -> 0 | B79: =CAC!C110 -> 0 | C79: =CAC!B110 -> 0 | D79: -44859 | E79: =CAC!W110 -> 00:00:00 | F79: =CAC!X110 -> 00:00:00 | G79: =CAC!AB110 -> 00:00:00 | H79: =CAC!AC110 -> 00:00:00 | M79: Pendência | N79: Pendência | O79: Pendência | P79: Pendência
A80: =CAC!A84 -> 0 | B80: =CAC!C111 -> 0 | C80: =CAC!B111 -> 0 | D80: -44859 | E80: =CAC!W111 -> 00:00:00 | F80: =CAC!X111 -> 00:00:00 | G80: =CAC!AB111 -> 00:00:00 | H80: =CAC!AC111 -> 00:00:00 | M80: Pendência | N80: Pendência | O80: Pendência | P80: Pendência
A81: =CAC!A85 -> 0 | B81: =CAC!C112 -> 0 | C81: =CAC!B112 -> 0 | D81: -44859 | E81: =CAC!W112 -> 00:00:00 | F81: =CAC!X112 -> 00:00:00 | G81: =CAC!AB112 -> 00:00:00 | H81: =CAC!AC112 -> 00:00:00 | M81: Pendência | N81: Pendência | O81: Pendência | P81: Pendência
A82: =CAC!A86 -> 0 | B82: =CAC!C113 -> 0 | C82: =CAC!B113 -> 0 | D82: -44859 | E82: =CAC!W113 -> 00:00:00 | F82: =CAC!X113 -> 00:00:00 | G82: =CAC!AB113 -> 00:00:00 | H82: =CAC!AC113 -> 00:00:00 | M82: Pendência | N82: Pendência | O82: Pendência | P82: Pendência
A83: =CAC!A87 -> 0 | B83: =CAC!C114 -> 0 | C83: =CAC!B114 -> 0 | D83: -44859 | E83: =CAC!W114 -> 00:00:00 | F83: =CAC!X114 -> 00:00:00 | G83: =CAC!AB114 -> 00:00:00 | H83: =CAC!AC114 -> 00:00:00 | M83: Pendência | N83: Pendência | O83: Pendência | P83: Pendência
A84: =CAC!A88 -> 0 | B84: =CAC!C115 -> 0 | C84: =CAC!B115 -> 0 | D84: -44859 | E84: =CAC!W115 -> 00:00:00 | F84: =CAC!X115 -> 00:00:00 | G84: =CAC!AB115 -> 00:00:00 | H84: =CAC!AC115 -> 00:00:00 | M84: Pendência | N84: Pendência | O84: Pendência | P84: Pendência
A85: =CAC!A89 -> 0 | B85: =CAC!C116 -> 0 | C85: =CAC!B116 -> 0 | D85: -44859 | E85: =CAC!W116 -> 00:00:00 | F85: =CAC!X116 -> 00:00:00 | G85: =CAC!AB116 -> 00:00:00 | H85: =CAC!AC116 -> 00:00:00 | M85: Pendência | N85: Pendência | O85: Pendência | P85: Pendência
A86: =CAC!A90 -> 0 | B86: =CAC!C117 -> 0 | C86: =CAC!B117 -> 0 | D86: -44859 | E86: =CAC!W117 -> 00:00:00 | F86: =CAC!X117 -> 00:00:00 | G86: =CAC!AB117 -> 00:00:00 | H86: =CAC!AC117 -> 00:00:00 | M86: Pendência | N86: Pendência | O86: Pendência | P86: Pendência
A87: =CAC!A91 -> 0 | B87: =CAC!C118 -> 0 | C87: =CAC!B118 -> 0 | D87: -44859 | E87: =CAC!W118 -> 00:00:00 | F87: =CAC!X118 -> 00:00:00 | G87: =CAC!AB118 -> 00:00:00 | H87: =CAC!AC118 -> 00:00:00 | M87: Pendência | N87: Pendência | O87: Pendência | P87: Pendência
A88: =CAC!A92 -> 0 | B88: =CAC!C119 -> 0 | C88: =CAC!B119 -> 0 | D88: -44859 | E88: =CAC!W119 -> 00:00:00 | F88: =CAC!X119 -> 00:00:00 | G88: =CAC!AB119 -> 00:00:00 | H88: =CAC!AC119 -> 00:00:00 | M88: Pendência | N88: Pendência | O88: Pendência | P88: Pendência
A89: =CAC!A93 -> 0 | B89: =CAC!C120 -> 0 | C89: =CAC!B120 -> 0 | D89: -44859 | E89: =CAC!W120 -> 00:00:00 | F89: =CAC!X120 -> 00:00:00 | G89: =CAC!AB120 -> 00:00:00 | H89: =CAC!AC120 -> 00:00:00 | M89: Pendência | N89: Pendência | O89: Pendência | P89: Pendência
A90: =CAC!A94 -> 0 | B90: =CAC!C121 -> 0 | C90: =CAC!B121 -> 0 | D90: -44859 | E90: =CAC!W121 -> 00:00:00 | F90: =CAC!X121 -> 00:00:00 | G90: =CAC!AB121 -> 00:00:00 | H90: =CAC!AC121 -> 00:00:00 | M90: Pendência | N90: Pendência | O90: Pendência | P90: Pendência
A91: =CAC!A95 -> 0 | B91: =CAC!C122 -> 0 | C91: =CAC!B122 -> 0 | D91: -44859 | E91: =CAC!W122 -> 00:00:00 | F91: =CAC!X122 -> 00:00:00 | G91: =CAC!AB122 -> 00:00:00 | H91: =CAC!AC122 -> 00:00:00 | M91: Pendência | N91: Pendência | O91: Pendência | P91: Pendência
A92: =CAC!A96 -> 0 | B92: =CAC!C123 -> 0 | C92: =CAC!B123 -> 0 | D92: -44859 | E92: =CAC!W123 -> 00:00:00 | F92: =CAC!X123 -> 00:00:00 | G92: =CAC!AB123 -> 00:00:00 | H92: =CAC!AC123 -> 00:00:00 | M92: Pendência | N92: Pendência | O92: Pendência | P92: Pendência
A93: =CAC!A97 -> 0 | B93: =CAC!C124 -> 0 | C93: =CAC!B124 -> 0 | D93: -44859 | E93: =CAC!W124 -> 00:00:00 | F93: =CAC!X124 -> 00:00:00 | G93: =CAC!AB124 -> 00:00:00 | H93: =CAC!AC124 -> 00:00:00 | M93: Pendência | N93: Pendência | O93: Pendência | P93: Pendência
A94: =CAC!A98 -> 0 | B94: =CAC!C125 -> 0 | C94: =CAC!B125 -> 0 | D94: -44859 | E94: =CAC!W125 -> 00:00:00 | F94: =CAC!X125 -> 00:00:00 | G94: =CAC!AB125 -> 00:00:00 | H94: =CAC!AC125 -> 00:00:00 | M94: Pendência | N94: Pendência | O94: Pendência | P94: Pendência
A95: =CAC!A99 -> 0 | B95: =CAC!C126 -> 0 | C95: =CAC!B126 -> 0 | D95: -44859 | E95: =CAC!W126 -> 00:00:00 | F95: =CAC!X126 -> 00:00:00 | G95: =CAC!AB126 -> 00:00:00 | H95: =CAC!AC126 -> 00:00:00 | M95: Pendência | N95: Pendência | O95: Pendência | P95: Pendência
A96: =CAC!A100 -> 0 | B96: =CAC!C127 -> 0 | C96: =CAC!B127 -> 0 | D96: -44859 | E96: =CAC!W127 -> 00:00:00 | F96: =CAC!X127 -> 00:00:00 | G96: =CAC!AB127 -> 00:00:00 | H96: =CAC!AC127 -> 00:00:00 | M96: Pendência | N96: Pendência | O96: Pendência | P96: Pendência
A97: =CAC!A101 -> 0 | B97: =CAC!C128 -> 0 | C97: =CAC!B128 -> 0 | D97: -44859 | E97: =CAC!W128 -> 00:00:00 | F97: =CAC!X128 -> 00:00:00 | G97: =CAC!AB128 -> 00:00:00 | H97: =CAC!AC128 -> 00:00:00 | M97: Pendência | N97: Pendência | O97: Pendência | P97: Pendência
A98: =CAC!A102 -> 0 | B98: =CAC!C129 -> 0 | C98: =CAC!B129 -> 0 | D98: -44859 | E98: =CAC!W129 -> 00:00:00 | F98: =CAC!X129 -> 00:00:00 | G98: =CAC!AB129 -> 00:00:00 | H98: =CAC!AC129 -> 00:00:00 | M98: Pendência | N98: Pendência | O98: Pendência | P98: Pendência
A99: =CAC!A103 -> 0 | B99: =CAC!C130 -> 0 | C99: =CAC!B130 -> 0 | D99: -44859 | E99: =CAC!W130 -> 00:00:00 | F99: =CAC!X130 -> 00:00:00 | G99: =CAC!AB130 -> 00:00:00 | H99: =CAC!AC130 -> 00:00:00 | M99: Pendência | N99: Pendência | O99: Pendência | P99: Pendência
A100: =CAC!A104 -> 0 | B100: =CAC!C131 -> 0 | C100: =CAC!B131 -> 0 | D100: -44859 | E100: =CAC!W131 -> 00:00:00 | F100: =CAC!X131 -> 00:00:00 | G100: =CAC!AB131 -> 00:00:00 | H100: =CAC!AC131 -> 00:00:00 | M100: Pendência | N100: Pendência | O100: Pendência | P100: Pendência
A101: =CAC!A105 -> 0 | B101: =CAC!C132 -> 0 | C101: =CAC!B132 -> 0 | D101: -44859 | E101: =CAC!W132 -> 00:00:00 | F101: =CAC!X132 -> 00:00:00 | G101: =CAC!AB132 -> 00:00:00 | H101: =CAC!AC132 -> 00:00:00 | M101: Pendência | N101: Pendência | O101: Pendência | P101: Pendência
A102: =CAC!A106 -> 0 | B102: =CAC!C133 -> 0 | C102: =CAC!B133 -> 0 | D102: -44859 | E102: =CAC!W133 -> 00:00:00 | F102: =CAC!X133 -> 00:00:00 | G102: =CAC!AB133 -> 00:00:00 | H102: =CAC!AC133 -> 00:00:00 | M102: Pendência | N102: Pendência | O102: Pendência | P102: Pendência
A103: =CAC!A107 -> 0 | B103: =CAC!C134 -> 0 | C103: =CAC!B134 -> 0 | D103: -44859 | E103: =CAC!W134 -> 00:00:00 | F103: =CAC!X134 -> 00:00:00 | G103: =CAC!AB134 -> 00:00:00 | H103: =CAC!AC134 -> 00:00:00 | M103: Pendência | N103: Pendência | O103: Pendência | P103: Pendência
A104: =CAC!A108 -> 0 | B104: =CAC!C135 -> 0 | C104: =CAC!B135 -> 0 | D104: -44859 | E104: =CAC!W135 -> 00:00:00 | F104: =CAC!X135 -> 00:00:00 | G104: =CAC!AB135 -> 00:00:00 | H104: =CAC!AC135 -> 00:00:00 | M104: Pendência | N104: Pendência | O104: Pendência | P104: Pendência
A105: =CAC!A109 -> 0 | B105: =CAC!C136 -> 0 | C105: =CAC!B136 -> 0 | D105: -44859 | E105: =CAC!W136 -> 00:00:00 | F105: =CAC!X136 -> 00:00:00 | G105: =CAC!AB136 -> 00:00:00 | H105: =CAC!AC136 -> 00:00:00 | M105: Pendência | N105: Pendência | O105: Pendência | P105: Pendência
A106: =CAC!A110 -> 0 | B106: =CAC!C137 -> 0 | C106: =CAC!B137 -> 0 | D106: -44859 | E106: =CAC!W137 -> 00:00:00 | F106: =CAC!X137 -> 00:00:00 | G106: =CAC!AB137 -> 00:00:00 | H106: =CAC!AC137 -> 00:00:00 | M106: Pendência | N106: Pendência | O106: Pendência | P106: Pendência
A107: =CAC!A111 -> 0 | B107: =CAC!C138 -> 0 | C107: =CAC!B138 -> 0 | D107: -44859 | E107: =CAC!W138 -> 00:00:00 | F107: =CAC!X138 -> 00:00:00 | G107: =CAC!AB138 -> 00:00:00 | H107: =CAC!AC138 -> 00:00:00 | M107: Pendência | N107: Pendência | O107: Pendência | P107: Pendência
A108: =CAC!A112 -> 0 | B108: =CAC!C139 -> 0 | C108: =CAC!B139 -> 0 | D108: -44859 | E108: =CAC!W139 -> 00:00:00 | F108: =CAC!X139 -> 00:00:00 | G108: =CAC!AB139 -> 00:00:00 | H108: =CAC!AC139 -> 00:00:00 | M108: Pendência | N108: Pendência | O108: Pendência | P108: Pendência
A109: =CAC!A140 -> 0 | B109: =CAC!C140 -> 0 | C109: =CAC!B140 -> 0 | D109: -44859 | E109: =CAC!W140 -> 00:00:00 | F109: =CAC!X140 -> 00:00:00 | G109: =CAC!AB140 -> 00:00:00 | H109: =CAC!AC140 -> 00:00:00 | M109: Pendência | N109: Pendência | O109: Pendência | P109: Pendência
A110: =CAC!A141 -> 0 | B110: =CAC!C141 -> 0 | C110: =CAC!B141 -> 0 | D110: -44859 | E110: =CAC!W141 -> 00:00:00 | F110: =CAC!X141 -> 00:00:00 | G110: =CAC!AB141 -> 00:00:00 | H110: =CAC!AC141 -> 00:00:00 | M110: Pendência | N110: Pendência | O110: Pendência | P110: Pendência
A111: =CAC!A142 -> 0 | B111: =CAC!C142 -> 0 | C111: =CAC!B142 -> 0 | D111: -44859 | E111: =CAC!W142 -> 00:00:00 | F111: =CAC!X142 -> 00:00:00 | G111: =CAC!AB142 -> 00:00:00 | H111: =CAC!AC142 -> 00:00:00 | M111: Pendência | N111: Pendência | O111: Pendência | P111: Pendência
A112: =CAC!A143 -> 0 | B112: =CAC!C143 -> 0 | C112: =CAC!B143 -> 0 | D112: -44859 | E112: =CAC!W143 -> 00:00:00 | F112: =CAC!X143 -> 00:00:00 | G112: =CAC!AB143 -> 00:00:00 | H112: =CAC!AC143 -> 00:00:00 | M112: Pendência | N112: Pendência | O112: Pendência | P112: Pendência
A113: =CAC!A144 -> 0 | B113: =CAC!C144 -> 0 | C113: =CAC!B144 -> 0 | D113: -44859 | E113: =CAC!W144 -> 00:00:00 | F113: =CAC!X144 -> 00:00:00 | G113: =CAC!AB144 -> 00:00:00 | H113: =CAC!AC144 -> 00:00:00 | M113: Pendência | N113: Pendência | O113: Pendência | P113: Pendência
A114: =CAC!A145 -> 0 | B114: =CAC!C145 -> 0 | C114: =CAC!B145 -> 0 | D114: -44859 | E114: =CAC!W145 -> 00:00:00 | F114: =CAC!X145 -> 00:00:00 | G114: =CAC!AB145 -> 00:00:00 | H114: =CAC!AC145 -> 00:00:00 | M114: Pendência | N114: Pendência | O114: Pendência | P114: Pendência
A115: =CAC!A146 -> 0 | B115: =CAC!C146 -> 0 | C115: =CAC!B146 -> 0 | D115: -44859 | E115: =CAC!W146 -> 00:00:00 | F115: =CAC!X146 -> 00:00:00 | G115: =CAC!AB146 -> 00:00:00 | H115: =CAC!AC146 -> 00:00:00 | M115: Pendência | N115: Pendência | O115: Pendência | P115: Pendência
A116: =CAC!A147 -> 0 | B116: =CAC!C147 -> 0 | C116: =CAC!B147 -> 0 | D116: -44859 | E116: =CAC!W147 -> 00:00:00 | F116: =CAC!X147 -> 00:00:00 | G116: =CAC!AB147 -> 00:00:00 | H116: =CAC!AC147 -> 00:00:00 | M116: Pendência | N116: Pendência | O116: Pendência | P116: Pendência
A117: =CAC!A148 -> 0 | B117: =CAC!C148 -> 0 | C117: =CAC!B148 -> 0 | D117: -44859 | E117: =CAC!W148 -> 00:00:00 | F117: =CAC!X148 -> 00:00:00 | G117: =CAC!AB148 -> 00:00:00 | H117: =CAC!AC148 -> 00:00:00 | M117: Pendência | N117: Pendência | O117: Pendência | P117: Pendência
A118: =CAC!A149 -> 0 | B118: =CAC!C149 -> 0 | C118: =CAC!B149 -> 0 | D118: -44859 | E118: =CAC!W149 -> 00:00:00 | F118: =CAC!X149 -> 00:00:00 | G118: =CAC!AB149 -> 00:00:00 | H118: =CAC!AC149 -> 00:00:00 | M118: Pendência | N118: Pendência | O118: Pendência | P118: Pendência
A119: =CAC!A150 -> 0 | B119: =CAC!C150 -> 0 | C119: =CAC!B150 -> 0 | D119: -44859 | E119: =CAC!W150 -> 00:00:00 | F119: =CAC!X150 -> 00:00:00 | G119: =CAC!AB150 -> 00:00:00 | H119: =CAC!AC150 -> 00:00:00 | M119: Pendência | N119: Pendência | O119: Pendência | P119: Pendência
A120: =CAC!A151 -> 0 | B120: =CAC!C151 -> 0 | C120: =CAC!B151 -> 0 | D120: -44859 | E120: =CAC!W151 -> 00:00:00 | F120: =CAC!X151 -> 00:00:00 | G120: =CAC!AB151 -> 00:00:00 | H120: =CAC!AC151 -> 00:00:00 | M120: Pendência | N120: Pendência | O120: Pendência | P120: Pendência
A121: =CAC!A152 -> 0 | B121: =CAC!C152 -> 0 | C121: =CAC!B152 -> 0 | D121: -44859 | E121: =CAC!W152 -> 00:00:00 | F121: =CAC!X152 -> 00:00:00 | G121: =CAC!AB152 -> 00:00:00 | H121: =CAC!AC152 -> 00:00:00 | M121: Pendência | N121: Pendência | O121: Pendência | P121: Pendência
A122: =CAC!A153 -> 0 | B122: =CAC!C153 -> 0 | C122: =CAC!B153 -> 0 | D122: -44859 | E122: =CAC!W153 -> 00:00:00 | F122: =CAC!X153 -> 00:00:00 | G122: =CAC!AB153 -> 00:00:00 | H122: =CAC!AC153 -> 00:00:00 | M122: Pendência | N122: Pendência | O122: Pendência | P122: Pendência
A123: =CAC!A154 -> 0 | B123: =CAC!C154 -> 0 | C123: =CAC!B154 -> 0 | D123: -44859 | E123: =CAC!W154 -> 00:00:00 | F123: =CAC!X154 -> 00:00:00 | G123: =CAC!AB154 -> 00:00:00 | H123: =CAC!AC154 -> 00:00:00 | M123: Pendência | N123: Pendência | O123: Pendência | P123: Pendência
A124: =CAC!A155 -> 0 | B124: =CAC!C155 -> 0 | C124: =CAC!B155 -> 0 | D124: -44859 | E124: =CAC!W155 -> 00:00:00 | F124: =CAC!X155 -> 00:00:00 | G124: =CAC!AB155 -> 00:00:00 | H124: =CAC!AC155 -> 00:00:00 | M124: Pendência | N124: Pendência | O124: Pendência | P124: Pendência
A125: =CAC!A156 -> 0 | B125: =CAC!C156 -> 0 | C125: =CAC!B156 -> 0 | D125: -44859 | E125: =CAC!W156 -> 00:00:00 | F125: =CAC!X156 -> 00:00:00 | G125: =CAC!AB156 -> 00:00:00 | H125: =CAC!AC156 -> 00:00:00 | M125: Pendência | N125: Pendência | O125: Pendência | P125: Pendência
A126: =CAC!A157 -> 0 | B126: =CAC!C157 -> 0 | C126: =CAC!B157 -> 0 | D126: -44859 | E126: =CAC!W157 -> 00:00:00 | F126: =CAC!X157 -> 00:00:00 | G126: =CAC!AB157 -> 00:00:00 | H126: =CAC!AC157 -> 00:00:00 | M126: Pendência | N126: Pendência | O126: Pendência | P126: Pendência
A127: =CAC!A158 -> 0 | B127: =CAC!C158 -> 0 | C127: =CAC!B158 -> 0 | D127: -44859 | E127: =CAC!W158 -> 00:00:00 | F127: =CAC!X158 -> 00:00:00 | G127: =CAC!AB158 -> 00:00:00 | H127: =CAC!AC158 -> 00:00:00 | M127: Pendência | N127: Pendência | O127: Pendência | P127: Pendência
A128: =CAC!A159 -> 0 | B128: =CAC!C159 -> 0 | C128: =CAC!B159 -> 0 | D128: -44859 | E128: =CAC!W159 -> 00:00:00 | F128: =CAC!X159 -> 00:00:00 | G128: =CAC!AB159 -> 00:00:00 | H128: =CAC!AC159 -> 00:00:00 | M128: Pendência | N128: Pendência | O128: Pendência | P128: Pendência
A129: =CAC!A160 -> 0 | B129: =CAC!C160 -> 0 | C129: =CAC!B160 -> 0 | D129: -44859 | E129: =CAC!W160 -> 00:00:00 | F129: =CAC!X160 -> 00:00:00 | G129: =CAC!AB160 -> 00:00:00 | H129: =CAC!AC160 -> 00:00:00 | M129: Pendência | N129: Pendência | O129: Pendência | P129: Pendência
A130: =CAC!A161 -> 0 | B130: =CAC!C161 -> 0 | C130: =CAC!B161 -> 0 | D130: -44859 | E130: =CAC!W161 -> 00:00:00 | F130: =CAC!X161 -> 00:00:00 | G130: =CAC!AB161 -> 00:00:00 | H130: =CAC!AC161 -> 00:00:00 | M130: Pendência | N130: Pendência | O130: Pendência | P130: Pendência
A131: =CAC!A162 -> 0 | B131: =CAC!C162 -> 0 | C131: =CAC!B162 -> 0 | D131: =H131-TODAY() -> -44859 | E131: =CAC!W162 -> 00:00:00 | F131: =CAC!X162 -> 00:00:00 | G131: =CAC!AB162 -> 00:00:00 | H131: =CAC!AC162 -> 00:00:00 | M131: =IF(E131="---","N/A",IF(AND(I131="",NOW()-E131<0),"Em dia",IF(AND(I131="",NOW()-E131>0),"Pendência",IF(I131>E131,"Entregue com atraso","Entregue")))) -> Pendência | N131: =IF(F131="---","N/A",IF(AND(J131="",NOW()-F131<0),"Em dia",IF(AND(J131="",NOW()-F131>0),"Pendência",IF(J131>F131,"Entregue com atraso","Entregue")))) -> Pendência | O131: =IF(G131="---","N/A",IF(AND(K131="",NOW()-G131<0),"Em dia",IF(AND(K131="",NOW()-G131>0),"Pendência",IF(K131>G131,"Contratado com atraso","Contratado")))) -> Pendência | P131: =IF(AND(L131="",NOW()-H131<0),"Em dia",IF(AND(L131="",NOW()-H131>0),"Pendência",IF(L131>H131,"Contratado com atraso","Contratado"))) -> Pendência
A132: =CAC!A163 -> 0 | B132: =CAC!C163 -> 0 | C132: =CAC!B163 -> 0 | D132: -44859 | E132: =CAC!W163 -> 00:00:00 | F132: =CAC!X163 -> 00:00:00 | G132: =CAC!AB163 -> 00:00:00 | H132: =CAC!AC163 -> 00:00:00 | M132: Pendência | N132: Pendência | O132: Pendência | P132: Pendência
A133: =CAC!A164 -> 0 | B133: =CAC!C164 -> 0 | C133: =CAC!B164 -> 0 | D133: -44859 | E133: =CAC!W164 -> 00:00:00 | F133: =CAC!X164 -> 00:00:00 | G133: =CAC!AB164 -> 00:00:00 | H133: =CAC!AC164 -> 00:00:00 | M133: Pendência | N133: Pendência | O133: Pendência | P133: Pendência
A134: =CAC!A165 -> 0 | B134: =CAC!C165 -> 0 | C134: =CAC!B165 -> 0 | D134: -44859 | E134: =CAC!W165 -> 00:00:00 | F134: =CAC!X165 -> 00:00:00 | G134: =CAC!AB165 -> 00:00:00 | H134: =CAC!AC165 -> 00:00:00 | M134: Pendência | N134: Pendência | O134: Pendência | P134: Pendência
A135: =CAC!A166 -> 0 | B135: =CAC!C166 -> 0 | C135: =CAC!B166 -> 0 | D135: -44859 | E135: =CAC!W166 -> 00:00:00 | F135: =CAC!X166 -> 00:00:00 | G135: =CAC!AB166 -> 00:00:00 | H135: =CAC!AC166 -> 00:00:00 | M135: Pendência | N135: Pendência | O135: Pendência | P135: Pendência
A136: =CAC!A167 -> 0 | B136: =CAC!C167 -> 0 | C136: =CAC!B167 -> 0 | D136: -44859 | E136: =CAC!W167 -> 00:00:00 | F136: =CAC!X167 -> 00:00:00 | G136: =CAC!AB167 -> 00:00:00 | H136: =CAC!AC167 -> 00:00:00 | M136: Pendência | N136: Pendência | O136: Pendência | P136: Pendência
A137: =CAC!A168 -> 0 | B137: =CAC!C168 -> 0 | C137: =CAC!B168 -> 0 | D137: -44859 | E137: =CAC!W168 -> 00:00:00 | F137: =CAC!X168 -> 00:00:00 | G137: =CAC!AB168 -> 00:00:00 | H137: =CAC!AC168 -> 00:00:00 | M137: Pendência | N137: Pendência | O137: Pendência | P137: Pendência
A138: =CAC!A169 -> 0 | B138: =CAC!C169 -> 0 | C138: =CAC!B169 -> 0 | D138: -44859 | E138: =CAC!W169 -> 00:00:00 | F138: =CAC!X169 -> 00:00:00 | G138: =CAC!AB169 -> 00:00:00 | H138: =CAC!AC169 -> 00:00:00 | M138: Pendência | N138: Pendência | O138: Pendência | P138: Pendência
A139: =CAC!A170 -> 0 | B139: =CAC!C170 -> 0 | C139: =CAC!B170 -> 0 | D139: -44859 | E139: =CAC!W170 -> 00:00:00 | F139: =CAC!X170 -> 00:00:00 | G139: =CAC!AB170 -> 00:00:00 | H139: =CAC!AC170 -> 00:00:00 | M139: Pendência | N139: Pendência | O139: Pendência | P139: Pendência
A140: =CAC!A171 -> 0 | B140: =CAC!C171 -> 0 | C140: =CAC!B171 -> 0 | D140: -44859 | E140: =CAC!W171 -> 00:00:00 | F140: =CAC!X171 -> 00:00:00 | G140: =CAC!AB171 -> 00:00:00 | H140: =CAC!AC171 -> 00:00:00 | M140: Pendência | N140: Pendência | O140: Pendência | P140: Pendência
A141: =CAC!A172 -> 0 | B141: =CAC!C172 -> 0 | C141: =CAC!B172 -> 0 | D141: -44859 | E141: =CAC!W172 -> 00:00:00 | F141: =CAC!X172 -> 00:00:00 | G141: =CAC!AB172 -> 00:00:00 | H141: =CAC!AC172 -> 00:00:00 | M141: Pendência | N141: Pendência | O141: Pendência | P141: Pendência
A142: =CAC!A173 -> 0 | B142: =CAC!C173 -> 0 | C142: =CAC!B173 -> 0 | D142: -44859 | E142: =CAC!W173 -> 00:00:00 | F142: =CAC!X173 -> 00:00:00 | G142: =CAC!AB173 -> 00:00:00 | H142: =CAC!AC173 -> 00:00:00 | M142: Pendência | N142: Pendência | O142: Pendência | P142: Pendência
A143: =CAC!A174 -> 0 | B143: =CAC!C174 -> 0 | C143: =CAC!B174 -> 0 | D143: -44859 | E143: =CAC!W174 -> 00:00:00 | F143: =CAC!X174 -> 00:00:00 | G143: =CAC!AB174 -> 00:00:00 | H143: =CAC!AC174 -> 00:00:00 | M143: Pendência | N143: Pendência | O143: Pendência | P143: Pendência
A144: =CAC!A175 -> 0 | B144: =CAC!C175 -> 0 | C144: =CAC!B175 -> 0 | D144: -44859 | E144: =CAC!W175 -> 00:00:00 | F144: =CAC!X175 -> 00:00:00 | G144: =CAC!AB175 -> 00:00:00 | H144: =CAC!AC175 -> 00:00:00 | M144: Pendência | N144: Pendência | O144: Pendência | P144: Pendência
A145: =CAC!A176 -> 0 | B145: =CAC!C176 -> 0 | C145: =CAC!B176 -> 0 | D145: -44859 | E145: =CAC!W176 -> 00:00:00 | F145: =CAC!X176 -> 00:00:00 | G145: =CAC!AB176 -> 00:00:00 | H145: =CAC!AC176 -> 00:00:00 | M145: Pendência | N145: Pendência | O145: Pendência | P145: Pendência
A146: =CAC!A177 -> 0 | B146: =CAC!C177 -> 0 | C146: =CAC!B177 -> 0 | D146: -44859 | E146: =CAC!W177 -> 00:00:00 | F146: =CAC!X177 -> 00:00:00 | G146: =CAC!AB177 -> 00:00:00 | H146: =CAC!AC177 -> 00:00:00 | M146: Pendência | N146: Pendência | O146: Pendência | P146: Pendência
A147: =CAC!A178 -> 0 | B147: =CAC!C178 -> 0 | C147: =CAC!B178 -> 0 | D147: -44859 | E147: =CAC!W178 -> 00:00:00 | F147: =CAC!X178 -> 00:00:00 | G147: =CAC!AB178 -> 00:00:00 | H147: =CAC!AC178 -> 00:00:00 | M147: Pendência | N147: Pendência | O147: Pendência | P147: Pendência
A148: =CAC!A179 -> 0 | B148: =CAC!C179 -> 0 | C148: =CAC!B179 -> 0 | D148: -44859 | E148: =CAC!W179 -> 00:00:00 | F148: =CAC!X179 -> 00:00:00 | G148: =CAC!AB179 -> 00:00:00 | H148: =CAC!AC179 -> 00:00:00 | M148: Pendência | N148: Pendência | O148: Pendência | P148: Pendência
A149: =CAC!A180 -> 0 | B149: =CAC!C180 -> 0 | C149: =CAC!B180 -> 0 | D149: -44859 | E149: =CAC!W180 -> 00:00:00 | F149: =CAC!X180 -> 00:00:00 | G149: =CAC!AB180 -> 00:00:00 | H149: =CAC!AC180 -> 00:00:00 | M149: Pendência | N149: Pendência | O149: Pendência | P149: Pendência
A150: =CAC!A181 -> 0 | B150: =CAC!C181 -> 0 | C150: =CAC!B181 -> 0 | D150: -44859 | E150: =CAC!W181 -> 00:00:00 | F150: =CAC!X181 -> 00:00:00 | G150: =CAC!AB181 -> 00:00:00 | H150: =CAC!AC181 -> 00:00:00 | M150: Pendência | N150: Pendência | O150: Pendência | P150: Pendência
A151: =CAC!A182 -> 0 | B151: =CAC!C182 -> 0 | C151: =CAC!B182 -> 0 | D151: -44859 | E151: =CAC!W182 -> 00:00:00 | F151: =CAC!X182 -> 00:00:00 | G151: =CAC!AB182 -> 00:00:00 | H151: =CAC!AC182 -> 00:00:00 | M151: Pendência | N151: Pendência | O151: Pendência | P151: Pendência
A152: =CAC!A183 -> 0 | B152: =CAC!C183 -> 0 | C152: =CAC!B183 -> 0 | D152: -44859 | E152: =CAC!W183 -> 00:00:00 | F152: =CAC!X183 -> 00:00:00 | G152: =CAC!AB183 -> 00:00:00 | H152: =CAC!AC183 -> 00:00:00 | M152: Pendência | N152: Pendência | O152: Pendência | P152: Pendência
A153: =CAC!A184 -> 0 | B153: =CAC!C184 -> 0 | C153: =CAC!B184 -> 0 | D153: -44859 | E153: =CAC!W184 -> 00:00:00 | F153: =CAC!X184 -> 00:00:00 | G153: =CAC!AB184 -> 00:00:00 | H153: =CAC!AC184 -> 00:00:00 | M153: Pendência | N153: Pendência | O153: Pendência | P153: Pendência
A154: =CAC!A185 -> 0 | B154: =CAC!C185 -> 0 | C154: =CAC!B185 -> 0 | D154: -44859 | E154: =CAC!W185 -> 00:00:00 | F154: =CAC!X185 -> 00:00:00 | G154: =CAC!AB185 -> 00:00:00 | H154: =CAC!AC185 -> 00:00:00 | M154: Pendência | N154: Pendência | O154: Pendência | P154: Pendência
A155: =CAC!A186 -> 0 | B155: =CAC!C186 -> 0 | C155: =CAC!B186 -> 0 | D155: -44859 | E155: =CAC!W186 -> 00:00:00 | F155: =CAC!X186 -> 00:00:00 | G155: =CAC!AB186 -> 00:00:00 | H155: =CAC!AC186 -> 00:00:00 | M155: Pendência | N155: Pendência | O155: Pendência | P155: Pendência
A156: =CAC!A187 -> 0 | B156: =CAC!C187 -> 0 | C156: =CAC!B187 -> 0 | D156: -44859 | E156: =CAC!W187 -> 00:00:00 | F156: =CAC!X187 -> 00:00:00 | G156: =CAC!AB187 -> 00:00:00 | H156: =CAC!AC187 -> 00:00:00 | M156: Pendência | N156: Pendência | O156: Pendência | P156: Pendência
A157: =CAC!A188 -> 0 | B157: =CAC!C188 -> 0 | C157: =CAC!B188 -> 0 | D157: -44859 | E157: =CAC!W188 -> 00:00:00 | F157: =CAC!X188 -> 00:00:00 | G157: =CAC!AB188 -> 00:00:00 | H157: =CAC!AC188 -> 00:00:00 | M157: Pendência | N157: Pendência | O157: Pendência | P157: Pendência
A158: =CAC!A189 -> 0 | B158: =CAC!C189 -> 0 | C158: =CAC!B189 -> 0 | D158: -44859 | E158: =CAC!W189 -> 00:00:00 | F158: =CAC!X189 -> 00:00:00 | G158: =CAC!AB189 -> 00:00:00 | H158: =CAC!AC189 -> 00:00:00 | M158: Pendência | N158: Pendência | O158: Pendência | P158: Pendência
A159: =CAC!A190 -> 0 | B159: =CAC!C190 -> 0 | C159: =CAC!B190 -> 0 | D159: -44859 | E159: =CAC!W190 -> 00:00:00 | F159: =CAC!X190 -> 00:00:00 | G159: =CAC!AB190 -> 00:00:00 | H159: =CAC!AC190 -> 00:00:00 | M159: Pendência | N159: Pendência | O159: Pendência | P159: Pendência
A160: =CAC!A191 -> 0 | B160: =CAC!C191 -> 0 | C160: =CAC!B191 -> 0 | D160: -44859 | E160: =CAC!W191 -> 00:00:00 | F160: =CAC!X191 -> 00:00:00 | G160: =CAC!AB191 -> 00:00:00 | H160: =CAC!AC191 -> 00:00:00 | M160: Pendência | N160: Pendência | O160: Pendência | P160: Pendência
A161: =CAC!A192 -> 0 | B161: =CAC!C192 -> 0 | C161: =CAC!B192 -> 0 | D161: -44859 | E161: =CAC!W192 -> 00:00:00 | F161: =CAC!X192 -> 00:00:00 | G161: =CAC!AB192 -> 00:00:00 | H161: =CAC!AC192 -> 00:00:00 | M161: Pendência | N161: Pendência | O161: Pendência | P161: Pendência
A162: =CAC!A193 -> 0 | B162: =CAC!C193 -> 0 | C162: =CAC!B193 -> 0 | D162: -44859 | E162: =CAC!W193 -> 00:00:00 | F162: =CAC!X193 -> 00:00:00 | G162: =CAC!AB193 -> 00:00:00 | H162: =CAC!AC193 -> 00:00:00 | M162: Pendência | N162: Pendência | O162: Pendência | P162: Pendência
A163: =CAC!A194 -> 0 | B163: =CAC!C194 -> 0 | C163: =CAC!B194 -> 0 | D163: -44859 | E163: =CAC!W194 -> 00:00:00 | F163: =CAC!X194 -> 00:00:00 | G163: =CAC!AB194 -> 00:00:00 | H163: =CAC!AC194 -> 00:00:00 | M163: Pendência | N163: Pendência | O163: Pendência | P163: Pendência
A164: =CAC!A195 -> 0 | B164: =CAC!C195 -> 0 | C164: =CAC!B195 -> 0 | D164: -44859 | E164: =CAC!W195 -> 00:00:00 | F164: =CAC!X195 -> 00:00:00 | G164: =CAC!AB195 -> 00:00:00 | H164: =CAC!AC195 -> 00:00:00 | M164: Pendência | N164: Pendência | O164: Pendência | P164: Pendência
A165: =CAC!A196 -> 0 | B165: =CAC!C196 -> 0 | C165: =CAC!B196 -> 0 | D165: -44859 | E165: =CAC!W196 -> 00:00:00 | F165: =CAC!X196 -> 00:00:00 | G165: =CAC!AB196 -> 00:00:00 | H165: =CAC!AC196 -> 00:00:00 | M165: Pendência | N165: Pendência | O165: Pendência | P165: Pendência
A166: =CAC!A197 -> 0 | B166: =CAC!C197 -> 0 | C166: =CAC!B197 -> 0 | D166: -44859 | E166: =CAC!W197 -> 00:00:00 | F166: =CAC!X197 -> 00:00:00 | G166: =CAC!AB197 -> 00:00:00 | H166: =CAC!AC197 -> 00:00:00 | M166: Pendência | N166: Pendência | O166: Pendência | P166: Pendência
A167: =CAC!A198 -> 0 | B167: =CAC!C198 -> 0 | C167: =CAC!B198 -> 0 | D167: -44859 | E167: =CAC!W198 -> 00:00:00 | F167: =CAC!X198 -> 00:00:00 | G167: =CAC!AB198 -> 00:00:00 | H167: =CAC!AC198 -> 00:00:00 | M167: Pendência | N167: Pendência | O167: Pendência | P167: Pendência
A168: =CAC!A199 -> 0 | B168: =CAC!C199 -> 0 | C168: =CAC!B199 -> 0 | D168: -44859 | E168: =CAC!W199 -> 00:00:00 | F168: =CAC!X199 -> 00:00:00 | G168: =CAC!AB199 -> 00:00:00 | H168: =CAC!AC199 -> 00:00:00 | M168: Pendência | N168: Pendência | O168: Pendência | P168: Pendência
A169: =CAC!A200 -> 0 | B169: =CAC!C200 -> 0 | C169: =CAC!B200 -> 0 | D169: -44859 | E169: =CAC!W200 -> 00:00:00 | F169: =CAC!X200 -> 00:00:00 | G169: =CAC!AB200 -> 00:00:00 | H169: =CAC!AC200 -> 00:00:00 | M169: Pendência | N169: Pendência | O169: Pendência | P169: Pendência
A170: =CAC!A201 -> 0 | B170: =CAC!C201 -> 0 | C170: =CAC!B201 -> 0 | D170: -44859 | E170: =CAC!W201 -> 00:00:00 | F170: =CAC!X201 -> 00:00:00 | G170: =CAC!AB201 -> 00:00:00 | H170: =CAC!AC201 -> 00:00:00 | M170: Pendência | N170: Pendência | O170: Pendência | P170: Pendência
A171: =CAC!A202 -> 0 | B171: =CAC!C202 -> 0 | C171: =CAC!B202 -> 0 | D171: -44859 | E171: =CAC!W202 -> 00:00:00 | F171: =CAC!X202 -> 00:00:00 | G171: =CAC!AB202 -> 00:00:00 | H171: =CAC!AC202 -> 00:00:00 | M171: Pendência | N171: Pendência | O171: Pendência | P171: Pendência
A172: =CAC!A203 -> 0 | B172: =CAC!C203 -> 0 | C172: =CAC!B203 -> 0 | D172: -44859 | E172: =CAC!W203 -> 00:00:00 | F172: =CAC!X203 -> 00:00:00 | G172: =CAC!AB203 -> 00:00:00 | H172: =CAC!AC203 -> 00:00:00 | M172: Pendência | N172: Pendência | O172: Pendência | P172: Pendência
A173: =CAC!A204 -> 0 | B173: =CAC!C204 -> 0 | C173: =CAC!B204 -> 0 | D173: -44859 | E173: =CAC!W204 -> 00:00:00 | F173: =CAC!X204 -> 00:00:00 | G173: =CAC!AB204 -> 00:00:00 | H173: =CAC!AC204 -> 00:00:00 | M173: Pendência | N173: Pendência | O173: Pendência | P173: Pendência
A174: =CAC!A205 -> 0 | B174: =CAC!C205 -> 0 | C174: =CAC!B205 -> 0 | D174: -44859 | E174: =CAC!W205 -> 00:00:00 | F174: =CAC!X205 -> 00:00:00 | G174: =CAC!AB205 -> 00:00:00 | H174: =CAC!AC205 -> 00:00:00 | M174: Pendência | N174: Pendência | O174: Pendência | P174: Pendência
A175: =CAC!A206 -> 0 | B175: =CAC!C206 -> 0 | C175: =CAC!B206 -> 0 | D175: -44859 | E175: =CAC!W206 -> 00:00:00 | F175: =CAC!X206 -> 00:00:00 | G175: =CAC!AB206 -> 00:00:00 | H175: =CAC!AC206 -> 00:00:00 | M175: Pendência | N175: Pendência | O175: Pendência | P175: Pendência
A176: =CAC!A207 -> 0 | B176: =CAC!C207 -> 0 | C176: =CAC!B207 -> 0 | D176: -44859 | E176: =CAC!W207 -> 00:00:00 | F176: =CAC!X207 -> 00:00:00 | G176: =CAC!AB207 -> 00:00:00 | H176: =CAC!AC207 -> 00:00:00 | M176: Pendência | N176: Pendência | O176: Pendência | P176: Pendência
A177: =CAC!A208 -> 0 | B177: =CAC!C208 -> 0 | C177: =CAC!B208 -> 0 | D177: -44859 | E177: =CAC!W208 -> 00:00:00 | F177: =CAC!X208 -> 00:00:00 | G177: =CAC!AB208 -> 00:00:00 | H177: =CAC!AC208 -> 00:00:00 | M177: Pendência | N177: Pendência | O177: Pendência | P177: Pendência
A178: =CAC!A209 -> 0 | B178: =CAC!C209 -> 0 | C178: =CAC!B209 -> 0 | D178: -44859 | E178: =CAC!W209 -> 00:00:00 | F178: =CAC!X209 -> 00:00:00 | G178: =CAC!AB209 -> 00:00:00 | H178: =CAC!AC209 -> 00:00:00 | M178: Pendência | N178: Pendência | O178: Pendência | P178: Pendência
A179: =CAC!A210 -> 0 | B179: =CAC!C210 -> 0 | C179: =CAC!B210 -> 0 | D179: -44859 | E179: =CAC!W210 -> 00:00:00 | F179: =CAC!X210 -> 00:00:00 | G179: =CAC!AB210 -> 00:00:00 | H179: =CAC!AC210 -> 00:00:00 | M179: Pendência | N179: Pendência | O179: Pendência | P179: Pendência
A180: =CAC!A211 -> 0 | B180: =CAC!C211 -> 0 | C180: =CAC!B211 -> 0 | D180: -44859 | E180: =CAC!W211 -> 00:00:00 | F180: =CAC!X211 -> 00:00:00 | G180: =CAC!AB211 -> 00:00:00 | H180: =CAC!AC211 -> 00:00:00 | M180: Pendência | N180: Pendência | O180: Pendência | P180: Pendência
A181: =CAC!A212 -> 0 | B181: =CAC!C212 -> 0 | C181: =CAC!B212 -> 0 | D181: -44859 | E181: =CAC!W212 -> 00:00:00 | F181: =CAC!X212 -> 00:00:00 | G181: =CAC!AB212 -> 00:00:00 | H181: =CAC!AC212 -> 00:00:00 | M181: Pendência | N181: Pendência | O181: Pendência | P181: Pendência
A182: =CAC!A213 -> 0 | B182: =CAC!C213 -> 0 | C182: =CAC!B213 -> 0 | D182: -44859 | E182: =CAC!W213 -> 00:00:00 | F182: =CAC!X213 -> 00:00:00 | G182: =CAC!AB213 -> 00:00:00 | H182: =CAC!AC213 -> 00:00:00 | M182: Pendência | N182: Pendência | O182: Pendência | P182: Pendência
A183: =CAC!A214 -> 0 | B183: =CAC!C214 -> 0 | C183: =CAC!B214 -> 0 | D183: -44859 | E183: =CAC!W214 -> 00:00:00 | F183: =CAC!X214 -> 00:00:00 | G183: =CAC!AB214 -> 00:00:00 | H183: =CAC!AC214 -> 00:00:00 | M183: Pendência | N183: Pendência | O183: Pendência | P183: Pendência
A184: =CAC!A215 -> 0 | B184: =CAC!C215 -> 0 | C184: =CAC!B215 -> 0 | D184: -44859 | E184: =CAC!W215 -> 00:00:00 | F184: =CAC!X215 -> 00:00:00 | G184: =CAC!AB215 -> 00:00:00 | H184: =CAC!AC215 -> 00:00:00 | M184: Pendência | N184: Pendência | O184: Pendência | P184: Pendência
A185: =CAC!A216 -> 0 | B185: =CAC!C216 -> 0 | C185: =CAC!B216 -> 0 | D185: -44859 | E185: =CAC!W216 -> 00:00:00 | F185: =CAC!X216 -> 00:00:00 | G185: =CAC!AB216 -> 00:00:00 | H185: =CAC!AC216 -> 00:00:00 | M185: Pendência | N185: Pendência | O185: Pendência | P185: Pendência
A186: =CAC!A217 -> 0 | B186: =CAC!C217 -> 0 | C186: =CAC!B217 -> 0 | D186: -44859 | E186: =CAC!W217 -> 00:00:00 | F186: =CAC!X217 -> 00:00:00 | G186: =CAC!AB217 -> 00:00:00 | H186: =CAC!AC217 -> 00:00:00 | M186: Pendência | N186: Pendência | O186: Pendência | P186: Pendência
A187: =CAC!A218 -> 0 | B187: =CAC!C218 -> 0 | C187: =CAC!B218 -> 0 | D187: -44859 | E187: =CAC!W218 -> 00:00:00 | F187: =CAC!X218 -> 00:00:00 | G187: =CAC!AB218 -> 00:00:00 | H187: =CAC!AC218 -> 00:00:00 | M187: Pendência | N187: Pendência | O187: Pendência | P187: Pendência
A188: =CAC!A219 -> 0 | B188: =CAC!C219 -> 0 | C188: =CAC!B219 -> 0 | D188: -44859 | E188: =CAC!W219 -> 00:00:00 | F188: =CAC!X219 -> 00:00:00 | G188: =CAC!AB219 -> 00:00:00 | H188: =CAC!AC219 -> 00:00:00 | M188: Pendência | N188: Pendência | O188: Pendência | P188: Pendência
A189: =CAC!A220 -> 0 | B189: =CAC!C220 -> 0 | C189: =CAC!B220 -> 0 | D189: -44859 | E189: =CAC!W220 -> 00:00:00 | F189: =CAC!X220 -> 00:00:00 | G189: =CAC!AB220 -> 00:00:00 | H189: =CAC!AC220 -> 00:00:00 | M189: Pendência | N189: Pendência | O189: Pendência | P189: Pendência
A190: =CAC!A221 -> 0 | B190: =CAC!C221 -> 0 | C190: =CAC!B221 -> 0 | D190: -44859 | E190: =CAC!W221 -> 00:00:00 | F190: =CAC!X221 -> 00:00:00 | G190: =CAC!AB221 -> 00:00:00 | H190: =CAC!AC221 -> 00:00:00 | M190: Pendência | N190: Pendência | O190: Pendência | P190: Pendência
A191: =CAC!A222 -> 0 | B191: =CAC!C222 -> 0 | C191: =CAC!B222 -> 0 | D191: -44859 | E191: =CAC!W222 -> 00:00:00 | F191: =CAC!X222 -> 00:00:00 | G191: =CAC!AB222 -> 00:00:00 | H191: =CAC!AC222 -> 00:00:00 | M191: Pendência | N191: Pendência | O191: Pendência | P191: Pendência
A192: =CAC!A223 -> 0 | B192: =CAC!C223 -> 0 | C192: =CAC!B223 -> 0 | D192: -44859 | E192: =CAC!W223 -> 00:00:00 | F192: =CAC!X223 -> 00:00:00 | G192: =CAC!AB223 -> 00:00:00 | H192: =CAC!AC223 -> 00:00:00 | M192: Pendência | N192: Pendência | O192: Pendência | P192: Pendência
A193: =CAC!A224 -> 0 | B193: =CAC!C224 -> 0 | C193: =CAC!B224 -> 0 | D193: -44859 | E193: =CAC!W224 -> 00:00:00 | F193: =CAC!X224 -> 00:00:00 | G193: =CAC!AB224 -> 00:00:00 | H193: =CAC!AC224 -> 00:00:00 | M193: Pendência | N193: Pendência | O193: Pendência | P193: Pendência
A194: =CAC!A225 -> 0 | B194: =CAC!C225 -> 0 | C194: =CAC!B225 -> 0 | D194: -44859 | E194: =CAC!W225 -> 00:00:00 | F194: =CAC!X225 -> 00:00:00 | G194: =CAC!AB225 -> 00:00:00 | H194: =CAC!AC225 -> 00:00:00 | M194: Pendência | N194: Pendência | O194: Pendência | P194: Pendência
A195: =CAC!A226 -> 0 | B195: =CAC!C226 -> 0 | C195: =CAC!B226 -> 0 | D195: =H195-TODAY() -> -44859 | E195: =CAC!W226 -> 00:00:00 | F195: =CAC!X226 -> 00:00:00 | G195: =CAC!AB226 -> 00:00:00 | H195: =CAC!AC226 -> 00:00:00 | M195: =IF(E195="---","N/A",IF(AND(I195="",NOW()-E195<0),"Em dia",IF(AND(I195="",NOW()-E195>0),"Pendência",IF(I195>E195,"Entregue com atraso","Entregue")))) -> Pendência | N195: =IF(F195="---","N/A",IF(AND(J195="",NOW()-F195<0),"Em dia",IF(AND(J195="",NOW()-F195>0),"Pendência",IF(J195>F195,"Entregue com atraso","Entregue")))) -> Pendência | O195: =IF(G195="---","N/A",IF(AND(K195="",NOW()-G195<0),"Em dia",IF(AND(K195="",NOW()-G195>0),"Pendência",IF(K195>G195,"Contratado com atraso","Contratado")))) -> Pendência | P195: =IF(AND(L195="",NOW()-H195<0),"Em dia",IF(AND(L195="",NOW()-H195>0),"Pendência",IF(L195>H195,"Contratado com atraso","Contratado"))) -> Pendência
A196: =CAC!A227 -> 0 | B196: =CAC!C227 -> 0 | C196: =CAC!B227 -> 0 | D196: -44859 | E196: =CAC!W227 -> 00:00:00 | F196: =CAC!X227 -> 00:00:00 | G196: =CAC!AB227 -> 00:00:00 | H196: =CAC!AC227 -> 00:00:00 | M196: Pendência | N196: Pendência | O196: Pendência | P196: Pendência
A197: =CAC!A228 -> 0 | B197: =CAC!C228 -> 0 | C197: =CAC!B228 -> 0 | D197: -44859 | E197: =CAC!W228 -> 00:00:00 | F197: =CAC!X228 -> 00:00:00 | G197: =CAC!AB228 -> 00:00:00 | H197: =CAC!AC228 -> 00:00:00 | M197: Pendência | N197: Pendência | O197: Pendência | P197: Pendência
A198: =CAC!A229 -> 0 | B198: =CAC!C229 -> 0 | C198: =CAC!B229 -> 0 | D198: -44859 | E198: =CAC!W229 -> 00:00:00 | F198: =CAC!X229 -> 00:00:00 | G198: =CAC!AB229 -> 00:00:00 | H198: =CAC!AC229 -> 00:00:00 | M198: Pendência | N198: Pendência | O198: Pendência | P198: Pendência
A199: =CAC!A230 -> 0 | B199: =CAC!C230 -> 0 | C199: =CAC!B230 -> 0 | D199: -44859 | E199: =CAC!W230 -> 00:00:00 | F199: =CAC!X230 -> 00:00:00 | G199: =CAC!AB230 -> 00:00:00 | H199: =CAC!AC230 -> 00:00:00 | M199: Pendência | N199: Pendência | O199: Pendência | P199: Pendência
A200: =CAC!A231 -> 0 | B200: =CAC!C231 -> 0 | C200: =CAC!B231 -> 0 | D200: -44859 | E200: =CAC!W231 -> 00:00:00 | F200: =CAC!X231 -> 00:00:00 | G200: =CAC!AB231 -> 00:00:00 | H200: =CAC!AC231 -> 00:00:00 | M200: Pendência | N200: Pendência | O200: Pendência | P200: Pendência
... 100 more rows

Sheet Orientações - uso das planilhas
A1: Planilha PAC
A2: Preenchimento de dados: | B2: Todas as colunas deverão ser preenchidas pelo usuário;
A3: DOD com mais de 1 item: | B3: O ID deverá ser mencionado em cada linha correspondente a cada item, para permitir adequada utilização da ferramenta de filtro;
B4: Quando houver mais de um item por DOD, deverá ser informado um item por linha, para permitir adequada visualização e contabilização de dados nas planilhas PAC e CAC;
A5: Coluna A: | B5: Quando o ID tiver de ser mencionado em mais de uma linha (DODs com mais de 1 item), não mesclar as respectivas células de modo a permitir a adequada utilização da ferramenta de filtro;
A6: Colunas E, F, G, H, I, J, K, L, M: | B6: Em DODs com mais de 1 item, informar um item para cada linha. Não mesclar as respectivas células de modo a permitir a adequada visualização e contabilização de dados nas planilhas PAC e CAC;
A7: Coluna W (após coluna V - Riscos da não contratação): | B7: Informar o algarismo "1" para cada linha que houver item informado. Isso é necessário para contabilizar corretamente a quantidade de itens na planilha CAC, coluna J - "Qtd de Itens do Objeto";
A9: Planilha CAC
A10: Preenchimento de dados: | B10: Somente as colunas em branco (A, C, H e I) deverão ser preenchidas pelo usuário, seguindo-se as recomendações de resposta indicadas em vermelho no cabeçalho;
A11: Coluna A: | B11: Na transcrição dos IDs do PAC para essa planilha, cuidar para: a) não repetir os IDs (ainda que na planilha PAC eles tenham se repetido por conta de DODs com mais de 1 item); b) transcrever os IDs exatamente como foram informados na planilha PAC;
A13: Planilha CAC - Acompanhamento
A14: Preenchimento de dados: | B14: Somente as colunas em branco (I, J, K e L) deverão ser preenchidas pelo usuário, de acordo com a data de efetiva entrega dos artefatos (ou do início dos procedimentos no caso de renovação/prorrogação) e da efetiva contratação.

Sheet Tabela temporalidade
A1: LICITAÇÃO | F1: DISPENSA E INEXIGIBILIDADE
A2: Etapa | B2: Definidores do Tempo | D2: Tempo (dias) | F2: Etapa | G2: Definidores do Tempo | I2: Tempo (dias)
A3: TApETP | B3: --- | C3: --- | D3: 15 | F3: TApETP | G3: --- | H3: --- | I3: 15
A4: TElabTR | B4: --- | C4: --- | D4: 10 | F4: TElabTR | G4: --- | H4: --- | I4: 10
A5: TApTR | B5: sem contrato | C5: 1 item | D5: 20 | F5: TFICD | G5: com ou sem contrato | H5: 1 a 10 itens | I5: 35
A6: TApTR | B6: sem contrato | C6: 2 a 5 itens | D6: 30 | F6: TFICD | G6: com ou sem contrato | H6: 11 a 20 itens | I6: 45
A7: TApTR | B7: sem contrato | C7: 6 a 15 itens | D7: 45 | F7: TFICD | G7: com ou sem contrato | H7: 21 ou + itens | I7: 60
A8: TApTR | B8: sem contrato | C8: 16 ou + itens | D8: 70 | F8: Instrução processual | G8: --- | H8: --- | I8: 3
A9: TApTR | B9: com contrato | C9: 1 item | D9: 40 | F9: Autorização da contratação | G9: --- | H9: --- | I9: 3
A10: TApTR | B10: com contrato | C10: 2 a 5 itens | D10: 50 | F10: TElabCont/NE | G10: emissão de nota de empenho | H10: --- | I10: 5
A11: TApTR | B11: com contrato | C11: 6 a 15 itens | D11: 75
A12: TApTR | B12: com contrato | C12: 16 ou + itens | D12: 100
A13: TFILi | B13: sem contrato | C13: qq nº itens | D13: 15 | G13: verificar correspondencia de cores entre uma tabela e outra
A14: TFILi | B14: com contrato | C14: qq nº itens | D14: 25
A15: TFELi | B15: sem amostra | C15: qq nº itens | D15: 25
A16: TFELi | B16: com amostra | C16: qq nº itens | D16: 40
A17: TElabCont/NE | B17: assinatura de contrato | C17: --- | D17: 5
A19: Legenda:
A20: TApETP | B20: Aperfeiçoamento do Estudo Técnico Preliminar – TApETP: da data de entrega do ETP à data de sua aprovação
A21: TElabTR | B21: Tempo de elaboração do Termo de Referência – TElabTR: da data de aprovação do ETP à data de entrega do TR
A22: TApTR | B22: Aperfeiçoamento do Termo de Referência – TApTR: da data de entrega do TR à data de sua aprovação
A23: TFILi | B23: Fase Interna da Licitação – TFIL: da data de aprovação do TR à data de publicação do edital
A24: TFELi | B24: Fase Externa da Licitação – TFEL: da data de publicação do edital à data de homologação do resultado da licitação
A25: TElabCont/NE | B25: Tempo de elaboração e assinatura do contrato ou de emissão de nota de empenho
A26: TFICD | B26: Fase Interna da Contratação Direta: compreende aperfeiçoamento do TR, pesquisa de preços, elaboração do mapa de preços, consulta à documentação necessária para contratar, pré-instrução processual (aprovação do DOD, ETP e TR e verificação da disponibilidade orçamentária), elaboração de minuta de contrato e análise da minuta.

Sheet Resumo_DADOS
B2: Unidade | C2: Demandas | D2: Estimado
B3: SESEG | C3: =COUNTIF(CAC!$A$6:$A$47,"SESEG*") -> 18 | D3: =SUMIF(CAC!$A$6:$A$53,B3&"*",CAC!$F$6:$F$53) -> 1765174.92
B4: SEMAP | C4: =COUNTIF(CAC!$A$6:$A$47,"SEMAP*") -> 1 | D4: =SUMIF(CAC!$A$6:$A$53,B4&"*",CAC!$F$6:$F$53) -> 52505
B5: SEVIT | C5: =COUNTIF(CAC!$A$6:$A$47,"sevit*") -> 11 | D5: =SUMIF(CAC!$A$6:$A$53,B5&"*",CAC!$F$6:$F$53) -> 348814.36
B6: SEINF | C6: =COUNTIF(CAC!$A$6:$A$47,"seinf*") -> 1 | D6: =SUMIF(CAC!$A$6:$A$53,B6&"*",CAC!$F$6:$F$53) -> 472680
B7: SEBES | C7: =COUNTIF(CAC!$A$6:$A$47,"sebes*") -> 4 | D7: =SUMIF(CAC!$A$6:$A$53,B7&"*",CAC!$F$6:$F$53) -> 343720.15
B8: SECAM | C8: =COUNTIF(CAC!$A$6:$A$47,"SECAM*") -> 5 | D8: =SUMIF(CAC!$A$6:$A$53,B8&"*",CAC!$F$6:$F$53) -> 91457.88
B9: SELIT | C9: =COUNTIF(CAC!$A$6:$A$47,"SELIT*") -> 2 | D9: =SUMIF(CAC!$A$6:$A$53,B9&"*",CAC!$F$6:$F$53) -> 110865
B10: SEDER | C10: =COUNTIF(CAC!$A$6:$A$50,"SEDER*") -> 1 | D10: =SUMIF(CAC!$A$6:$A$53,B10&"*",CAC!$F$6:$F$53) -> 60000
B12: Total | C12: =SUM(C3:C11) -> 43 | D12: =SUM(D3:D11) -> 3245217.31
B25: Modalidade | C25: Qtde | D25: Estimado
B26: Licitação | C26: =COUNTIF(CAC!$G$6:$G$50,"Licitação") -> 15 | D26: =SUMIF(CAC!$G$6:$G$53,B26,CAC!$F$6:$F$53) -> 1715889.35
B27: Prorrogação | C27: =COUNTIF(CAC!$G$6:$G$50,"prorrogação") -> 12 | D27: =SUMIF(CAC!$G$6:$G$53,B27,CAC!$F$6:$F$53) -> 1006689.96
B28: Dispensa | C28: =COUNTIF(CAC!$G$6:$G$50,"Dispensa") -> 15 | D28: =SUMIF(CAC!$G$6:$G$53,B28,CAC!$F$6:$F$53) -> 154838
B29: Inexigibilidade | C29: =COUNTIF(CAC!$G$6:$G$50,"Inexigibilidade") -> 3 | D29: =SUMIF(CAC!$G$6:$G$53,B29,CAC!$F$6:$F$53) -> 367800
B31: Total | C31: =SUM(C26:C30) -> 45 | D31: =SUM(D26:D30) -> 3245217.31
B34: Serviço
B36: =LEFT(CAC!B7,30) -> Serviços de manutenção prevent
